Vendor,Category,Amount Paid,Payment Date
10 S. Riverside Property Owner LLC,Rental Expense,892.2,00:00.0
10 S. Riverside Property Owner LLC,Rental Expense,12157.16,00:00.0
10 S. Riverside Property Owner LLC,Rental Expense,10873.06,00:00.0
10 S. Riverside Property Owner LLC,Rental Expense,764.4,00:00.0
10 S. Riverside Property Owner LLC,Rental Expense,10873.06,00:00.0
10 S. Riverside Property Owner LLC,Rental Expense,764.4,00:00.0
10 S. Riverside Property Owner LLC,Rental Expense,10873.06,00:00.0
10 S. Riverside Property Owner LLC,Rental Expense,10873.06,00:00.0
10 S. Riverside Property Owner LLC,Rental Expense,892.2,00:00.0
10 S. Riverside Property Owner LLC,Rental Expense,22398.5,00:00.0
10 S. Riverside Property Owner LLC,Rental Expense,11199.25,00:00.0
10 S. Riverside Property Owner LLC,Rental Expense,11199.25,00:00.0
10 S. Riverside Property Owner LLC,Rental Expense,11199.25,00:00.0
2423 Partners  LLC,Rental Expense,15044.34,00:00.0
401 Properties Lp C/O: Eric Janssen  Receiver #133,Rental Expense,25300.45,00:00.0
401 Properties Lp C/O: Eric Janssen  Receiver #133,Rental Expense,24425.45,00:00.0
401 Properties Lp C/O: Eric Janssen  Receiver #133,Rental Expense,28459.3,00:00.0
401 Properties Lp C/O: Eric Janssen  Receiver #133,Rental Expense,24698.04,00:00.0
401 Properties Lp C/O: Eric Janssen  Receiver #133,Rental Expense,28728.04,00:00.0
401 Properties Lp C/O: Eric Janssen  Receiver #133,Rental Expense,27851.79,00:00.0
401 Properties Lp C/O: Eric Janssen  Receiver #133,Rental Expense,28451.79,00:00.0
401 Properties Lp C/O: Eric Janssen  Receiver #133,Rental Expense,28776.79,00:00.0
401 Properties Lp C/O: Eric Janssen  Receiver #133,Rental Expense,27876.79,00:00.0
401 Properties Lp C/O: Eric Janssen  Receiver #133,Rental Expense,26191.79,00:00.0
440 South Lasalle St.(Chicago)Owner Llc,Rental Expense,138631.84,00:00.0
440 South Lasalle St.(Chicago)Owner Llc,Rental Expense,136778.81,00:00.0
440 South Lasalle St.(Chicago)Owner Llc,Rental Expense,138070.63,00:00.0
440 South Lasalle St.(Chicago)Owner Llc,Rental Expense,145354.31,00:00.0
440 South Lasalle St.(Chicago)Owner Llc,Rental Expense,138124.62,00:00.0
440 South Lasalle St.(Chicago)Owner Llc,Rental Expense,292111.42,00:00.0
440 South Lasalle St.(Chicago)Owner Llc,Rental Expense,140317.77,00:00.0
440 South Lasalle St.(Chicago)Owner Llc,Rental Expense,138211.51,00:00.0
A & L Relay Services Llc,Services,9440,00:00.0
A & L Relay Services Llc,Services,7645,00:00.0
"A.L.L. Masonry Construction Co., Inc.",Capital Purchases,485000,00:00.0
A-Alert Exterminating Service,Services,180,00:00.0
A-Alert Exterminating Service,Services,150,00:00.0
A-Alert Exterminating Service,Services,75,00:00.0
A-Alert Exterminating Service,Services,345,00:00.0
A-Alert Exterminating Service,Materials,75,00:00.0
A-Alert Exterminating Service,Services,395,00:00.0
A-Alert Exterminating Service,Services,115,00:00.0
A-Alert Exterminating Service,Materials,45,00:00.0
A-Alert Exterminating Service,Materials,75,00:00.0
A-Alert Exterminating Service,Services,75,00:00.0
A-Alert Exterminating Service,Services,35,00:00.0
A-Alert Exterminating Service,Materials,75,00:00.0
A-Alert Exterminating Service,Services,150,00:00.0
A-Alert Exterminating Service,Materials,45,00:00.0
A-Alert Exterminating Service,Services,135,00:00.0
A-Alert Exterminating Service,Services,315,00:00.0
A-Alert Exterminating Service,Services,135,00:00.0
A-Alert Exterminating Service,Services,180,00:00.0
A-Alert Exterminating Service,Services,210,00:00.0
A-Alert Exterminating Service,Services,115,00:00.0
A-Alert Exterminating Service,Services,75,00:00.0
A-Alert Exterminating Service,Services,775,00:00.0
A-Alert Exterminating Service,Services,270,00:00.0
A-Alert Exterminating Service,Services,75,00:00.0
A-Alert Exterminating Service,Services,360,00:00.0
A-Alert Exterminating Service,Services,240,00:00.0
A-Alert Exterminating Service,Services,190,00:00.0
A-Alert Exterminating Service,Services,165,00:00.0
A-Alert Exterminating Service,Services,75,00:00.0
A-Alert Exterminating Service,Services,45,00:00.0
A-Alert Exterminating Service,Services,135,00:00.0
A-Alert Exterminating Service,Materials,45,00:00.0
A-Alert Exterminating Service,Services,45,00:00.0
A-Alert Exterminating Service,Services,270,00:00.0
A-Alert Exterminating Service,Services,30,00:00.0
A-Alert Exterminating Service,Services,45,00:00.0
A-Alert Exterminating Service,Materials,75,00:00.0
A-Alert Exterminating Service,Services,745,00:00.0
A-Alert Exterminating Service,Materials,75,00:00.0
A-Alert Exterminating Service,Services,75,00:00.0
A-Alert Exterminating Service,Services,210,00:00.0
A-Alert Exterminating Service,Services,115,00:00.0
A-Alert Exterminating Service,Services,30,00:00.0
A-Alert Exterminating Service,Services,75,00:00.0
A-Alert Exterminating Service,Materials,75,00:00.0
A-Alert Exterminating Service,Services,75,00:00.0
A-Alert Exterminating Service,Services,210,00:00.0
A-Alert Exterminating Service,Services,270,00:00.0
A-Alert Exterminating Service,Materials,45,00:00.0
A-Alert Exterminating Service,Services,430,00:00.0
A-Alert Exterminating Service,Materials,75,00:00.0
A-Alert Exterminating Service,Materials,75,00:00.0
A-Alert Exterminating Service,Services,105,00:00.0
A-Alert Exterminating Service,Services,115,00:00.0
A-Alert Exterminating Service,Materials,75,00:00.0
A-Alert Exterminating Service,Services,315,00:00.0
A-Alert Exterminating Service,Services,75,00:00.0
A-Alert Exterminating Service,Services,270,00:00.0
A-Alert Exterminating Service,Materials,45,00:00.0
A-Alert Exterminating Service,Services,210,00:00.0
A-Alert Exterminating Service,Materials,75,00:00.0
A-Alert Exterminating Service,Materials,75,00:00.0
A-Alert Exterminating Service,Services,115,00:00.0
A-Alert Exterminating Service,Services,75,00:00.0
A-Alert Exterminating Service,Services,745,00:00.0
A-Alert Exterminating Service,Services,30,00:00.0
A-Alert Exterminating Service,Services,75,00:00.0
A-Alert Exterminating Service,Services,270,00:00.0
A-Alert Exterminating Service,Materials,75,00:00.0
A-Alert Exterminating Service,Services,30,00:00.0
A-Alert Exterminating Service,Materials,75,00:00.0
A-Alert Exterminating Service,Services,90,00:00.0
A-Alert Exterminating Service,Materials,75,00:00.0
A-Alert Exterminating Service,Services,280,00:00.0
A-Alert Exterminating Service,Materials,45,00:00.0
A-Alert Exterminating Service,Services,150,00:00.0
A-Alert Exterminating Service,Services,480,00:00.0
A-Alert Exterminating Service,Services,175,00:00.0
A-Alert Exterminating Service,Services,45,00:00.0
A-Alert Exterminating Service,Services,75,00:00.0
A-Alert Exterminating Service,Services,115,00:00.0
A-Alert Exterminating Service,Services,245,00:00.0
A-Alert Exterminating Service,Services,30,00:00.0
A-Alert Exterminating Service,Services,135,00:00.0
A-Alert Exterminating Service,Services,300,00:00.0
A-Alert Exterminating Service,Services,630,00:00.0
A-Alert Exterminating Service,Services,140,00:00.0
A-Alert Exterminating Service,Services,135,00:00.0
A-Alert Exterminating Service,Materials,75,00:00.0
A-Alert Exterminating Service,Materials,75,00:00.0
A-Alert Exterminating Service,Services,115,00:00.0
A-Alert Exterminating Service,Services,240,00:00.0
A-Alert Exterminating Service,Materials,75,00:00.0
A-Alert Exterminating Service,Services,405,00:00.0
A-Alert Exterminating Service,Services,350,00:00.0
Aaron Gulbransen,Services,64.18,00:00.0
Aaron Gulbransen,Services,53.99,00:00.0
Aaron Gulbransen,Services,398.56,00:00.0
Aaron Gulbransen,Services,152.5,00:00.0
Aaron Gulbransen,Services,59.25,00:00.0
Aaron Gulbransen,Services,72.66,00:00.0
Aaron Gulbransen,Services,327.6,00:00.0
Aaron Gulbransen,Services,137.5,00:00.0
Aaron Gulbransen,Services,64.06,00:00.0
Aaron Gulbransen,Services,129.02,00:00.0
Aaron Sanderson,Services,65.18,00:00.0
Aaron Schultz,Services,4.3,00:00.0
Aaron Schultz,Services,119.03,00:00.0
Aaron Schultz,Services,191.07,00:00.0
Aaron Schultz,Services,7.3,00:00.0
Aaron Schultz,Services,164.58,00:00.0
Aaron Schultz,Services,5.35,00:00.0
"ABM Industry Groups, LLC",Services,59623.8,00:00.0
"ABM Industry Groups, LLC",Services,17009.55,00:00.0
"ABM Industry Groups, LLC",Services,98170.24,00:00.0
"ABM Industry Groups, LLC",Services,53910.72,00:00.0
"ABM Industry Groups, LLC",Services,1744.94,00:00.0
"ABM Industry Groups, LLC",Services,6189.76,00:00.0
"ABM Industry Groups, LLC",Services,34732.36,00:00.0
"ABM Industry Groups, LLC",Services,46797.84,00:00.0
"ABM Industry Groups, LLC",Services,6518.64,00:00.0
"ABM Industry Groups, LLC",Services,79875.56,00:00.0
"ABM Industry Groups, LLC",Services,45988.32,00:00.0
"ABM Industry Groups, LLC",Services,46797.84,00:00.0
"ABM Industry Groups, LLC",Services,51372.4,00:00.0
"ABM Industry Groups, LLC",Services,46797.84,00:00.0
"ABM Industry Groups, LLC",Services,51372.4,00:00.0
"ABM Industry Groups, LLC",Services,50067.71,00:00.0
"ABM Industry Groups, LLC",Services,12676.16,00:00.0
"ABM Industry Groups, LLC",Services,48822.58,00:00.0
"ABM Industry Groups, LLC",Services,21921.16,00:00.0
"ABM Industry Groups, LLC",Services,6498.8,00:00.0
"ABM Industry Groups, LLC",Services,47708.92,00:00.0
"ABM Industry Groups, LLC",Services,213195.76,00:00.0
"ABM Industry Groups, LLC",Services,113760.64,00:00.0
Abraham R. Castellano,Services,40.32,00:00.0
Abraham R. Castellano,Services,154.56,00:00.0
Abraham R. Castellano,Services,67.2,00:00.0
Abraham R. Castellano,Services,108.64,00:00.0
Abraham R. Castellano,Services,85.12,00:00.0
Abraham R. Castellano,Services,208.32,00:00.0
Abraham R. Castellano,Services,399.84,00:00.0
Abraham R. Castellano,Services,51.52,00:00.0
Abraham R. Castellano,Services,51.52,00:00.0
Abraham R. Castellano,Services,219.52,00:00.0
Abt,Capital Purchases,22257,00:00.0
Aca Compliance Services  Inc.,Services,12599,00:00.0
Accel Construction Services Group,Claims & Insurance,90646.86,00:00.0
Accel Construction Services Group,Capital Purchases,5400,00:00.0
Ace Marking Devices Corp.,Services,121.9,00:00.0
Ace Marking Devices Corp.,Services,5850,00:00.0
Aci Worldwide Corp.,Services,24774,00:00.0
Aci Worldwide Corp.,Services,24774,00:00.0
Aci Worldwide Corp.,Services,24774,00:00.0
Aci Worldwide Corp.,Services,24774,00:00.0
Aci Worldwide Corp.,Services,24774,00:00.0
Aci Worldwide Corp.,Services,34325.57,00:00.0
Aci Worldwide Corp.,Services,1250,00:00.0
Aci Worldwide Corp.,Services,26024,00:00.0
Aci Worldwide Corp.,Services,26024,00:00.0
Aci Worldwide Corp.,Services,26503.15,00:00.0
Acuren,Materials,3484.86,00:00.0
Adam Farence,Services,142.77,00:00.0
Adam Farence,Services,324.8,00:00.0
Adam Farence,Services,273.28,00:00.0
Adam Farence,Services,93.52,00:00.0
Adam Farence,Services,3.75,00:00.0
Adam Farence,Services,113.68,00:00.0
Adam Farence,Services,179.76,00:00.0
Adam Farence,Services,277.2,00:00.0
Adam Farence,Services,8.8,00:00.0
Adam Farence,Services,242.48,00:00.0
Adam Farence,Services,4.7,00:00.0
Adam Farence,Services,286.72,00:00.0
Adam Farence,Services,11.25,00:00.0
Adam Farence,Services,66.74,00:00.0
Adam Gibson,Services,319.7,00:00.0
Adam Gibson,Services,165,00:00.0
Adams & Westlake  Ltd.,Materials,13886.96,00:00.0
Adams & Westlake  Ltd.,Materials,21,00:00.0
Adams & Westlake  Ltd.,Materials,12110.49,00:00.0
Adams & Westlake  Ltd.,Materials,3788.43,00:00.0
Adams & Westlake  Ltd.,Capital Purchases,9515.52,00:00.0
Adams & Westlake  Ltd.,Materials,563.9,00:00.0
Adams & Westlake  Ltd.,Materials,9649.28,00:00.0
Adams & Westlake  Ltd.,Capital Purchases,18124.8,00:00.0
Adams & Westlake  Ltd.,Capital Purchases,57999.36,00:00.0
Adams & Westlake  Ltd.,Materials,1100,00:00.0
Adams & Westlake  Ltd.,Materials,267.5,00:00.0
Adams & Westlake  Ltd.,Materials,2330.5,00:00.0
Adams & Westlake  Ltd.,Materials,7307.52,00:00.0
Adams & Westlake  Ltd.,Capital Purchases,8609.28,00:00.0
Adams & Westlake  Ltd.,Materials,5593.2,00:00.0
Adams & Westlake  Ltd.,Materials,675.4,00:00.0
Adams & Westlake  Ltd.,Materials,556.92,00:00.0
Adams & Westlake  Ltd.,Materials,440,00:00.0
Adams & Westlake  Ltd.,Materials,6000.3,00:00.0
Adams & Westlake  Ltd.,Materials,4871.68,00:00.0
Adams & Westlake  Ltd.,Capital Purchases,41687.04,00:00.0
Adams & Westlake  Ltd.,Materials,338.34,00:00.0
Adams & Westlake  Ltd.,Materials,1648.5,00:00.0
Adams & Westlake  Ltd.,Materials,13738.68,00:00.0
Adams & Westlake  Ltd.,Materials,2183.34,00:00.0
Adams & Westlake  Ltd.,Materials,2183.34,00:00.0
Adams & Westlake  Ltd.,Services,50,00:00.0
Adams & Westlake  Ltd.,Services,50,00:00.0
Adams & Westlake  Ltd.,Materials,2183.34,00:00.0
Adams & Westlake  Ltd.,Services,50,00:00.0
Adams & Westlake  Ltd.,Materials,2183.34,00:00.0
Adams & Westlake  Ltd.,Services,50,00:00.0
Adams & Westlake  Ltd.,Materials,5389.18,00:00.0
Adaptive Micro Systems Inc.,Capital Purchases,37713,00:00.0
Adaptive Micro Systems Inc.,Capital Purchases,49317,00:00.0
Addison Electric  Inc.,Materials,215.72,00:00.0
Addison Electric  Inc.,Materials,323.64,00:00.0
"ADR Systems Of America, LLC",Claims & Insurance,4125,00:00.0
"ADR Systems Of America, LLC",Claims & Insurance,1207,00:00.0
"ADR Systems Of America, LLC",Claims & Insurance,1495,00:00.0
Adrienne Anderson,Claims & Insurance,44,00:00.0
Advance Search Technical Staffing,Services,6272,00:00.0
Advance Search Technical Staffing,Services,12691,00:00.0
Advance Search Technical Staffing,Services,12160,00:00.0
Advance Search Technical Staffing,Services,40190,00:00.0
Advance Search Technical Staffing,Services,6840,00:00.0
Advance Search Technical Staffing,Services,15440,00:00.0
Advance Search Technical Staffing,Services,7600,00:00.0
Advance Search Technical Staffing,Services,27744,00:00.0
Advance Search Technical Staffing,Services,7600,00:00.0
Advance Search Technical Staffing,Services,7840,00:00.0
Advance Search Technical Staffing,Services,7600,00:00.0
Advance Search Technical Staffing,Services,7840,00:00.0
Advance Search Technical Staffing,Services,12576.5,00:00.0
Advance Search Technical Staffing,Services,11400,00:00.0
Advance Search Technical Staffing,Services,8673,00:00.0
Advance Search Technical Staffing,Services,8526.25,00:00.0
Advance Search Technical Staffing,Services,7644,00:00.0
Advance Search Technical Staffing,Services,14132,00:00.0
Advance Search Technical Staffing,Services,15734,00:00.0
Advance Search Technical Staffing,Services,9212,00:00.0
Advanced Orthopedic & Spine Care SC,Claims & Insurance,1000,00:00.0
Advanced Resources  Llc,Services,1468.4,00:00.0
Advanced Resources  Llc,Services,2900.09,00:00.0
"Advocate Court Reporters, LLC",Claims & Insurance,337.75,00:00.0
"Advocate Court Reporters, LLC",Claims & Insurance,373.7,00:00.0
"Advocate Court Reporters, LLC",Claims & Insurance,274.05,00:00.0
"Advocate Court Reporters, LLC",Claims & Insurance,315.9,00:00.0
Advocate Health and Hospitals Corp.,Claims & Insurance,500,00:00.0
Aecom Technical Services  Inc.,Capital Purchases,119922.62,00:00.0
Aecom Technical Services  Inc.,Capital Purchases,59961.31,00:00.0
Aecom Technical Services  Inc.,Capital Purchases,75435.92,00:00.0
Aecom Technical Services  Inc.,Capital Purchases,59961.31,00:00.0
Aecom Technical Services  Inc.,Capital Purchases,87900.57,00:00.0
Aecom Technical Services  Inc.,Capital Purchases,59961.31,00:00.0
Aecom Technical Services  Inc.,Capital Purchases,69249.29,00:00.0
Aecom Technical Services  Inc.,Capital Purchases,65380.44,00:00.0
Aecom Technical Services  Inc.,Capital Purchases,59961.31,00:00.0
Aecom Technical Services  Inc.,Capital Purchases,59961.31,00:00.0
Aecom Technical Services  Inc.,Capital Purchases,78021.36,00:00.0
Aecom Technical Services  Inc.,Capital Purchases,87532.06,00:00.0
Aecom Technical Services  Inc.,Capital Purchases,59961.31,00:00.0
Aecom Technical Services  Inc.,Capital Purchases,59961.31,00:00.0
Aecom Technical Services  Inc.,Capital Purchases,60283.08,00:00.0
Aecom Technical Services  Inc.,Capital Purchases,59961.31,00:00.0
Aecom Technical Services  Inc.,Capital Purchases,75513.7,00:00.0
Aecom Technical Services  Inc.,Capital Purchases,59961.31,00:00.0
Aed Superstore,Materials,10714,00:00.0
Aed Superstore,Materials,9560,00:00.0
Aed Superstore,Materials,20024,00:00.0
"Aerial Metrics, Inc.",Services,499,00:00.0
Afc International  Inc.,Services,538.05,00:00.0
Afc International  Inc.,Services,1227.64,00:00.0
Afc International  Inc.,Services,946.72,00:00.0
Afc International  Inc.,Services,275,00:00.0
"Ahead of Our Time Publishing, Inc.",Services,500,00:00.0
Aircraft & Commercial Enterprises Inc.,Capital Purchases,1694,00:00.0
Aircraft & Commercial Enterprises Inc.,Capital Purchases,1924,00:00.0
Aircraft & Commercial Enterprises Inc.,Capital Purchases,2340,00:00.0
Aircraft & Commercial Enterprises Inc.,Capital Purchases,585,00:00.0
Aircraft & Commercial Enterprises Inc.,Capital Purchases,585,00:00.0
Aircraft & Commercial Enterprises Inc.,Capital Purchases,2340,00:00.0
Aircraft & Commercial Enterprises Inc.,Capital Purchases,2340,00:00.0
Aircraft & Commercial Enterprises Inc.,Capital Purchases,4095,00:00.0
Aircraft & Commercial Enterprises Inc.,Capital Purchases,46.5,00:00.0
Aircraft & Commercial Enterprises Inc.,Capital Purchases,585,00:00.0
Aircraft & Commercial Enterprises Inc.,Capital Purchases,847,00:00.0
Aircraft & Commercial Enterprises Inc.,Capital Purchases,8985,00:00.0
Aircraft & Commercial Enterprises Inc.,Materials,789,00:00.0
Aircraft & Commercial Enterprises Inc.,Materials,899,00:00.0
Aircraft & Commercial Enterprises Inc.,Materials,789,00:00.0
Airgas,Materials,1961.17,00:00.0
Aka Comp Solutions  Inc.,Services,79910.05,00:00.0
Alan B. Bakotic,Services,245.28,00:00.0
Alan B. Bakotic,Services,24.8,00:00.0
Alan Ratliff,Services,97.66,00:00.0
Alan Ratliff,Services,385,00:00.0
Alan Ratliff,Services,362.82,00:00.0
Alan Ratliff,Services,956.46,00:00.0
Alan Ratliff,Services,843.96,00:00.0
Alan Ratliff,Services,309.54,00:00.0
Alan Ratliff,Services,535.48,00:00.0
Alan Ratliff,Services,95.08,00:00.0
Alan Ratliff,Services,570.22,00:00.0
Alan Ratliff,Services,275,00:00.0
Albertini Mfg. & Supply  Inc.,Capital Purchases,4900,00:00.0
Alcohol & Drug Testing Services Llc,Services,5536,00:00.0
Alcohol & Drug Testing Services Llc,Claims & Insurance,7631,00:00.0
Alcohol & Drug Testing Services Llc,Claims & Insurance,3979,00:00.0
Alcohol & Drug Testing Services Llc,Services,18336.5,00:00.0
Alcohol & Drug Testing Services Llc,Services,7957,00:00.0
Alesia S. Smith,Services,326.87,00:00.0
Alesia S. Smith,Services,239.41,00:00.0
Alesia S. Smith,Services,84.36,00:00.0
Alesia S. Smith,Services,404.1,00:00.0
Alesia S. Smith,Services,463.97,00:00.0
Alesia S. Smith,Services,358.56,00:00.0
Alesia S. Smith,Services,321.64,00:00.0
Alesia S. Smith,Services,400.7,00:00.0
Alesia S. Smith,Services,243.85,00:00.0
Alex Valenzuela,Services,35.84,00:00.0
Alex Valenzuela,Services,44.8,00:00.0
Alex Valenzuela,Services,137.76,00:00.0
Alex Valenzuela,Services,118.72,00:00.0
Alex Valenzuela,Services,138.88,00:00.0
Alex Valenzuela,Services,45.92,00:00.0
Alex Valenzuela,Services,71.68,00:00.0
Alex Valenzuela,Services,12.32,00:00.0
Alex Valenzuela,Services,143.36,00:00.0
Alexis Dawson,Services,193.2,00:00.0
Alexis Dawson,Services,11.16,00:00.0
Alexis Dawson,Services,23.52,00:00.0
Alfonso Becerra,Services,67.2,00:00.0
Alfred Benesch & Co.,Capital Purchases,106655.8,00:00.0
Alfred Benesch & Co.,Capital Purchases,25933.46,00:00.0
Alfred Benesch & Co.,Capital Purchases,1597019.32,00:00.0
Alfred Wade,Services,23.3,00:00.0
Alfred Wade,Services,49.85,00:00.0
All Covered It Services From Konica Minolta,Capital Purchases,247.5,00:00.0
All Covered It Services From Konica Minolta,Capital Purchases,247.5,00:00.0
All Covered It Services From Konica Minolta,Services,23035,00:00.0
All Covered It Services From Konica Minolta,Services,14195,00:00.0
All Covered It Services From Konica Minolta,Services,295,00:00.0
All Covered It Services From Konica Minolta,Capital Purchases,165,00:00.0
All Covered It Services From Konica Minolta,Services,3145,00:00.0
All Covered It Services From Konica Minolta,Services,1105,00:00.0
All Covered It Services From Konica Minolta,Services,16065,00:00.0
All Covered It Services From Konica Minolta,Capital Purchases,3768.6,00:00.0
All Covered It Services From Konica Minolta,Capital Purchases,1443.75,00:00.0
All Data,Services,1908,00:00.0
Allied 100 LLC,Materials,3476.14,00:00.0
Alstom Signaling  Inc.,Materials,1250,00:00.0
Alstom Signaling Operation  LLC,Services,357,00:00.0
Alstom Signaling Operation  LLC,Materials,16556.08,00:00.0
Alstom Signaling Operation  LLC,Materials,398.79,00:00.0
Alstom Signaling Operation  LLC,Services,593,00:00.0
Alstom Signaling Operation  LLC,Materials,63.8,00:00.0
Alstom Signaling Operation  LLC,Capital Purchases,44471,00:00.0
Alstom Signaling Operation  LLC,Materials,21231.74,00:00.0
Alstom Signaling Operation  LLC,Materials,4955.4,00:00.0
Alstom Signaling Operation  LLC,Capital Purchases,255199.83,00:00.0
Alstom Signaling Operation  LLC,Materials,71915.6,00:00.0
Alstom Signaling Operation  LLC,Materials,1844.88,00:00.0
Alstom Signaling Operation  LLC,Materials,4919.68,00:00.0
Alstom Signaling Operation  LLC,Materials,881.55,00:00.0
Alstom Signaling Operation  LLC,Materials,3636.84,00:00.0
Alstom Signaling Operation  LLC,Services,1449,00:00.0
Alstom Signaling Operation  LLC,Materials,2477.7,00:00.0
Alstom Signaling Operation  LLC,Materials,93630.2,00:00.0
Alstom Signaling Operation  LLC,Materials,5946.48,00:00.0
Alstom Signaling Operation  LLC,Materials,10691.44,00:00.0
Alstom Signaling Operation  LLC,Materials,3465.91,00:00.0
Alstom Signaling Operation  LLC,Materials,507.61,00:00.0
Alstom Signaling Operation  LLC,Materials,66.21,00:00.0
Alstom Signaling Operation  LLC,Materials,39678.96,00:00.0
Alstom Signaling Operation  LLC,Materials,1486.62,00:00.0
Alstom Signaling Operation  LLC,Capital Purchases,911692.58,00:00.0
Alstom Signaling Operation  LLC,Capital Purchases,6201.89,00:00.0
Alstom Signaling Operation  LLC,Materials,11424.07,00:00.0
Alstom Signaling Operation  LLC,Materials,1486.62,00:00.0
Alstom Signaling Operation  LLC,Materials,386.52,00:00.0
Alstom Signaling Operation  LLC,Materials,33365.35,00:00.0
Alstom Signaling Operation  LLC,Materials,667.8,00:00.0
Alstom Signaling Operation  LLC,Materials,18945.6,00:00.0
Alstom Signaling Operation  LLC,Materials,2477.7,00:00.0
Alstom Signaling Operation  LLC,Materials,398.79,00:00.0
Alstom Signaling Operation  LLC,Materials,1329.3,00:00.0
Alstom Signaling Operation  LLC,Materials,1970,00:00.0
Alstom Signaling Operation  LLC,Materials,3530.52,00:00.0
Alstom Signaling Operation  LLC,Materials,116.98,00:00.0
Alstom Signaling Operation  LLC,Materials,584.9,00:00.0
Alstom Signaling Operation  LLC,Materials,584.9,00:00.0
Alstom Signaling Operation  LLC,Materials,4456.17,00:00.0
Alstom Signaling Operation  LLC,Materials,494.5,00:00.0
Alstom Signaling Operation  LLC,Materials,6943.61,00:00.0
Alstom Signaling Operation  LLC,Materials,7420.32,00:00.0
Alstom Signaling Operation  LLC,Materials,2477.7,00:00.0
Alstom Signaling Operation LLC,Capital Purchases,1382.42,00:00.0
Alstom Signaling Operation LLC,Capital Purchases,73070.32,00:00.0
Alstom Signaling Operation LLC,Capital Purchases,1625.94,00:00.0
Alstom Signaling Operation LLC,Capital Purchases,16786.77,00:00.0
Alstom Signaling Operation LLC,Capital Purchases,13907.15,00:00.0
Alstom Signaling Operation LLC,Capital Purchases,2769.08,00:00.0
Alstom Signaling Operation LLC,Capital Purchases,1122.96,00:00.0
Alstom Signaling Operation LLC,Capital Purchases,8505.8,00:00.0
Alstom Signaling Operation LLC,Capital Purchases,3968.6,00:00.0
Alstom Signaling Operation LLC,Capital Purchases,1382.42,00:00.0
Alstom Signaling Operation LLC,Capital Purchases,8232.84,00:00.0
Alstom Signaling Operation LLC,Capital Purchases,36731.97,00:00.0
Alstom Signaling Operation LLC,Capital Purchases,4403.2,00:00.0
Alstom Signaling Operation LLC,Capital Purchases,259.46,00:00.0
Alstom Signaling Operation LLC,Materials,18308.55,00:00.0
Alstom Signaling Operation LLC,Capital Purchases,3489.56,00:00.0
Alstom Signaling Operation LLC,Capital Purchases,2392.66,00:00.0
Alstom Signaling Operation LLC,Capital Purchases,2795.77,00:00.0
Alstom Signaling Operation LLC,Capital Purchases,2131.06,00:00.0
Alstom Signaling Operation LLC,Capital Purchases,518.92,00:00.0
Alstom Signaling Operation LLC,Capital Purchases,1678.05,00:00.0
Alstom Signaling Operation LLC,Capital Purchases,1382.42,00:00.0
Alstom Signaling Operation LLC,Capital Purchases,6599.46,00:00.0
Alstom Signaling Operation LLC,Capital Purchases,66380.76,00:00.0
Alstom Signaling Operation LLC,Capital Purchases,66380.76,00:00.0
Alstom Signaling Operation LLC,Capital Purchases,66380.76,00:00.0
Alstom Signaling Operation LLC,Capital Purchases,1656.44,00:00.0
Alstom Signaling Operation LLC,Capital Purchases,10458.14,00:00.0
Alstom Signaling Operation LLC,Capital Purchases,1327.12,00:00.0
Alstom Signaling Operation LLC,Capital Purchases,16465.68,00:00.0
Alstom Signaling Operation LLC,Capital Purchases,23624.5,00:00.0
Alstom Signaling Operation LLC,Capital Purchases,1926.4,00:00.0
Alstom Signaling Operation LLC,Capital Purchases,11128.9,00:00.0
Alstom Signaling Operation LLC,Capital Purchases,73746.6,00:00.0
Alstom Signaling Operation LLC,Materials,73646.64,00:00.0
Alstom Signaling Operation LLC,Capital Purchases,828.22,00:00.0
Alstom Signaling Operation LLC,Capital Purchases,412.6,00:00.0
Alstom Signaling Operation LLC,Materials,374.32,00:00.0
Alstom Signaling Operation LLC,Capital Purchases,33101.51,00:00.0
Alstom Signaling Operation LLC,Capital Purchases,66380.76,00:00.0
Alstom Signaling Operation LLC,Capital Purchases,289.24,00:00.0
Alstom Signaling Operation LLC,Capital Purchases,187.16,00:00.0
Alstom Signaling Operation LLC,Capital Purchases,8829.35,00:00.0
Alstom Signaling Operation LLC,Capital Purchases,22967.22,00:00.0
Alstom Signaling Operation LLC,Capital Purchases,1015.38,00:00.0
Alstom Signaling Operation LLC,Capital Purchases,4564.02,00:00.0
Alstom Signaling Operation LLC,Materials,11539.14,00:00.0
Alstom Signaling Operation LLC,Capital Purchases,15687.21,00:00.0
Alstom Signaling Operation LLC,Capital Purchases,1664.2,00:00.0
Alstom Signaling Operation LLC,Materials,1335.38,00:00.0
Alstom Signaling Operation LLC,Capital Purchases,2881.61,00:00.0
Alstom Signaling Operation LLC,Capital Purchases,828.22,00:00.0
Alstom Signaling Operation LLC,Capital Purchases,670.76,00:00.0
Alstom Signaling Operation LLC,Capital Purchases,1688.68,00:00.0
Alstom Signaling Operation LLC,Capital Purchases,692.27,00:00.0
Alstom Signaling Operation LLC,Capital Purchases,67788.57,00:00.0
Alstom Signaling Operation LLC,Capital Purchases,915.59,00:00.0
Alstom Signaling Operation LLC,Capital Purchases,1743.81,00:00.0
Alstom Signaling Operation LLC,Capital Purchases,1831.18,00:00.0
Alstom Signaling Operation LLC,Capital Purchases,71874.3,00:00.0
Alstom Signaling Operation LLC,Capital Purchases,2416.04,00:00.0
Alstom Signaling Operation LLC,Capital Purchases,2073.63,00:00.0
Alstom Signaling Operation LLC,Capital Purchases,1486.08,00:00.0
Alstom Signaling Operation LLC,Capital Purchases,2409.66,00:00.0
Alstom Signaling Operation LLC,Capital Purchases,828.22,00:00.0
Alstom Signaling Operation LLC,Capital Purchases,1656.44,00:00.0
Alstom Signaling Operation LLC,Capital Purchases,1656.44,00:00.0
Alstom Signaling Operation LLC,Capital Purchases,12349.26,00:00.0
Alstom Signaling Operation LLC,Capital Purchases,15404.4,00:00.0
Alstom Signaling Operation LLC,Capital Purchases,2134.98,00:00.0
Alstom Signaling Operation LLC,Capital Purchases,1497.28,00:00.0
Alstom Signaling Operation LLC,Capital Purchases,1984.3,00:00.0
Alstom Signaling Operation LLC,Capital Purchases,374.32,00:00.0
Alstom Signaling Operation LLC,Capital Purchases,1252.68,00:00.0
Alstom Signaling Operation LLC,Capital Purchases,187.16,00:00.0
Alstom Signaling Operation LLC,Capital Purchases,1384.54,00:00.0
Alstom Signaling Operation LLC,Materials,1384.54,00:00.0
Alstom Signaling Operation LLC,Capital Purchases,1384.54,00:00.0
Alstom Signaling Operation LLC,Capital Purchases,148384.09,00:00.0
Alstom Signaling Operation LLC,Capital Purchases,132761.52,00:00.0
Alstom Signaling Operation LLC,Capital Purchases,5139.08,00:00.0
Alstom Signaling Operation LLC,Capital Purchases,1384.54,00:00.0
Alstom Signaling Operation LLC,Capital Purchases,692.27,00:00.0
Alstom Signaling Operation LLC,Capital Purchases,828.22,00:00.0
Alstom Signaling Operation LLC,Capital Purchases,22459.14,00:00.0
Alstom Signaling Operation LLC,Capital Purchases,10458.14,00:00.0
Alstom Signaling Operation LLC,Capital Purchases,3249.5,00:00.0
Alstom Signaling Operation LLC,Capital Purchases,825.6,00:00.0
Alstom Signaling Operation LLC,Capital Purchases,24569.48,00:00.0
Alstom Signaling Operation LLC,Capital Purchases,654.4,00:00.0
Alstom Signaling Operation LLC,Capital Purchases,515.36,00:00.0
Alstom Signaling Operation LLC,Capital Purchases,1625.8,00:00.0
Alstom Signaling Operation LLC,Capital Purchases,748.64,00:00.0
Alstom Transportation Inc.,Capital Purchases,324600,00:00.0
Alstom Transportation Inc.,Materials,148440.72,00:00.0
Alstom Transportation Inc.,Materials,101496.72,00:00.0
Alstom Transportation Inc.,Capital Purchases,324600,00:00.0
Alstom Transportation Inc.,Materials,304490.16,00:00.0
Alstom Transportation Inc.,Materials,2160,00:00.0
Alstom Transportation Inc.,Materials,46944,00:00.0
Alstom Transportation Inc.,Capital Purchases,78261117.38,00:00.0
Alstom Transportation Inc.,Materials,202993.44,00:00.0
Alstom Transportation Inc.,Capital Purchases,15652226,00:00.0
Alstom Transportation Inc.,Capital Purchases,324600,00:00.0
Alstom Transportation Inc.,Materials,148382.76,00:00.0
Alstom Transportation Inc.,Services,2002,00:00.0
Alstom Transportation Inc.,Capital Purchases,324600,00:00.0
Alstom Transportation Inc.,Materials,52836.96,00:00.0
Alstom Transportation Inc.,Capital Purchases,324600,00:00.0
"Alta Construction Equipment Illinois, LLC",Materials,32539.89,00:00.0
Alta Equipment,Services,600,00:00.0
Alta Equipment,Materials,238.67,00:00.0
Alta Equipment,Materials,477.34,00:00.0
Alta Equipment,Materials,212.64,00:00.0
Alta Equipment,Materials,238.67,00:00.0
Alta Equipment,Materials,1094.16,00:00.0
Alta Equipment,Materials,539.24,00:00.0
Alternate Power  Inc.,Services,1524.69,00:00.0
Alternate Power  Inc.,Services,921.98,00:00.0
Alternate Power  Inc.,Services,208.25,00:00.0
Alternate Power  Inc.,Services,739.2,00:00.0
Alternate Power  Inc.,Services,431,00:00.0
Alternate Power  Inc.,Services,2486.92,00:00.0
Alternate Power  Inc.,Services,2568.32,00:00.0
Alternate Power  Inc.,Services,3340.78,00:00.0
Alternate Power  Inc.,Services,1652.92,00:00.0
Alternate Power  Inc.,Services,1892.13,00:00.0
Alternate Power  Inc.,Services,3302.32,00:00.0
Alternate Power  Inc.,Services,590.1,00:00.0
Alternate Power  Inc.,Materials,6.49,00:00.0
Alternate Power  Inc.,Services,565.52,00:00.0
Alternate Power  Inc.,Services,921.19,00:00.0
Alternate Power  Inc.,Services,853.2,00:00.0
Alternate Power  Inc.,Services,2841.09,00:00.0
Alternate Power  Inc.,Services,2025.55,00:00.0
Alternate Power  Inc.,Services,1892.88,00:00.0
Alternate Power  Inc.,Services,3374.42,00:00.0
Altorfer Industries Inc.,Materials,87.99,00:00.0
Altorfer Industries Inc.,Materials,1222.31,00:00.0
Altorfer Industries Inc.,Materials,40.82,00:00.0
Altorfer Industries Inc.,Materials,5793.01,00:00.0
Altorfer Industries Inc.,Materials,170.53,00:00.0
Altorfer Industries Inc.,Materials,4400,00:00.0
Altorfer Industries Inc.,Materials,455.52,00:00.0
Altorfer Industries Inc.,Materials,145.11,00:00.0
Altorfer Industries Inc.,Materials,2200,00:00.0
Altorfer Industries Inc.,Materials,1376.25,00:00.0
Altorfer Industries Inc.,Materials,397.5,00:00.0
Altorfer Industries Inc.,Materials,268.03,00:00.0
Altorfer Industries Inc.,Materials,457.02,00:00.0
Altorfer Industries Inc.,Materials,4147.41,00:00.0
Altorfer Industries Inc.,Materials,290.22,00:00.0
Altorfer Industries Inc.,Materials,6963.05,00:00.0
Altorfer Industries Inc.,Materials,3371.8,00:00.0
Altorfer Industries Inc.,Materials,16.31,00:00.0
Altorfer Industries Inc.,Services,7.26,00:00.0
Altorfer Industries Inc.,Materials,48.47,00:00.0
Altorfer Industries Inc.,Materials,2046.75,00:00.0
Altorfer Industries Inc.,Materials,204.8,00:00.0
Altorfer Industries Inc.,Materials,1128.56,00:00.0
Altorfer Industries Inc.,Materials,224.43,00:00.0
Alvarez  Inc.,Services,1172,00:00.0
Alvarez  Inc.,Materials,1714,00:00.0
Alvarez  Inc.,Services,2212,00:00.0
Alvarez  Inc.,Services,1538,00:00.0
Alvarez  Inc.,Services,1020,00:00.0
Alvarez  Inc.,Services,1020,00:00.0
Alvarez  Inc.,Services,2212,00:00.0
Alvarez  Inc.,Services,1538,00:00.0
Alvarez  Inc.,Services,600,00:00.0
Alvarez  Inc.,Services,900,00:00.0
Alvarez  Inc.,Services,4424,00:00.0
Alvarez  Inc.,Services,2040,00:00.0
Alvarez  Inc.,Services,540,00:00.0
Alvarez  Inc.,Services,3076,00:00.0
Alvarez  Inc.,Services,2812,00:00.0
Alvarez  Inc.,Services,1020,00:00.0
Alvarez  Inc.,Services,540,00:00.0
Alvarez  Inc.,Services,1538,00:00.0
Alvarez  Inc.,Services,540,00:00.0
Alvin Newman,Services,29.12,00:00.0
Alvin Newman,Services,253.12,00:00.0
Alvin Newman,Services,88.48,00:00.0
Alvin Newman,Services,117.6,00:00.0
Alvin Newman,Services,212.8,00:00.0
Alvin Newman,Services,47.04,00:00.0
Alvin T. Terry,Services,1226.12,00:00.0
Alvin T. Terry,Services,1208,00:00.0
Alvin T. Terry,Services,2416,00:00.0
Alyssa M. Battaglia-Hofmann,Services,125.35,00:00.0
Alyssa M. Battaglia-Hofmann,Services,16.05,00:00.0
Amalgamated Services  Inc.,Services,840,00:00.0
Amazon.Com/Tool Crib,Materials,9937.98,00:00.0
Amazon.Com/Tool Crib,Materials,1247.87,00:00.0
Amazon.Com/Tool Crib,Materials,2579.98,00:00.0
Amazon.Com/Tool Crib,Materials,1175,00:00.0
Amazon.Com/Tool Crib,Services,99.03,00:00.0
Amazon.Com/Tool Crib,Materials,2636,00:00.0
Amazon.Com/Tool Crib,Materials,207.84,00:00.0
Amazon.Com/Tool Crib,Materials,110.64,00:00.0
Amazon.Com/Tool Crib,Materials,527.95,00:00.0
Amazon.Com/Tool Crib,Materials,129,00:00.0
Amazon.Com/Tool Crib,Materials,618,00:00.0
Amazon.Com/Tool Crib,Materials,37.59,00:00.0
Amazon.Com/Tool Crib,Materials,7085.47,00:00.0
Amazon.Com/Tool Crib,Materials,3376.4,00:00.0
Amazon.Com/Tool Crib,Materials,119,00:00.0
Amazon.Com/Tool Crib,Materials,3234.12,00:00.0
Amazon.Com/Tool Crib,Services,134.56,00:00.0
Amazon.Com/Tool Crib,Materials,5390.2,00:00.0
Amazon.Com/Tool Crib,Materials,173.94,00:00.0
Amazon.Com/Tool Crib,Materials,560.67,00:00.0
Amazon.Com/Tool Crib,Services,41.85,00:00.0
Amazon.Com/Tool Crib,Materials,74.99,00:00.0
Amber Spencer,Services,60,00:00.0
Amber Spencer,Services,231,00:00.0
Amber Spencer,Services,705.39,00:00.0
Amber Spencer,Services,10,00:00.0
Amercian Welding Society  Inc.,Services,27.9,00:00.0
Amercian Welding Society  Inc.,Services,1104,00:00.0
American Building Services  Llc,Materials,2984.12,00:00.0
American Building Services  Llc,Services,3994,00:00.0
American Building Services  Llc,Materials,2051.89,00:00.0
American Building Services  Llc,Services,2852.8,00:00.0
American Building Services  Llc,Services,2582.49,00:00.0
American Building Services  Llc,Materials,4909.1,00:00.0
American Calibration  Inc.,Services,1254,00:00.0
American Calibration  Inc.,Services,264,00:00.0
American Calibration  Inc.,Services,132,00:00.0
American Calibration  Inc.,Services,66,00:00.0
American Calibration  Inc.,Services,264,00:00.0
American Calibration  Inc.,Services,396,00:00.0
American Calibration  Inc.,Services,264,00:00.0
American Calibration  Inc.,Materials,66,00:00.0
American Calibration  Inc.,Services,132,00:00.0
American Calibration  Inc.,Services,66,00:00.0
American Calibration  Inc.,Services,132,00:00.0
American Calibration  Inc.,Services,66,00:00.0
American Calibration  Inc.,Services,1011.63,00:00.0
American Calibration  Inc.,Services,462,00:00.0
American Calibration  Inc.,Services,66,00:00.0
American Calibration  Inc.,Services,429,00:00.0
American Calibration  Inc.,Services,3,00:00.0
American Calibration  Inc.,Services,396,00:00.0
American Calibration  Inc.,Services,66,00:00.0
American Calibration  Inc.,Services,43.6,00:00.0
American Calibration  Inc.,Services,132,00:00.0
American Calibration  Inc.,Services,66,00:00.0
American Calibration  Inc.,Materials,198,00:00.0
American Calibration  Inc.,Services,1323.3,00:00.0
American Calibration  Inc.,Materials,462,00:00.0
American Calibration  Inc.,Services,66,00:00.0
American Calibration  Inc.,Services,66,00:00.0
American Calibration  Inc.,Services,66,00:00.0
American Calibration  Inc.,Services,259,00:00.0
American Calibration  Inc.,Services,197.4,00:00.0
American Calibration  Inc.,Services,924,00:00.0
American Calibration  Inc.,Services,264,00:00.0
American Calibration  Inc.,Services,61,00:00.0
American Calibration  Inc.,Services,132,00:00.0
American Calibration  Inc.,Services,198,00:00.0
American Calibration  Inc.,Services,528,00:00.0
American Calibration  Inc.,Services,396,00:00.0
American Calibration  Inc.,Services,600.3,00:00.0
American Calibration  Inc.,Services,264,00:00.0
American Calibration  Inc.,Services,345,00:00.0
American Calibration  Inc.,Services,66,00:00.0
American Calibration  Inc.,Services,132,00:00.0
American Calibration  Inc.,Services,264,00:00.0
American Calibration  Inc.,Services,66,00:00.0
American Calibration  Inc.,Services,66,00:00.0
American Graphics Institute,Services,556,00:00.0
American Payroll Association,Services,297,00:00.0
American Payroll Association,Services,1115,00:00.0
American Planning Assn.,Services,668,00:00.0
American Planning Assn.,Services,100,00:00.0
American Planning Assn.,Services,668,00:00.0
American Public Transit Assoc.,Services,975,00:00.0
American Public Transportation Ass Meeting Department Apta,Services,750,00:00.0
American Public Transportation Ass Meeting Department Apta,Services,195,00:00.0
American Public Transportation Ass Meeting Department Apta,Services,395,00:00.0
American Recycling & Disposal  Inc.,Capital Purchases,27141.84,00:00.0
American Recycling & Disposal  Inc.,Capital Purchases,17330.68,00:00.0
American Recycling & Disposal  Inc.,Services,10906.3,00:00.0
American Recycling & Disposal  Inc.,Capital Purchases,25567.28,00:00.0
American Recycling & Disposal  Inc.,Services,12433.52,00:00.0
American Recycling & Disposal  Inc.,Services,1217.28,00:00.0
American Recycling & Disposal  Inc.,Capital Purchases,2697.38,00:00.0
American Recycling & Disposal  Inc.,Capital Purchases,8862.48,00:00.0
American Recycling & Disposal  Inc.,Capital Purchases,9814.92,00:00.0
American Recycling & Disposal  Inc.,Capital Purchases,6610.16,00:00.0
American Solutions For Business,Materials,5667.84,00:00.0
American Solutions For Business,Services,18286.8,00:00.0
American Solutions For Business,Services,31190.28,00:00.0
American Solutions For Business,Services,14071.24,00:00.0
American Solutions For Business,Services,12204.15,00:00.0
American Solutions For Business,Services,22739.7,00:00.0
American Solutions For Business,Services,78935.36,00:00.0
American Solutions For Business,Services,6922.3,00:00.0
American Solutions For Business,Services,954.8,00:00.0
American Welding Society,Services,790,00:00.0
Amerigas,Materials,689.96,00:00.0
Amerigas,Materials,226.71,00:00.0
Amerigas,Materials,166.46,00:00.0
Amerigas,Materials,304.45,00:00.0
Amerigas,Materials,803.11,00:00.0
Amerigas,Materials,381.13,00:00.0
Amerigas,Materials,2365.78,00:00.0
Amerigas,Materials,114.65,00:00.0
Amerigas,Materials,290.11,00:00.0
Amerigas,Materials,550.5,00:00.0
Amerigas,Materials,486.78,00:00.0
Amerigas,Materials,287.28,00:00.0
Amerigas,Materials,197.51,00:00.0
Amerigas,Materials,2940.67,00:00.0
Amerigas,Materials,257.61,00:00.0
Amerigas,Materials,639.27,00:00.0
Amerigas,Materials,1212.39,00:00.0
Amerigas,Materials,616.74,00:00.0
Amerigas,Materials,323.14,00:00.0
Amerigas,Materials,365.72,00:00.0
Amerigas,Materials,184.43,00:00.0
Amerigas,Materials,194.41,00:00.0
Amerigas,Materials,264.49,00:00.0
Amerigas,Materials,193.69,00:00.0
Amerigas,Services,225.05,00:00.0
Amerigas,Materials,110,00:00.0
Amerigas,Materials,256.02,00:00.0
Amerigas,Materials,145.99,00:00.0
Amerigas,Materials,276.18,00:00.0
Amerigas,Materials,393.22,00:00.0
Amit Agarwal MD Corp,Claims & Insurance,1000,00:00.0
"Amsted Rail Company, Inc.",Capital Purchases,39600,00:00.0
"Amsted Rail Company, Inc.",Capital Purchases,39600,00:00.0
"Amsted Rail Company, Inc.",Capital Purchases,3405,00:00.0
"Amsted Rail Company, Inc.",Services,4720,00:00.0
"Amsted Rail Company, Inc.",Capital Purchases,49140,00:00.0
Analytic Systems,Materials,4386,00:00.0
Analytic Systems,Materials,8772,00:00.0
Analytic Systems,Materials,2073.7,00:00.0
Analytic Systems,Materials,4386,00:00.0
Analytic Systems,Materials,3359.6,00:00.0
Analytic Systems,Materials,2711,00:00.0
Analytic Systems,Materials,694.5,00:00.0
Anchor Brake Shoe Co.,Materials,29244.6,00:00.0
Anchor Brake Shoe Co.,Materials,8355.6,00:00.0
Anchor Brake Shoe Co.,Materials,15986.7,00:00.0
Anchor Brake Shoe Co.,Materials,24300,00:00.0
Anchor Brake Shoe Co.,Materials,14622.3,00:00.0
Anchor Brake Shoe Co.,Materials,12533.4,00:00.0
Anchor Brake Shoe Co.,Materials,14580,00:00.0
Anchor Brake Shoe Co.,Materials,12533.4,00:00.0
Anchor Brake Shoe Co.,Materials,8355.6,00:00.0
Anchor Brake Shoe Co.,Materials,8355.6,00:00.0
Anchor Brake Shoe Co.,Materials,18800.1,00:00.0
Anchor Brake Shoe Co.,Materials,4177.8,00:00.0
Anchor Brake Shoe Co.,Materials,14580,00:00.0
Anchor Brake Shoe Co.,Materials,6266.7,00:00.0
Anchor Brake Shoe Co.,Materials,3312.7,00:00.0
Anchor Brake Shoe Co.,Materials,11309.6,00:00.0
Anchor Brake Shoe Co.,Materials,14622.3,00:00.0
Anchor Brake Shoe Co.,Materials,14622.3,00:00.0
Anchor Brake Shoe Co.,Materials,22977.9,00:00.0
Anderson Lock Co.,Materials,1352.4,00:00.0
Anderson Lock Co.,Materials,1352.4,00:00.0
Anderson Lock Co.,Materials,1932,00:00.0
Anderson Lock Co.,Materials,644,00:00.0
Andre Hunt,Services,51.74,00:00.0
Andre Hunt,Services,398.56,00:00.0
Andre Hunt,Services,152.5,00:00.0
Andre R. Feliciano,Services,44.8,00:00.0
Andre R. Feliciano,Services,80.64,00:00.0
Andre R. Feliciano,Services,35.84,00:00.0
Andrea Clark,Services,106.4,00:00.0
Andrea D. Peek,Services,244.95,00:00.0
Andrew D. Garibay,Services,22.4,00:00.0
Andrew Grigg,Services,3546.2,00:00.0
Andrew L. Taylor,Services,98.56,00:00.0
Angelo Cockrell,Services,41.44,00:00.0
Anita Ayala-Ortega,Services,33.6,00:00.0
Anita Ayala-Ortega,Services,33.6,00:00.0
Anita Ayala-Ortega,Services,90.72,00:00.0
Anita Ayala-Ortega,Services,67.2,00:00.0
Anita Ayala-Ortega,Services,103.04,00:00.0
Anita Ayala-Ortega,Services,39.2,00:00.0
Anita Ayala-Ortega,Services,57.57,00:00.0
Anita Ayala-Ortega,Services,74.26,00:00.0
Anita Ayala-Ortega,Services,33.6,00:00.0
Anita Ayala-Ortega,Services,33.6,00:00.0
Anita Ayala-Ortega,Services,100.8,00:00.0
Anita Ayala-Ortega,Services,51.52,00:00.0
Anita Ayala-Ortega,Services,59.58,00:00.0
Anita Ayala-Ortega,Services,33.6,00:00.0
Anita Ayala-Ortega,Services,23.52,00:00.0
Anita Ayala-Ortega,Services,51.52,00:00.0
Anita Ayala-Ortega,Services,33.6,00:00.0
Anita Ortega,Claims & Insurance,4000,00:00.0
Anthony B. Davis,Services,13.44,00:00.0
Anthony B. Davis,Services,33.6,00:00.0
Anthony B. Davis,Services,33.6,00:00.0
Anthony Cintron,Services,47.04,00:00.0
Anthony Cintron,Services,23.52,00:00.0
Anthony Cintron,Services,41.44,00:00.0
Anthony Cintron,Services,124.32,00:00.0
Anthony Cintron,Services,6.72,00:00.0
Aon Risk Services  Inc. Of Maryland,Claims & Insurance,26053,00:00.0
Aon Risk Services  Inc. Of Maryland,Claims & Insurance,52446,00:00.0
Appalachian Timber Services LLC,Materials,50175,00:00.0
Appalachian Timber Services LLC,Materials,16725,00:00.0
Appalachian Timber Services LLC,Materials,16800,00:00.0
Appalachian Timber Services LLC,Materials,16725,00:00.0
Appalachian Timber Services LLC,Materials,16800,00:00.0
Apperson  Inc,Services,494,00:00.0
Apperson  Inc,Services,59.2,00:00.0
Applied Industrial Technologies,Materials,1655.42,00:00.0
Applied Industrial Technologies,Materials,3183.5,00:00.0
Aql Technologies  Inc.,Services,16720,00:00.0
Aql Technologies  Inc.,Services,17600,00:00.0
Aql Technologies  Inc.,Services,19360,00:00.0
Aql Technologies  Inc.,Services,34320,00:00.0
Aql Technologies  Inc.,Services,39600,00:00.0
Aql Technologies  Inc.,Services,17600,00:00.0
Aqua Illinois,Utilities,163.73,00:00.0
Aqua Illinois,Utilities,39.46,00:00.0
Aqua Illinois,Utilities,83.91,00:00.0
Aqua Illinois,Utilities,85.15,00:00.0
Aqua Illinois,Utilities,86.74,00:00.0
Aqua Illinois,Utilities,83.74,00:00.0
Aqua Illinois,Utilities,84.15,00:00.0
Aqua Illinois,Utilities,95.03,00:00.0
Aqua Illinois,Utilities,95.93,00:00.0
Arc Document Solutions LLC,Materials,2463.34,00:00.0
Arcadis Us  Inc.,Capital Purchases,4775.56,00:00.0
Arcadis Us  Inc.,Capital Purchases,19074.25,00:00.0
Arcadis Us  Inc.,Capital Purchases,64270.93,00:00.0
Arcadis Us  Inc.,Capital Purchases,2780.17,00:00.0
Arcadis Us  Inc.,Capital Purchases,16037.69,00:00.0
Arcadis Us  Inc.,Capital Purchases,67625.67,00:00.0
Arcadis Us  Inc.,Capital Purchases,9824.11,00:00.0
Arcadis Us  Inc.,Capital Purchases,26826.99,00:00.0
Arcadis Us  Inc.,Capital Purchases,37796.54,00:00.0
Arcadis Us  Inc.,Capital Purchases,8264.88,00:00.0
Arcadis Us  Inc.,Capital Purchases,90933.44,00:00.0
Arcadis Us  Inc.,Capital Purchases,16791.9,00:00.0
Arcadis Us  Inc.,Capital Purchases,8224.85,00:00.0
Arcadis Us  Inc.,Capital Purchases,25431.98,00:00.0
Arcadis Us  Inc.,Capital Purchases,72877.43,00:00.0
Arcadis Us  Inc.,Capital Purchases,6905.02,00:00.0
Arcadis Us  Inc.,Capital Purchases,128475.99,00:00.0
Arcadis Us  Inc.,Capital Purchases,45528.7,00:00.0
Arcadis Us  Inc.,Capital Purchases,11908.15,00:00.0
Arcadis Us  Inc.,Capital Purchases,59275.16,00:00.0
Arcadis Us  Inc.,Capital Purchases,55081.01,00:00.0
Arcadis Us  Inc.,Capital Purchases,11977.01,00:00.0
Arcadis Us  Inc.,Capital Purchases,8440.53,00:00.0
Arcadis Us  Inc.,Capital Purchases,40845.61,00:00.0
Arcadis Us  Inc.,Capital Purchases,22375.48,00:00.0
Arcadis Us  Inc.,Capital Purchases,4352.38,00:00.0
Arcadis Us  Inc.,Capital Purchases,52369.17,00:00.0
Arema,Services,390,00:00.0
Arema,Services,390,00:00.0
Arema,Services,195,00:00.0
Argo Inc.,Services,81700,00:00.0
Argo Inc.,Services,76475,00:00.0
Argo Inc.,Services,117800,00:00.0
Argo Inc.,Services,152475,00:00.0
Argo Inc.,Services,30400,00:00.0
"Argon Electric Company, Inc.",Capital Purchases,45100,00:00.0
Arinc,Capital Purchases,5513,00:00.0
Arlington Park Racecourse Llc Churchill Downs Inc.,Rental Expense,20815.56,00:00.0
Arlington Park Racecourse Llc Churchill Downs Inc.,Rental Expense,20815.56,00:00.0
Arlington Park Racecourse Llc Churchill Downs Inc.,Rental Expense,20815.56,00:00.0
Arlington Park Racecourse Llc Churchill Downs Inc.,Rental Expense,20815.56,00:00.0
Arlington Park Racecourse Llc Churchill Downs Inc.,Rental Expense,20815.56,00:00.0
Arlington Park Racecourse Llc Churchill Downs Inc.,Rental Expense,20815.56,00:00.0
Arlington Park Racecourse Llc Churchill Downs Inc.,Rental Expense,20815.56,00:00.0
Arlington Park Racecourse Llc Churchill Downs Inc.,Rental Expense,20815.56,00:00.0
Arlington Park Racecourse Llc Churchill Downs Inc.,Rental Expense,20815.56,00:00.0
Arlington Park Racecourse Llc Churchill Downs Inc.,Rental Expense,20815.56,00:00.0
"ARM Camco, LLC",Capital Purchases,10194,00:00.0
"Armored Roi Services, Inc",Claims & Insurance,118.29,00:00.0
"Armored Roi Services, Inc",Claims & Insurance,34.7,00:00.0
Arnold Maxey,Services,283.25,00:00.0
Arnold Maxey,Services,299.58,00:00.0
Arnold Maxey,Services,81.31,00:00.0
Arnold Maxey,Services,260.85,00:00.0
Arnold Maxey,Services,270.26,00:00.0
Arnold Maxey,Services,188.94,00:00.0
Arnold Maxey,Services,296.13,00:00.0
Arnold Maxey,Services,182.11,00:00.0
Arnold Maxey,Services,125.1,00:00.0
Arnold Maxey,Services,245.84,00:00.0
Arnold Maxey,Services,345.74,00:00.0
Arnold Maxey,Services,242.37,00:00.0
Arnold Maxey,Services,242.37,00:00.0
Arnold Maxey,Services,337.79,00:00.0
Arnold Maxey,Services,341.6,00:00.0
Arnold Maxey,Services,313.71,00:00.0
Arnold Maxey,Services,280.22,00:00.0
Ars Corp.,Services,10912.8,00:00.0
Ars Corp.,Services,10912.8,00:00.0
Ars Corp.,Services,3637.6,00:00.0
Ars Corp.,Services,20975.92,00:00.0
Ars Corp.,Services,12839.2,00:00.0
Ars Corp.,Services,443.52,00:00.0
Ars Corp.,Services,21938.48,00:00.0
Ars Corp.,Services,7275.2,00:00.0
Ars Corp.,Services,1872,00:00.0
Ars Corp.,Services,39813,00:00.0
Ars Corp.,Services,7275.2,00:00.0
Ars Corp.,Services,24248.32,00:00.0
Arthur J Gallagher Risk Management Risk Management Services  Inc.,Claims & Insurance,1191114,00:00.0
Arthur J Gallagher Risk Management Risk Management Services  Inc.,Claims & Insurance,172277,00:00.0
Arthur J Gallagher Risk Management Risk Management Services  Inc.,Claims & Insurance,125,00:00.0
Arthur J Gallagher Risk Management Risk Management Services  Inc.,Claims & Insurance,8614,00:00.0
Arthur J Gallagher Risk Management Risk Management Services  Inc.,Claims & Insurance,93870,00:00.0
Arthur J Gallagher Risk Management Risk Management Services  Inc.,Claims & Insurance,33613,00:00.0
Arthur J Gallagher Risk Management Risk Management Services  Inc.,Claims & Insurance,21338,00:00.0
Arthur J Gallagher Risk Management Risk Management Services  Inc.,Claims & Insurance,607861,00:00.0
Arthur J Gallagher Risk Management Risk Management Services  Inc.,Claims & Insurance,47048,00:00.0
Arthur J Gallagher Risk Management Risk Management Services  Inc.,Claims & Insurance,33317,00:00.0
Arthur J Gallagher Risk Management Risk Management Services  Inc.,Claims & Insurance,1431,00:00.0
Arthur J Gallagher Risk Management Risk Management Services  Inc.,Claims & Insurance,16918,00:00.0
Arthur J Gallagher Risk Management Risk Management Services  Inc.,Claims & Insurance,151707,00:00.0
Arthur J Gallagher Risk Management Risk Management Services  Inc.,Claims & Insurance,527740,00:00.0
Arthur J Gallagher Risk Management Risk Management Services  Inc.,Claims & Insurance,2488997.6,00:00.0
Arthur J Gallagher Risk Management Risk Management Services  Inc.,Claims & Insurance,138212,00:00.0
Arthur J Gallagher Risk Management Risk Management Services  Inc.,Claims & Insurance,1188355.27,00:00.0
Arthur J Gallagher Risk Management Risk Management Services  Inc.,Claims & Insurance,1876525,00:00.0
Arthur J Gallagher Risk Management Risk Management Services  Inc.,Claims & Insurance,1608349.34,00:00.0
Arthur J Gallagher Risk Management Risk Management Services  Inc.,Claims & Insurance,340,00:00.0
Arthur J Gallagher Risk Management Risk Management Services  Inc.,Claims & Insurance,58839,00:00.0
Arthur J Gallagher Risk Management Risk Management Services  Inc.,Claims & Insurance,95952,00:00.0
Arturo J Mota,Services,114.69,00:00.0
Arturo J Mota,Services,87.47,00:00.0
Arturo J Mota,Services,108.7,00:00.0
Arturo J Mota,Services,208.6,00:00.0
Arturo J Mota,Services,584.58,00:00.0
Arturo J Mota,Services,500.64,00:00.0
Arturo J Mota,Services,569.07,00:00.0
Arturo J Mota,Services,393.74,00:00.0
Asas/Tysol  Inc.,Materials,6480,00:00.0
Asas/Tysol  Inc.,Materials,3240,00:00.0
ASCO Power Services Inc,Materials,6590.42,00:00.0
Asis International,Services,195,00:00.0
ASNT,Services,150,00:00.0
"Asplundh Tree Expert, LLC",Services,61241.94,00:00.0
"Asplundh Tree Expert, LLC",Services,41305.48,00:00.0
"Asplundh Tree Expert, LLC",Services,24701.35,00:00.0
"Asplundh Tree Expert, LLC",Services,36769.04,00:00.0
"Asplundh Tree Expert, LLC",Services,28034.16,00:00.0
"Asplundh Tree Expert, LLC",Services,16853.87,00:00.0
ASQ,Services,169,00:00.0
ASQ,Services,749,00:00.0
ASQ,Services,749,00:00.0
ASQ,Services,169,00:00.0
Assn. Of American Railroads (AAR),Services,84375,00:00.0
Assn. Of American Railroads (AAR),Services,3926,00:00.0
Assn. Of American Railroads (AAR),Services,3926,00:00.0
Assn. Of American Railroads (AAR),Capital Purchases,18051.84,00:00.0
Assn. Of American Railroads (AAR),Services,3926,00:00.0
Assn. Of American Railroads (AAR),Services,3926,00:00.0
Assn. Of American Railroads (AAR),Services,108601,00:00.0
Assn. Of American Railroads (AAR),Services,3926,00:00.0
Assn. Of American Railroads (AAR),Services,3926,00:00.0
Assn. Of American Railroads (AAR),Services,3926,00:00.0
Assn. Of American Railroads (AAR),Services,53,00:00.0
Assn. Of American Railroads (AAR),Services,3578,00:00.0
Assn. Of American Railroads (AAR),Services,3926,00:00.0
Assn. Of American Railroads (AAR),Services,3926,00:00.0
Assn. Of American Railroads (AAR),Services,3926,00:00.0
Association for Financial Professionals,Services,495,00:00.0
Association for Financial Professionals,Services,605,00:00.0
Association of Government Accountants,Services,137,00:00.0
AT & T,Utilities,4793.41,00:00.0
AT & T,Utilities,6234.03,00:00.0
AT & T,Utilities,2266.74,00:00.0
AT & T,Utilities,14303.83,00:00.0
AT & T,Utilities,3480,00:00.0
AT & T,Utilities,3294.14,00:00.0
AT & T,Utilities,343.78,00:00.0
AT & T,Utilities,6171.36,00:00.0
AT & T,Utilities,448433.92,00:00.0
AT & T,Utilities,2266.74,00:00.0
AT & T,Utilities,624.24,00:00.0
AT & T,Utilities,7615.08,00:00.0
AT & T,Utilities,17729.9,00:00.0
AT & T,Utilities,1221.4,00:00.0
AT & T,Utilities,13245.02,00:00.0
AT & T,Utilities,2918,00:00.0
AT & T,Utilities,38105.22,00:00.0
AT & T,Utilities,40622.54,00:00.0
AT & T,Utilities,4793.41,00:00.0
AT & T,Utilities,12606.12,00:00.0
AT & T,Utilities,3926.3,00:00.0
AT & T,Utilities,8691.5,00:00.0
AT & T,Utilities,2918,00:00.0
AT & T,Utilities,2642.3,00:00.0
AT & T,Utilities,40622.54,00:00.0
AT & T,Utilities,343.78,00:00.0
AT & T,Utilities,12606.12,00:00.0
AT & T,Utilities,590.01,00:00.0
AT & T,Utilities,782553.28,00:00.0
AT & T,Utilities,2744.8,00:00.0
AT & T,Utilities,794.99,00:00.0
AT & T,Utilities,64451.21,00:00.0
AT & T,Utilities,1221.4,00:00.0
AT & T,Utilities,8215.34,00:00.0
AT & T,Utilities,9242.67,00:00.0
AT & T,Utilities,67790.1,00:00.0
AT & T,Utilities,38021.27,00:00.0
AT & T,Utilities,17729.9,00:00.0
AT & T,Utilities,3928.39,00:00.0
AT & T,Utilities,840.36,00:00.0
AT & T,Utilities,3294.14,00:00.0
AT & T,Utilities,6622.57,00:00.0
AT & T,Utilities,4354,00:00.0
AT & T,Utilities,39186.54,00:00.0
AT & T,Utilities,3480,00:00.0
AT & T,Utilities,454714.83,00:00.0
AT & T,Utilities,13427.57,00:00.0
AT & T,Utilities,4469.04,00:00.0
AT & T,Utilities,9806.13,00:00.0
AT & T,Utilities,3480,00:00.0
AT & T,Utilities,6289.03,00:00.0
AT & T,Utilities,2289.41,00:00.0
AT & T,Utilities,3990.81,00:00.0
AT & T,Utilities,7615.08,00:00.0
AT & T,Utilities,2246.21,00:00.0
AT & T,Utilities,6423.57,00:00.0
AT & T,Utilities,873.65,00:00.0
AT & T,Utilities,2676.87,00:00.0
AT & T,Utilities,8234.85,00:00.0
AT & T,Utilities,60464.36,00:00.0
AT & T,Utilities,592.31,00:00.0
AT & T,Utilities,343.78,00:00.0
AT & T,Utilities,38766.03,00:00.0
AT & T,Utilities,15816.52,00:00.0
AT & T,Utilities,7615.08,00:00.0
AT & T,Utilities,13976.04,00:00.0
AT & T,Utilities,3972.07,00:00.0
AT & T,Utilities,7615.08,00:00.0
AT & T,Utilities,2275.27,00:00.0
AT & T,Utilities,2279.69,00:00.0
AT & T,Utilities,13435.63,00:00.0
AT & T,Utilities,1221.4,00:00.0
AT & T,Utilities,2289.41,00:00.0
AT & T,Utilities,10753.04,00:00.0
AT & T,Utilities,482397.04,00:00.0
AT & T,Utilities,14926.23,00:00.0
AT & T,Utilities,885.83,00:00.0
AT & T,Utilities,590.01,00:00.0
AT & T,Utilities,4970.67,00:00.0
AT & T,Utilities,3480,00:00.0
AT & T,Utilities,343.78,00:00.0
AT & T,Utilities,8886.93,00:00.0
AT & T,Utilities,6577.16,00:00.0
AT & T,Utilities,5863.98,00:00.0
AT & T,Utilities,480943.94,00:00.0
AT & T,Utilities,4970.67,00:00.0
AT & T,Utilities,3480,00:00.0
AT & T,Utilities,2679.55,00:00.0
AT & T,Utilities,1221.4,00:00.0
AT & T,Utilities,3294.14,00:00.0
AT & T,Utilities,17729.9,00:00.0
AT & T,Utilities,17729.9,00:00.0
AT & T,Utilities,60929.92,00:00.0
AT & T,Utilities,13255.92,00:00.0
AT & T,Utilities,38117.79,00:00.0
AT & T,Utilities,929.37,00:00.0
AT & T,Utilities,2719.98,00:00.0
AT & T,Utilities,2301.07,00:00.0
AT & T,Utilities,343.78,00:00.0
AT & T,Utilities,61429.84,00:00.0
AT & T,Utilities,12849.23,00:00.0
AT & T,Utilities,590.01,00:00.0
AT & T,Utilities,40064.37,00:00.0
AT & T,Utilities,3294.14,00:00.0
AT & T,Utilities,38384.67,00:00.0
AT & T,Utilities,1221.4,00:00.0
AT & T,Utilities,17729.9,00:00.0
AT & T,Utilities,4451.6,00:00.0
AT & T,Utilities,10119.99,00:00.0
AT & T,Utilities,13255.92,00:00.0
AT & T,Utilities,13489.39,00:00.0
AT & T,Utilities,3480,00:00.0
AT & T,Utilities,477164.16,00:00.0
AT & T,Utilities,10.2,00:00.0
AT & T,Utilities,590.01,00:00.0
AT & T,Utilities,12125.38,00:00.0
AT & T,Utilities,4771.37,00:00.0
AT & T,Utilities,6251.11,00:00.0
AT & T,Utilities,1524.6,00:00.0
AT & T,Utilities,42942.37,00:00.0
AT & T,Utilities,3294.14,00:00.0
AT & T,Utilities,4354.05,00:00.0
AT & T,Utilities,39186.49,00:00.0
AT & T,Utilities,1857.3,00:00.0
AT & T,Utilities,10207.36,00:00.0
AT & T,Utilities,13255.92,00:00.0
AT & T,Utilities,5484.32,00:00.0
AT & T,Utilities,61903.16,00:00.0
AT & T,Utilities,38225.89,00:00.0
AT & T,Utilities,5708.36,00:00.0
AT & T,Utilities,2314.47,00:00.0
AT & T,Utilities,13598.17,00:00.0
AT & T,Utilities,1221.4,00:00.0
AT & T,Utilities,17729.9,00:00.0
AT & T,Utilities,351.48,00:00.0
AT & T,Utilities,3294.14,00:00.0
AT & T,Capital Purchases,102625.6,00:00.0
AT & T,Utilities,5031.11,00:00.0
AT & T,Utilities,35.36,00:00.0
AT & T,Utilities,7615.08,00:00.0
AT & T,Utilities,930.7,00:00.0
AT & T,Utilities,13804.27,00:00.0
AT & T,Utilities,2358.64,00:00.0
AT & T,Utilities,12110.32,00:00.0
AT & T,Utilities,847,00:00.0
AT & T,Utilities,536477.82,00:00.0
AT & T,Utilities,43575.92,00:00.0
AT & T,Utilities,13490.34,00:00.0
AT & T,Utilities,3780,00:00.0
AT & T,Utilities,6227.59,00:00.0
AT & T,Utilities,4841.77,00:00.0
AT & T,Utilities,597.09,00:00.0
AT & T,Utilities,38011.74,00:00.0
AT & T,Utilities,60581.22,00:00.0
AT & T,Utilities,13255.92,00:00.0
AT & T,Utilities,9790.79,00:00.0
AT & T,Utilities,344.42,00:00.0
AT & T,Utilities,1221.4,00:00.0
AT & T,Utilities,3816.52,00:00.0
AT & T,Utilities,3294.14,00:00.0
AT & T,Utilities,17729.9,00:00.0
AT & T,Utilities,12088.49,00:00.0
AT & T,Utilities,14059.68,00:00.0
AT & T,Utilities,7919.78,00:00.0
AT & T,Utilities,7615.08,00:00.0
AT & T,Utilities,5031.11,00:00.0
AT & T,Utilities,1541.67,00:00.0
AT & T,Utilities,48852.52,00:00.0
AT & T,Utilities,11414.2,00:00.0
AT & T,Utilities,59147.4,00:00.0
AT & T,Utilities,38226.33,00:00.0
AT & T,Utilities,461342.36,00:00.0
AT & T,Utilities,5428.1,00:00.0
AT & T,Utilities,2401.66,00:00.0
AT & T,Utilities,13887,00:00.0
AT & T,Utilities,847,00:00.0
AT & T,Utilities,7615.08,00:00.0
AT & T,Utilities,5266,00:00.0
AT & T,Utilities,872.92,00:00.0
AT & T,Utilities,5167.8,00:00.0
AT & T,Utilities,7216.14,00:00.0
AT & T,Utilities,3472.74,00:00.0
AT & T,Utilities,17729.9,00:00.0
AT & T,Utilities,345.06,00:00.0
AT & T,Utilities,590.01,00:00.0
AT & T,Utilities,1221.4,00:00.0
AT & T,Utilities,13255.92,00:00.0
AT & T,Utilities,847,00:00.0
AT & T,Utilities,13429.06,00:00.0
AT & T,Utilities,467071.02,00:00.0
AT & T,Utilities,13671,00:00.0
AT & T,Utilities,4970.67,00:00.0
AT & T,Utilities,5137.37,00:00.0
AT & T,Utilities,42219.22,00:00.0
AT & T,Utilities,953.27,00:00.0
AT & T,Utilities,590.01,00:00.0
AT & T,Utilities,12062.9,00:00.0
AT & T,Utilities,4691.03,00:00.0
AT & T,Utilities,14134.3,00:00.0
AT & T,Utilities,348.27,00:00.0
AT & T,Utilities,67612.59,00:00.0
AT & T,Utilities,11623.79,00:00.0
AT & T,Utilities,13255.92,00:00.0
AT & T,Utilities,6156.56,00:00.0
AT & T,Utilities,38377.36,00:00.0
AT & T,Utilities,12069.3,00:00.0
AT & T,Utilities,13430.24,00:00.0
AT & T,Utilities,7615.08,00:00.0
AT & T,Utilities,3294.14,00:00.0
AT & T,Utilities,1221.4,00:00.0
AT & T,Utilities,4970.67,00:00.0
AT & T,Utilities,17729.9,00:00.0
AT & T,Utilities,6835.5,00:00.0
AT & T,Utilities,847,00:00.0
AT & T,Utilities,45568.04,00:00.0
AT & T,Utilities,5063.12,00:00.0
AT & T,Utilities,496689.44,00:00.0
AT & T,Utilities,1027.68,00:00.0
AT & T,Utilities,590.01,00:00.0
AT & T,Utilities,5200.44,00:00.0
AT & T,Utilities,1927.04,00:00.0
AT & T,Utilities,13255.92,00:00.0
AT & T,Utilities,3294.14,00:00.0
AT & T,Utilities,17729.9,00:00.0
AT & T,Utilities,347.63,00:00.0
AT & T,Utilities,11594.23,00:00.0
AT & T,Utilities,1221.4,00:00.0
AT & T,Utilities,68509.29,00:00.0
Athletico Ltd.,Claims & Insurance,250,00:00.0
A-Tire County Service  Inc.,Services,3909.38,00:00.0
A-Tire County Service  Inc.,Services,360,00:00.0
A-Tire County Service  Inc.,Services,3482,00:00.0
A-Tire County Service  Inc.,Services,2507.87,00:00.0
A-Tire County Service  Inc.,Services,7929.12,00:00.0
A-Tire County Service  Inc.,Services,120.82,00:00.0
A-Tire County Service  Inc.,Services,5048.91,00:00.0
A-Tire County Service  Inc.,Services,46,00:00.0
A-Tire County Service  Inc.,Services,23,00:00.0
A-Tire County Service  Inc.,Services,1535.44,00:00.0
A-Tire County Service  Inc.,Services,9483.53,00:00.0
A-Tire County Service  Inc.,Services,46,00:00.0
A-Tire County Service  Inc.,Services,492.5,00:00.0
A-Tire County Service  Inc.,Services,23,00:00.0
A-Tire County Service  Inc.,Services,5533.96,00:00.0
A-Tire County Service  Inc.,Services,360,00:00.0
A-Tire County Service  Inc.,Services,6228.69,00:00.0
A-Tire County Service  Inc.,Services,7164.49,00:00.0
A-Tire County Service  Inc.,Services,8220.7,00:00.0
A-Tire County Service  Inc.,Services,1006.95,00:00.0
A-Tire County Service  Inc.,Services,1893.01,00:00.0
A-Tire County Service  Inc.,Services,2822.27,00:00.0
A-Tire County Service  Inc.,Services,90,00:00.0
Atlantic Track & Turnout Co.,Capital Purchases,67243.35,00:00.0
Atlantic Track & Turnout Co.,Capital Purchases,67243.35,00:00.0
Atlantic Track & Turnout Co.,Materials,143285.76,00:00.0
Atlantic Track & Turnout Co.,Capital Purchases,67243.35,00:00.0
Atlantic Track & Turnout Co.,Capital Purchases,67243.35,00:00.0
Atlantic Track & Turnout Co.,Capital Purchases,67243.35,00:00.0
Atlantic Track & Turnout Co.,Materials,52804.08,00:00.0
Atlantic Track & Turnout Co.,Capital Purchases,141678,00:00.0
Atlas & Associates  Inc.,Capital Purchases,121000,00:00.0
Atlas & Associates  Inc.,Capital Purchases,32000,00:00.0
Atlas & Associates  Inc.,Capital Purchases,36000,00:00.0
Atlas Bobcat Llc,Materials,7500,00:00.0
Atlas Bobcat Llc,Capital Purchases,6100,00:00.0
Atlas Copco Compressors LLC,Services,9366.33,00:00.0
Atlas Copco Compressors LLC,Materials,3161.08,00:00.0
Atlas Copco Compressors LLC,Services,1110,00:00.0
Atlas Toyota Material Handling  LLC,Materials,22788.98,00:00.0
Atlas/First Access,Services,3231.8,00:00.0
Atlas/First Access,Services,1495.6,00:00.0
Atlas/First Access,Services,3532.49,00:00.0
Atlas/First Access,Services,514.8,00:00.0
Atlas/First Access,Services,2530.94,00:00.0
Atlas/First Access,Services,2740.14,00:00.0
Atlas/First Access,Services,140.4,00:00.0
Atlas/First Access,Services,215.94,00:00.0
Atlas/First Access,Services,1121.76,00:00.0
Atlas/First Access,Capital Purchases,92958,00:00.0
Atlas/First Access,Services,9623.77,00:00.0
Atlas/First Access,Services,1056.25,00:00.0
Atlas/First Access,Services,2393,00:00.0
Atlas/First Access,Services,117,00:00.0
Atlas/First Access,Services,327.6,00:00.0
Atlas/First Access,Services,309.54,00:00.0
Atlas/First Access,Services,1435.9,00:00.0
Atlas/First Access,Materials,39600,00:00.0
Atlas/First Access,Materials,1114.13,00:00.0
Atlas/First Access,Services,1415.22,00:00.0
Atlas/First Access,Services,145,00:00.0
Atlas/First Access,Services,282.5,00:00.0
Atlas/First Access,Services,801.57,00:00.0
Atlas/First Access,Services,235,00:00.0
Atlas/First Access,Materials,2092.8,00:00.0
Atlas/First Access,Services,2714.86,00:00.0
Atlas/First Access,Services,460.43,00:00.0
Atlas/First Access,Services,332.5,00:00.0
Atlas/First Access,Services,1224.12,00:00.0
Atlas/First Access,Services,145,00:00.0
Atlas/First Access,Services,25654.55,00:00.0
Atlas/First Access,Services,1117.11,00:00.0
Atlas/First Access,Services,190,00:00.0
Atlas/First Access,Capital Purchases,7000,00:00.0
Atlas/First Access,Services,920.88,00:00.0
Atlas/First Access,Services,17405.52,00:00.0
Atlas/First Access,Services,3176.99,00:00.0
Atlas/First Access,Services,6891,00:00.0
Atlas/First Access,Materials,95,00:00.0
Atlas/First Access,Materials,190,00:00.0
Atlas/First Access,Materials,95.77,00:00.0
Atlas/First Access,Services,0.77,00:00.0
Attorney Registration & Disciplinary  Commission,Services,264,00:00.0
Aurelio E. Rocha,Services,31.92,00:00.0
Aurelio E. Rocha,Services,171.36,00:00.0
Aurelio E. Rocha,Services,21.28,00:00.0
Aurelio E. Rocha,Services,50.4,00:00.0
Aurelio E. Rocha,Services,41.44,00:00.0
Aurelio E. Rocha,Services,64.96,00:00.0
Aurelio E. Rocha,Services,6.61,00:00.0
"Aurora Medical Group, Inc",Claims & Insurance,500,00:00.0
"Aurora Medical Group, Inc",Claims & Insurance,500,00:00.0
Auto Glass Plus Inc,Services,154.96,00:00.0
Automated Railroad Mntce. Systems Systems  Inc. (Arms  Inc.),Capital Purchases,7583.4,00:00.0
AVI Systems Inc.,Capital Purchases,145046,00:00.0
AVI Systems Inc.,Capital Purchases,34338,00:00.0
"Axon Enterprise, Inc",Materials,142200,00:00.0
"Axon Enterprise, Inc",Materials,49120.4,00:00.0
Axonius Inc.,Capital Purchases,40162.5,00:00.0
Axonius Inc.,Services,107100.05,00:00.0
Axonius Inc.,Capital Purchases,53549.95,00:00.0
Axonius Inc.,Capital Purchases,95306.25,00:00.0
Axonius Inc.,Services,14662.5,00:00.0
Azura Investigations Llc,Services,307,00:00.0
Azura Investigations Llc,Services,854,00:00.0
Azura Investigations Llc,Services,646,00:00.0
Azura Investigations Llc,Services,458,00:00.0
Azura Investigations Llc,Services,2513,00:00.0
Azura Investigations Llc,Services,2572,00:00.0
Azura Investigations Llc,Services,5481,00:00.0
B & H Photo Video Corp.,Services,279.76,00:00.0
B & H Photo Video Corp.,Services,599.8,00:00.0
"Babak Mokhlesi, MD",Claims & Insurance,3850,00:00.0
Bach-Simpson Div. Of Wabtec Canada  Inc.,Capital Purchases,56955,00:00.0
Bach-Simpson Div. Of Wabtec Canada  Inc.,Materials,289,00:00.0
Bach-Simpson Div. Of Wabtec Canada  Inc.,Services,1190,00:00.0
Bach-Simpson Div. Of Wabtec Canada  Inc.,Services,595,00:00.0
Bach-Simpson Div. Of Wabtec Canada  Inc.,Materials,1990,00:00.0
Bach-Simpson Div. Of Wabtec Canada  Inc.,Materials,425,00:00.0
Bach-Simpson Div. Of Wabtec Canada  Inc.,Materials,525,00:00.0
Bach-Simpson Div. Of Wabtec Canada  Inc.,Materials,1734,00:00.0
Bach-Simpson Div. Of Wabtec Canada  Inc.,Materials,1734,00:00.0
Bach-Simpson Div. Of Wabtec Canada  Inc.,Materials,3425,00:00.0
Bach-Simpson Div. Of Wabtec Canada  Inc.,Materials,5360,00:00.0
Bach-Simpson Div. Of Wabtec Canada  Inc.,Materials,4020,00:00.0
Bach-Simpson Div. Of Wabtec Canada  Inc.,Materials,425,00:00.0
Bach-Simpson Div. Of Wabtec Canada  Inc.,Materials,5360,00:00.0
Bach-Simpson Div. Of Wabtec Canada  Inc.,Materials,298,00:00.0
Bach-Simpson Div. Of Wabtec Canada  Inc.,Materials,2050,00:00.0
Bach-Simpson Div. Of Wabtec Canada  Inc.,Materials,425,00:00.0
Bach-Simpson Div. Of Wabtec Canada  Inc.,Materials,2384,00:00.0
Bach-Simpson Div. Of Wabtec Canada  Inc.,Services,1785,00:00.0
Bach-Simpson Div. Of Wabtec Canada  Inc.,Materials,1050,00:00.0
Bach-Simpson Div. Of Wabtec Canada  Inc.,Materials,4445,00:00.0
Bach-Simpson Div. Of Wabtec Canada  Inc.,Materials,8495,00:00.0
Bach-Simpson Div. Of Wabtec Canada  Inc.,Materials,1075,00:00.0
Bach-Simpson Div. Of Wabtec Canada  Inc.,Materials,2750,00:00.0
Bach-Simpson Div. Of Wabtec Canada  Inc.,Materials,1075,00:00.0
Bach-Simpson Div. Of Wabtec Canada  Inc.,Materials,16650,00:00.0
Bach-Simpson Div. Of Wabtec Canada  Inc.,Materials,24120,00:00.0
Bach-Simpson Div. Of Wabtec Canada  Inc.,Materials,425,00:00.0
Bach-Simpson Div. Of Wabtec Canada  Inc.,Capital Purchases,6300,00:00.0
Bach-Simpson Div. Of Wabtec Canada  Inc.,Materials,13750,00:00.0
Bach-Simpson Div. Of Wabtec Canada  Inc.,Capital Purchases,19975,00:00.0
Bach-Simpson Div. Of Wabtec Canada  Inc.,Materials,8200,00:00.0
Bach-Simpson Div. Of Wabtec Canada  Inc.,Services,9740,00:00.0
Bach-Simpson Div. Of Wabtec Canada  Inc.,Materials,425,00:00.0
Bach-Simpson Div. Of Wabtec Canada  Inc.,Materials,425,00:00.0
Bach-Simpson Div. Of Wabtec Canada  Inc.,Materials,2900,00:00.0
Bach-Simpson Div. Of Wabtec Canada  Inc.,Services,12715,00:00.0
Bach-Simpson Div. Of Wabtec Canada  Inc.,Capital Purchases,9040,00:00.0
Bach-Simpson Div. Of Wabtec Canada  Inc.,Materials,4350,00:00.0
Bach-Simpson Div. Of Wabtec Canada  Inc.,Capital Purchases,11985,00:00.0
Bach-Simpson Div. Of Wabtec Canada  Inc.,Materials,2250,00:00.0
Bach-Simpson Div. Of Wabtec Canada  Inc.,Services,5990,00:00.0
Bach-Simpson Div. Of Wabtec Canada  Inc.,Materials,1990,00:00.0
"BADQ Products & Supply, LLC",Capital Purchases,335.04,00:00.0
"BADQ Products & Supply, LLC",Capital Purchases,951.56,00:00.0
"BADQ Products & Supply, LLC",Capital Purchases,189.25,00:00.0
"BADQ Products & Supply, LLC",Capital Purchases,902.38,00:00.0
"BADQ Products & Supply, LLC",Capital Purchases,1407,00:00.0
"BADQ Products & Supply, LLC",Capital Purchases,23.7,00:00.0
"BADQ Products & Supply, LLC",Capital Purchases,149.88,00:00.0
"BADQ Products & Supply, LLC",Capital Purchases,56.4,00:00.0
"BADQ Products & Supply, LLC",Capital Purchases,1651.46,00:00.0
"BADQ Products & Supply, LLC",Materials,1446.5,00:00.0
Bake For Me,Services,708.06,00:00.0
Bake For Me,Services,129.62,00:00.0
Bake For Me,Services,2304.2,00:00.0
Bake For Me,Services,129.62,00:00.0
Bake For Me,Services,388.86,00:00.0
Bake For Me,Services,255.62,00:00.0
Bake For Me,Services,129.62,00:00.0
Bake For Me,Services,62.42,00:00.0
Bake For Me,Services,100.8,00:00.0
Bake For Me,Services,87.62,00:00.0
Bake For Me,Services,210,00:00.0
Bake For Me,Services,129.62,00:00.0
Bake For Me,Services,447.66,00:00.0
Bake For Me,Services,168,00:00.0
Bake For Me,Services,476.48,00:00.0
Bake For Me,Services,129.62,00:00.0
Bake For Me,Services,129.62,00:00.0
Bake For Me,Services,135.55,00:00.0
Bake For Me,Services,149.25,00:00.0
Bake For Me,Services,65.3,00:00.0
Bake For Me,Services,306.2,00:00.0
Bake For Me,Services,149.25,00:00.0
Bake For Me,Services,135.55,00:00.0
Ballast Tools  Inc.,Materials,4208,00:00.0
Ballast Tools  Inc.,Materials,7320,00:00.0
Ballast Tools  Inc.,Materials,4800,00:00.0
Ballast Tools  Inc.,Materials,2528,00:00.0
Ballast Tools  Inc.,Materials,4208,00:00.0
Ballast Tools  Inc.,Materials,6312,00:00.0
Ballast Tools  Inc.,Materials,4208,00:00.0
Bank Of America,Services,7989.19,00:00.0
Bank Of America,Services,14407.02,00:00.0
Bank Of America,Services,12605.26,00:00.0
Bank Of America,Services,12490.07,00:00.0
Bank Of America,Services,12100.91,00:00.0
Bank Of America,Services,12620.51,00:00.0
Bank Of America,Services,6633.84,00:00.0
Bank Of America,Services,13902.68,00:00.0
Bank Of America,Services,7849.58,00:00.0
Bank Of America,Services,13359.08,00:00.0
Bank Of America,Services,12685.64,00:00.0
Bank Of America,Services,15890.02,00:00.0
Bank Of America,Services,15284.8,00:00.0
Bank Of America,Services,16517.01,00:00.0
Barbara Smith,Services,663.56,00:00.0
Barber Spring Co.,Materials,1677.5,00:00.0
Barber Spring Co.,Materials,711.58,00:00.0
Barber Spring Co.,Materials,7616.96,00:00.0
Barber Spring Co.,Materials,674.42,00:00.0
Barber Spring Co.,Materials,604.18,00:00.0
Barber Spring Co.,Materials,2684,00:00.0
Barry Hobbs,Claims & Insurance,1700,00:00.0
Baultar Concept  Inc.,Services,175,00:00.0
Baultar Concept  Inc.,Services,175,00:00.0
Baultar Concept  Inc.,Materials,1666.67,00:00.0
Baultar Concept  Inc.,Materials,1666.66,00:00.0
Baultar Concept  Inc.,Materials,1666.67,00:00.0
Baultar Concept  Inc.,Services,175,00:00.0
Baultar Mechanical Solutions Inc.,Services,62.5,00:00.0
Baultar Mechanical Solutions Inc.,Services,93.75,00:00.0
Baultar Mechanical Solutions Inc.,Services,93.75,00:00.0
Baultar Mechanical Solutions Inc.,Materials,1629,00:00.0
Baultar Mechanical Solutions Inc.,Materials,1831,00:00.0
Baultar Mechanical Solutions Inc.,Materials,1629,00:00.0
Baultar Mechanical Solutions Inc.,Materials,181,00:00.0
Baultar Mechanical Solutions Inc.,Services,93.75,00:00.0
Baultar Mechanical Solutions Inc.,Materials,1629,00:00.0
Baultar Mechanical Solutions Inc.,Materials,181,00:00.0
Baultar Mechanical Solutions Inc.,Materials,1629,00:00.0
Baultar Mechanical Solutions Inc.,Materials,181,00:00.0
Baultar Mechanical Solutions Inc.,Services,62.5,00:00.0
Baultar Mechanical Solutions Inc.,Services,93.75,00:00.0
Baultar Mechanical Solutions Inc.,Services,62.5,00:00.0
Baultar Mechanical Solutions Inc.,Services,62.5,00:00.0
BBA Project  Inc.,Materials,4920,00:00.0
BBA Project  Inc.,Materials,2392,00:00.0
BBA Project  Inc.,Capital Purchases,10126.48,00:00.0
BBA Project  Inc.,Materials,8970,00:00.0
BBA Project  Inc.,Materials,3280,00:00.0
BBA Project  Inc.,Materials,2990,00:00.0
BBA Project  Inc.,Materials,1344.5,00:00.0
BBA Project  Inc.,Materials,5980,00:00.0
BCBS Of Illinois,Services,916334.02,00:00.0
BCBS Of Illinois,Services,893822.7,00:00.0
BCBS Of Illinois,Services,874750.99,00:00.0
BCBS Of Illinois,Services,32027.16,00:00.0
BCBS Of Illinois,Services,32016.9,00:00.0
BCBS Of Illinois,Services,31911.43,00:00.0
BCBS Of Illinois,Services,36736.74,00:00.0
BCBS Of Illinois,Services,912831.33,00:00.0
BCBS Of Illinois,Services,895875.56,00:00.0
BCBS Of Illinois,Services,50145.15,00:00.0
BCBS Of Illinois,Services,36798.72,00:00.0
BCBS Of Illinois,Services,917513.03,00:00.0
BCBS Of Illinois,Services,36507.41,00:00.0
BCBS Of Illinois,Services,918150.4,00:00.0
BCBS Of Illinois,Services,926510.23,00:00.0
BCBS Of Illinois,Services,36065.87,00:00.0
BCBS Of Illinois,Services,32145,00:00.0
BCBS Of Illinois,Services,925101.44,00:00.0
Beligh Sraieb,Services,35.84,00:00.0
Beligh Sraieb,Services,71.68,00:00.0
Beligh Sraieb,Services,44.8,00:00.0
Bellwood Electric Motors Inc.,Materials,7800,00:00.0
Bellwood Electric Motors Inc.,Services,19900,00:00.0
Bellwood Electric Motors Inc.,Services,19900,00:00.0
Bellwood Electric Motors Inc.,Materials,2500,00:00.0
Bellwood Electric Motors Inc.,Materials,10070,00:00.0
Bellwood Electric Motors Inc.,Materials,24600,00:00.0
Bellwood Electric Motors Inc.,Materials,13000,00:00.0
Bellwood Electric Motors Inc.,Materials,18900,00:00.0
Bellwood Electric Motors Inc.,Materials,4900,00:00.0
Bellwood Electric Motors Inc.,Materials,4900,00:00.0
Bellwood Electric Motors Inc.,Materials,9800,00:00.0
Bellwood Electric Motors Inc.,Materials,14700,00:00.0
Bellwood Electric Motors Inc.,Services,19900,00:00.0
Bellwood Electric Motors Inc.,Materials,4900,00:00.0
Bellwood Electric Motors Inc.,Materials,8200,00:00.0
Bellwood Electric Motors Inc.,Materials,18900,00:00.0
Bellwood Electric Motors Inc.,Materials,8200,00:00.0
Bellwood Electric Motors Inc.,Materials,13100,00:00.0
Bellwood Electric Motors Inc.,Materials,4900,00:00.0
Bellwood Electric Motors Inc.,Services,19900,00:00.0
Bellwood Electric Motors Inc.,Services,5200,00:00.0
Bellwood Electric Motors Inc.,Materials,990,00:00.0
Bellwood Electric Motors Inc.,Materials,990,00:00.0
Bellwood Electric Motors Inc.,Materials,4500,00:00.0
Benefit Resource Inc.,Services,15939.9,00:00.0
Benefit Resource Inc.,Services,8899.87,00:00.0
Benefit Resource Inc.,Services,90723.41,00:00.0
Benefit Resource Inc.,Services,1249.91,00:00.0
Benefit Resource Inc.,Services,4247.45,00:00.0
Benefit Resource Inc.,Services,42629.08,00:00.0
Benefit Resource Inc.,Services,85810.68,00:00.0
Benefit Resource Inc.,Services,9076.84,00:00.0
Benefit Resource Inc.,Services,11764.4,00:00.0
Benefit Resource Inc.,Services,62325.04,00:00.0
Benefit Resource Inc.,Services,4111.8,00:00.0
Benefit Resource Inc.,Services,3925.95,00:00.0
Benefit Resource Inc.,Services,2929.84,00:00.0
Benefit Resource Inc.,Services,49034.42,00:00.0
Benefit Resource Inc.,Services,12485.8,00:00.0
Benefit Resource Inc.,Services,57377.75,00:00.0
Benefit Resource Inc.,Services,8884.08,00:00.0
Benefit Resource Inc.,Services,10839.25,00:00.0
Benefit Resource Inc.,Services,5919.21,00:00.0
Benefit Resource Inc.,Services,103397.82,00:00.0
Benefit Resource Inc.,Services,1442.06,00:00.0
Benefit Resource Inc.,Services,6473.14,00:00.0
Benefit Resource Inc.,Services,93425.34,00:00.0
Benefit Resource Inc.,Services,8533.25,00:00.0
Benefit Resource Inc.,Services,4275.3,00:00.0
"Benjamin A. Goldberg, MD",Claims & Insurance,3000,00:00.0
"Benjamin A. Goldberg, MD",Claims & Insurance,500,00:00.0
"Benjamin A. Goldberg, MD",Claims & Insurance,3125,00:00.0
"Benjamin A. Goldberg, MD",Claims & Insurance,1000,00:00.0
"Benjamin A. Goldberg, MD",Claims & Insurance,1500,00:00.0
"Benjamin A. Goldberg, MD",Claims & Insurance,2250,00:00.0
"Benjamin A. Goldberg, MD",Claims & Insurance,1500,00:00.0
"Benjamin A. Goldberg, MD",Claims & Insurance,15500,00:00.0
"Benjamin A. Goldberg, MD",Claims & Insurance,500,00:00.0
Bentley Systems  Inc.,Capital Purchases,88750,00:00.0
Bentley Systems  Inc.,Capital Purchases,83750,00:00.0
Bentley Systems  Inc.,Services,236882,00:00.0
Berg Engineering & Sales,Materials,2644.3,00:00.0
Berg Engineering & Sales,Services,63.67,00:00.0
Berg Engineering & Sales,Services,230.45,00:00.0
"Berkeley Engineering & Research, Inc",Services,30000,00:00.0
Berkeley Simulation Software  LLC,Services,15000,00:00.0
Berkeley Simulation Software  LLC,Capital Purchases,65000,00:00.0
Berts Car Wash  Inc.,Services,1050,00:00.0
Berts Car Wash  Inc.,Services,888,00:00.0
Berts Car Wash  Inc.,Services,1206,00:00.0
Berts Car Wash  Inc.,Services,1165,00:00.0
Berts Car Wash  Inc.,Services,1042,00:00.0
Berts Car Wash  Inc.,Services,782,00:00.0
Berts Car Wash  Inc.,Services,1311,00:00.0
Berts Car Wash  Inc.,Services,1221,00:00.0
Berts Car Wash  Inc.,Services,1411,00:00.0
Billy F. Williams,Claims & Insurance,1676.84,00:00.0
Black Dog Petroleum LLC,Materials,6037.25,00:00.0
Black Dog Petroleum LLC,Materials,6184.5,00:00.0
Black Dog Petroleum LLC,Materials,2503.25,00:00.0
Black Dog Petroleum LLC,Materials,3386.75,00:00.0
Black Dog Petroleum LLC,Materials,2208.75,00:00.0
Black Dog Petroleum LLC,Materials,1472.5,00:00.0
Black Dog Petroleum LLC,Materials,2061.5,00:00.0
Black Dog Petroleum LLC,Materials,1472.5,00:00.0
Black Dog Petroleum LLC,Materials,2061.5,00:00.0
Black Dog Petroleum LLC,Materials,2945,00:00.0
Blinderman Construction Co.  Inc.,Capital Purchases,58069.7,00:00.0
Blinderman Construction Co.  Inc.,Claims & Insurance,135000,00:00.0
Blue Print Shoppe  Inc.,Capital Purchases,78.13,00:00.0
Blue Print Shoppe  Inc.,Capital Purchases,3488.7,00:00.0
Blue Shield Tactical Systems,Services,325,00:00.0
Bnsf Railway Co.,Capital Purchases,104584.27,00:00.0
Bnsf Railway Co.,Services,4032.99,00:00.0
Bnsf Railway Co.,Services,4562809,00:00.0
Bnsf Railway Co.,Services,3773941,00:00.0
Bnsf Railway Co.,Services,4032.99,00:00.0
Bnsf Railway Co.,Capital Purchases,246906.06,00:00.0
Bnsf Railway Co.,Services,352497.81,00:00.0
Bnsf Railway Co.,Capital Purchases,410625.05,00:00.0
Bnsf Railway Co.,Services,5931954,00:00.0
Bnsf Railway Co.,Capital Purchases,57471.23,00:00.0
Bnsf Railway Co.,Capital Purchases,17009.36,00:00.0
Bnsf Railway Co.,Capital Purchases,109544.1,00:00.0
Bnsf Railway Co.,Capital Purchases,116729.39,00:00.0
Bnsf Railway Co.,Capital Purchases,766427.87,00:00.0
Bnsf Railway Co.,Capital Purchases,3449.81,00:00.0
Bnsf Railway Co.,Capital Purchases,17385.04,00:00.0
Bnsf Railway Co.,Capital Purchases,200827.56,00:00.0
Bnsf Railway Co.,Capital Purchases,55820.1,00:00.0
Bnsf Railway Co.,Services,4032.99,00:00.0
Bnsf Railway Co.,Services,462230.27,00:00.0
Bnsf Railway Co.,Capital Purchases,6177.16,00:00.0
Bnsf Railway Co.,Capital Purchases,159438.5,00:00.0
Bnsf Railway Co.,Services,4032.99,00:00.0
Bnsf Railway Co.,Services,350692.77,00:00.0
Bnsf Railway Co.,Capital Purchases,28133.33,00:00.0
Bnsf Railway Co.,Capital Purchases,115279.43,00:00.0
Bnsf Railway Co.,Services,8188461,00:00.0
Bnsf Railway Co.,Services,4032.99,00:00.0
Bnsf Railway Co.,Services,462224.1,00:00.0
Bnsf Railway Co.,Capital Purchases,36566.14,00:00.0
Bnsf Railway Co.,Capital Purchases,130.51,00:00.0
Bnsf Railway Co.,Capital Purchases,15417.55,00:00.0
Bnsf Railway Co.,Capital Purchases,38253.64,00:00.0
Bnsf Railway Co.,Services,4032.99,00:00.0
Bnsf Railway Co.,Services,4423005,00:00.0
Bnsf Railway Co.,Capital Purchases,87834.66,00:00.0
Bnsf Railway Co.,Capital Purchases,9210.2,00:00.0
Bnsf Railway Co.,Services,528146.77,00:00.0
Bnsf Railway Co.,Capital Purchases,14057.7,00:00.0
Bnsf Railway Co.,Capital Purchases,98958.05,00:00.0
Bnsf Railway Co.,Capital Purchases,14311.92,00:00.0
Bnsf Railway Co.,Services,722668.95,00:00.0
Bnsf Railway Co.,Services,4032.99,00:00.0
Bnsf Railway Co.,Capital Purchases,11798.64,00:00.0
Bnsf Railway Co.,Capital Purchases,11093.43,00:00.0
Bnsf Railway Co.,Services,4048809,00:00.0
Bnsf Railway Co.,Services,3610967,00:00.0
Bnsf Railway Co.,Services,1067122.35,00:00.0
Bnsf Railway Co.,Services,4032.99,00:00.0
Bnsf Railway Co.,Capital Purchases,38430.01,00:00.0
Bnsf Railway Co.,Capital Purchases,8459.02,00:00.0
Bnsf Railway Co.,Services,3386592,00:00.0
Bnsf Railway Co.,Capital Purchases,14613.67,00:00.0
Bnsf Railway Co.,Capital Purchases,9910.83,00:00.0
Bnsf Railway Co.,Capital Purchases,36786.95,00:00.0
Bnsf Railway Co.,Capital Purchases,12089.6,00:00.0
Bnsf Railway Co.,Capital Purchases,42251.52,00:00.0
Bnsf Railway Co.,Capital Purchases,19884.21,00:00.0
Bnsf Railway Co.,Capital Purchases,219400.89,00:00.0
Bnsf Railway Co.,Capital Purchases,64285.47,00:00.0
Bnsf Railway Co.,Services,3502586,00:00.0
Bnsf Railway Co.,Services,4022.93,00:00.0
Bnsf Railway Co.,Services,1101914.74,00:00.0
Bnsf Railway Co.,Capital Purchases,135834.2,00:00.0
Bnsf Railway Co.,Capital Purchases,14720.25,00:00.0
Bnsf Railway Co.,Services,4022.93,00:00.0
Bnsf Railway Co.,Capital Purchases,128464.83,00:00.0
Bnsf Railway Co.,Capital Purchases,156827.29,00:00.0
Bnsf Railway Co.,Capital Purchases,151075.92,00:00.0
Bnsf Railway Co.,Capital Purchases,329845.57,00:00.0
Bnsf Railway Co.,Capital Purchases,18713.95,00:00.0
Bnsf Railway Co.,Capital Purchases,35920.97,00:00.0
Bnsf Railway Co.,Capital Purchases,552290.22,00:00.0
Bnsf Railway Co.,Services,1367426.01,00:00.0
Boma/Chicago,Services,2514,00:00.0
"Bone & Joint Specialists, P.C.",Claims & Insurance,2000,00:00.0
"Bone & Joint Specialists, P.C.",Claims & Insurance,750,00:00.0
Borislav Apostolov,Services,82.88,00:00.0
Borislav Apostolov,Services,21.28,00:00.0
Borislav Apostolov,Services,124.32,00:00.0
BOTZ Enterprises DBA Kodiak Parts,Services,220,00:00.0
BOTZ Enterprises DBA Kodiak Parts,Services,3981.32,00:00.0
BOTZ Enterprises DBA Kodiak Parts,Materials,442.6,00:00.0
BOTZ Enterprises DBA Kodiak Parts,Materials,6161.8,00:00.0
BOTZ Enterprises DBA Kodiak Parts,Services,536,00:00.0
Brabazon Pumpe Co.  Ltd.,Materials,799.68,00:00.0
Brabazon Pumpe Co.  Ltd.,Materials,1228.48,00:00.0
Brabazon Pumpe Co.  Ltd.,Materials,24287.52,00:00.0
Brabazon Pumpe Co.  Ltd.,Materials,1228.48,00:00.0
Brabazon Pumpe Co.  Ltd.,Materials,986.64,00:00.0
Brabazon Pumpe Co.  Ltd.,Materials,399.84,00:00.0
Brad Methling,Services,184,00:00.0
Brad Methling,Services,35.84,00:00.0
Brad Methling,Services,35.84,00:00.0
Brad Methling,Services,24.64,00:00.0
Brad Methling,Services,35.84,00:00.0
Brad Methling,Services,119.84,00:00.0
Brad Methling,Services,71.68,00:00.0
Brad Methling,Services,12.32,00:00.0
Brad Methling,Services,12.32,00:00.0
Brad Methling,Services,275.52,00:00.0
Brad Methling,Services,135.52,00:00.0
Brad Methling,Services,35.84,00:00.0
Brad Methling,Services,24.64,00:00.0
Bradford Systems Corp.,Capital Purchases,13207.21,00:00.0
Bradken-Atchison/St. Joseph  Inc.,Capital Purchases,55209,00:00.0
Brasco International  Inc.,Capital Purchases,11640,00:00.0
Brendan A. Stejskal,Services,242.65,00:00.0
Brendan A. Stejskal,Services,241.92,00:00.0
Brendan A. Stejskal,Services,218.4,00:00.0
Brendan A. Stejskal,Services,194.88,00:00.0
Brendan A. Stejskal,Services,259.84,00:00.0
Brendan A. Stejskal,Services,241.92,00:00.0
Brendan A. Stejskal,Services,215.6,00:00.0
Brendan A. Stejskal,Services,236.32,00:00.0
Brendan A. Stejskal,Services,241.92,00:00.0
Brendan A. Stejskal,Services,218.4,00:00.0
Brendan A. Stejskal,Services,236.32,00:00.0
Brendan A. Stejskal,Services,259.84,00:00.0
Brendan A. Stejskal,Services,241.92,00:00.0
Brendan A. Stejskal,Services,236.32,00:00.0
Brendan A. Stejskal,Services,262.64,00:00.0
Brendan A. Stejskal,Services,127.12,00:00.0
Brendan A. Stejskal,Services,259.84,00:00.0
Brendan A. Stejskal,Services,286.16,00:00.0
Brendan O'hara,Claims & Insurance,20000,00:00.0
Brendon Cotton,Services,10.41,00:00.0
Brendon Cotton,Services,181.78,00:00.0
Brennon Miller,Claims & Insurance,1697.81,00:00.0
Brian Cotten,Services,1.5,00:00.0
Brian Cotten,Services,57.57,00:00.0
Brian D. McCarthy,Services,2910,00:00.0
Brian Michael Cotten,Services,1.5,00:00.0
Brian Michael Cotten,Services,57.57,00:00.0
Brian Richards,Services,105.8,00:00.0
Brian Richards,Services,103.04,00:00.0
Brian Richards,Services,21.28,00:00.0
Brian Richards,Services,51.52,00:00.0
Brian Richards,Services,33.6,00:00.0
Brian S Wimmer,Services,319.32,00:00.0
Brian S Wimmer,Services,162.96,00:00.0
Brian S Wimmer,Services,6,00:00.0
Brian Windle,Services,337.5,00:00.0
Brian Windle,Services,96,00:00.0
Bridges Court Reporting,Claims & Insurance,121.5,00:00.0
Brittany Harvard,Services,917.7,00:00.0
Brittany Harvard,Services,127.68,00:00.0
Bureau Veritas North America  Inc.,Capital Purchases,269.18,00:00.0
Bureau Veritas North America  Inc.,Capital Purchases,1515.94,00:00.0
Bureau Veritas North America  Inc.,Capital Purchases,11973.75,00:00.0
Bureau Veritas North America  Inc.,Capital Purchases,1704.98,00:00.0
Burns & Mcdonnell Engineering Co.,Capital Purchases,18905.74,00:00.0
Burns & Mcdonnell Engineering Co.,Capital Purchases,198865.52,00:00.0
Burns & Mcdonnell Engineering Co.,Capital Purchases,153688.53,00:00.0
Burris Equipment Co.,Rental Expense,1814.4,00:00.0
Burris Equipment Co.,Rental Expense,2014.4,00:00.0
Burris Equipment Co.,Rental Expense,1814.4,00:00.0
Burris Equipment Co.,Rental Expense,7257.6,00:00.0
Burris Equipment Co.,Rental Expense,1814.4,00:00.0
Burris Equipment Co.,Rental Expense,3628.8,00:00.0
Burris Equipment Co.,Rental Expense,1814.4,00:00.0
Buvanendran SC,Claims & Insurance,1000,00:00.0
Buvanendran SC,Claims & Insurance,1500,00:00.0
Cadient LLC,Services,2872,00:00.0
Cadient LLC,Services,2872,00:00.0
Cadient LLC,Services,2872,00:00.0
Cadient LLC,Services,2872,00:00.0
Cadient LLC,Services,2872,00:00.0
Cadient LLC,Services,4622,00:00.0
Cadient LLC,Services,2872,00:00.0
Cadient LLC,Services,2872,00:00.0
Cadient LLC,Services,2872,00:00.0
Calumet Harbor Lumber & Supplyco.,Materials,473.4,00:00.0
Calumet Harbor Lumber & Supplyco.,Materials,670,00:00.0
Calumet Harbor Lumber & Supplyco.,Materials,441.6,00:00.0
Calumet Harbor Lumber & Supplyco.,Materials,102144,00:00.0
Calumet Harbor Lumber & Supplyco.,Materials,146.4,00:00.0
Calumet Harbor Lumber & Supplyco.,Materials,182,00:00.0
Calumet Harbor Lumber & Supplyco.,Materials,160,00:00.0
Calumet Harbor Lumber & Supplyco.,Materials,571.84,00:00.0
Calumet Harbor Lumber & Supplyco.,Materials,364,00:00.0
Calumet Harbor Lumber & Supplyco.,Materials,268.8,00:00.0
Calumet Lift Truck Service Co. Inc.,Services,1100,00:00.0
Calumet Lift Truck Service Co. Inc.,Services,900,00:00.0
Canadian National Railroad,Services,535.24,00:00.0
Canadian National Railroad,Services,704.1,00:00.0
Canadian National Railroad,Services,54571.65,00:00.0
Canadian National Railroad,Services,145530.25,00:00.0
Canadian National Railroad,Services,218295.38,00:00.0
Canadian National Railroad,Services,436590.76,00:00.0
Canadian National Railroad,Capital Purchases,726793.2,00:00.0
Canadian National Railroad,Services,1442.91,00:00.0
Canadian National Railroad,Services,145530.25,00:00.0
Canadian National Railroad,Services,218295.38,00:00.0
Canadian National Railroad,Services,291060.5,00:00.0
Canadian National Railroad,Services,143751,00:00.0
Canadian National Railroad,Services,25308.58,00:00.0
Canadian National Railroad,Services,266392.43,00:00.0
Canadian National Railroad,Services,145530.25,00:00.0
Canadian National Railroad,Services,269564.9,00:00.0
Canadian National Railroad,Services,145530.3,00:00.0
Canadian National Railroad,Services,9365.65,00:00.0
Canadian National Railroad,Capital Purchases,23869.18,00:00.0
Canadian National Railroad,Capital Purchases,9840.36,00:00.0
Canadian National Railroad,Services,218295.38,00:00.0
Canadian National Railroad,Services,39688.48,00:00.0
Canadian National Railroad,Services,593.2,00:00.0
Canadian National Railroad,Services,218295.38,00:00.0
Canadian National Railroad,Services,145530.25,00:00.0
Canadian National Railroad,Services,145530.25,00:00.0
Canadian National Railroad,Services,255.06,00:00.0
Canadian National Railroad,Capital Purchases,228300.99,00:00.0
Canadian National Railroad,Services,218295.38,00:00.0
Canadian National Railroad,Services,145530.25,00:00.0
Canadian National Railroad,Services,28663.9,00:00.0
Canadian Pacific Railway Co.,Services,177933.84,00:00.0
Canadian Pacific Railway Co.,Services,93475.71,00:00.0
Canadian Pacific Railway Co.,Services,92191.16,00:00.0
Canadian Pacific Railway Co.,Services,157237.43,00:00.0
Canadian Pacific Railway Co.,Services,93154.33,00:00.0
Canadian Pacific Railway Co.,Services,94146.77,00:00.0
Canteen Refreshment Services,Materials,717.17,00:00.0
Canteen Refreshment Services,Materials,143.82,00:00.0
Canteen Refreshment Services,Materials,440,00:00.0
Canteen Refreshment Services,Materials,480.42,00:00.0
Canteen Refreshment Services,Materials,190,00:00.0
Canteen Refreshment Services,Materials,645.66,00:00.0
Canteen Refreshment Services,Materials,22.44,00:00.0
Canteen Refreshment Services,Materials,234.04,00:00.0
Canteen Refreshment Services,Materials,736.31,00:00.0
Canteen Refreshment Services,Materials,429.35,00:00.0
Canteen Refreshment Services,Materials,100.1,00:00.0
Capricorn Communications,Services,8500,00:00.0
Capricorn Communications,Services,4250,00:00.0
Carahsoft Technology Corp,Services,30667.43,00:00.0
Carl E. Clark,Services,50.17,00:00.0
Carlos A. Del Toro,Services,16.46,00:00.0
Carlos A. Del Toro,Services,17.92,00:00.0
Carlos A. Del Toro,Services,35.84,00:00.0
Carlos A. Del Toro,Services,9.52,00:00.0
Carlos Lazaro,Services,148.74,00:00.0
Carlos Lazaro,Services,150.52,00:00.0
Carmichael Leasing Co.  Inc.,Services,5316.48,00:00.0
Carmichael Leasing Co.  Inc.,Services,746.06,00:00.0
Carmichael Leasing Co.  Inc.,Services,479.61,00:00.0
Carmichael Leasing Co.  Inc.,Services,700.67,00:00.0
Carmichael Leasing Co.  Inc.,Services,5605.85,00:00.0
Carmichael Leasing Co.  Inc.,Services,11699.86,00:00.0
Carmichael Leasing Co.  Inc.,Services,833.7,00:00.0
Carmichael Leasing Co.  Inc.,Services,9591.45,00:00.0
Carmichael Leasing Co.  Inc.,Services,53.29,00:00.0
Carmichael Leasing Co.  Inc.,Services,53.29,00:00.0
Carmichael Leasing Co.  Inc.,Services,2618.15,00:00.0
Carmichael Leasing Co.  Inc.,Services,4237.97,00:00.0
Carmichael Leasing Co.  Inc.,Services,5686.2,00:00.0
Carmichael Leasing Co.  Inc.,Services,6449.93,00:00.0
Carmichael Leasing Co.  Inc.,Services,3894.28,00:00.0
Carmichael Leasing Co.  Inc.,Services,3885.33,00:00.0
Carmichael Leasing Co.  Inc.,Services,6621.82,00:00.0
Carmichael Leasing Co.  Inc.,Services,469.65,00:00.0
Carmichael Leasing Co.  Inc.,Services,2008.23,00:00.0
Carmichael Leasing Co.  Inc.,Services,3366.18,00:00.0
Carmichael Leasing Co.  Inc.,Services,1747.39,00:00.0
Carmichael Leasing Co.  Inc.,Services,734.81,00:00.0
Carmichael Leasing Co.  Inc.,Services,434.79,00:00.0
Carmichael Leasing Co.  Inc.,Services,5485.11,00:00.0
Carmichael Leasing Co.  Inc.,Services,539.6,00:00.0
Carmichael Leasing Co.  Inc.,Services,4913.86,00:00.0
Carnow  Conibear & Assoc.  Ltd.,Services,3250,00:00.0
Carnow  Conibear & Assoc.  Ltd.,Services,9925.78,00:00.0
Carnow  Conibear & Assoc.  Ltd.,Services,5670,00:00.0
Carnow  Conibear & Assoc.  Ltd.,Services,1570,00:00.0
Carnow  Conibear & Assoc.  Ltd.,Services,4781.55,00:00.0
Carnow  Conibear & Assoc.  Ltd.,Services,3740.66,00:00.0
Carnow  Conibear & Assoc.  Ltd.,Services,875,00:00.0
Carnow  Conibear & Assoc.  Ltd.,Services,1412,00:00.0
Carnow  Conibear & Assoc.  Ltd.,Services,835,00:00.0
Carnow  Conibear & Assoc.  Ltd.,Services,16516,00:00.0
Carnow  Conibear & Assoc.  Ltd.,Services,800,00:00.0
Carnow  Conibear & Assoc.  Ltd.,Services,2388,00:00.0
Carnow  Conibear & Assoc.  Ltd.,Services,7075.75,00:00.0
Carnow  Conibear & Assoc.  Ltd.,Services,4880,00:00.0
Carnow  Conibear & Assoc.  Ltd.,Services,19282,00:00.0
Carnow  Conibear & Assoc.  Ltd.,Services,2530.25,00:00.0
Carnow  Conibear & Assoc.  Ltd.,Services,1229.87,00:00.0
Carnow  Conibear & Assoc.  Ltd.,Services,1235,00:00.0
Carnow  Conibear & Assoc.  Ltd.,Services,1520,00:00.0
Carnow  Conibear & Assoc.  Ltd.,Claims & Insurance,6256.25,00:00.0
Carnow  Conibear & Assoc.  Ltd.,Services,2909.34,00:00.0
Carolyn R. King,Services,85.68,00:00.0
Cavalry Fire Protection Svc. LLC,Materials,380,00:00.0
Cavalry Fire Protection Svc. LLC,Services,1045,00:00.0
Cavalry Fire Protection Svc. LLC,Services,1392.5,00:00.0
Cavalry Fire Protection Svc. LLC,Services,403,00:00.0
Cavalry Fire Protection Svc. LLC,Services,617,00:00.0
Cavalry Fire Protection Svc. LLC,Services,399.65,00:00.0
Cavalry Fire Protection Svc. LLC,Services,280,00:00.0
Cavalry Fire Protection Svc. LLC,Materials,1370.9,00:00.0
Cavalry Fire Protection Svc. LLC,Services,786.45,00:00.0
Cavalry Fire Protection Svc. LLC,Services,449.9,00:00.0
Cavalry Fire Protection Svc. LLC,Services,2125.5,00:00.0
Cavalry Fire Protection Svc. LLC,Materials,1256,00:00.0
Cavalry Fire Protection Svc. LLC,Materials,1744.15,00:00.0
Cavalry Fire Protection Svc. LLC,Services,576.6,00:00.0
Cavalry Fire Protection Svc. LLC,Services,2764.4,00:00.0
Cavalry Fire Protection Svc. LLC,Materials,644.5,00:00.0
Cavalry Fire Protection Svc. LLC,Services,610.4,00:00.0
Cavalry Fire Protection Svc. LLC,Services,1189.3,00:00.0
Cavalry Fire Protection Svc. LLC,Services,668.7,00:00.0
Cavalry Fire Protection Svc. LLC,Services,5244.3,00:00.0
Cavalry Fire Protection Svc. LLC,Materials,7468.8,00:00.0
Cavalry Fire Protection Svc. LLC,Services,2272.4,00:00.0
Cavalry Fire Protection Svc. LLC,Materials,724.7,00:00.0
Cavalry Fire Protection Svc. LLC,Materials,135,00:00.0
Cavalry Fire Protection Svc. LLC,Services,1811.5,00:00.0
Cavalry Fire Protection Svc. LLC,Services,375.2,00:00.0
Cavalry Fire Protection Svc. LLC,Services,309.3,00:00.0
Cavalry Fire Protection Svc. LLC,Services,245,00:00.0
Cavalry Fire Protection Svc. LLC,Services,229.4,00:00.0
Cavalry Fire Protection Svc. LLC,Services,1156,00:00.0
Cavalry Fire Protection Svc. LLC,Services,470.9,00:00.0
Cavalry Fire Protection Svc. LLC,Services,542.6,00:00.0
Cavalry Fire Protection Svc. LLC,Services,1114.8,00:00.0
Cavalry Fire Protection Svc. LLC,Services,274.5,00:00.0
Cavalry Fire Protection Svc. LLC,Services,1391.5,00:00.0
Cavalry Fire Protection Svc. LLC,Services,467.8,00:00.0
Cavalry Fire Protection Svc. LLC,Materials,1044.9,00:00.0
Cavalry Fire Protection Svc. LLC,Services,977.7,00:00.0
Cavalry Fire Protection Svc. LLC,Services,619.5,00:00.0
Cavalry Fire Protection Svc. LLC,Services,410.2,00:00.0
Cavalry Fire Protection Svc. LLC,Services,869.6,00:00.0
Cavalry Fire Protection Svc. LLC,Services,835.8,00:00.0
Cavalry Fire Protection Svc. LLC,Services,566.6,00:00.0
Cavalry Fire Protection Svc. LLC,Materials,1098.1,00:00.0
Cavalry Fire Protection Svc. LLC,Services,566.1,00:00.0
Cbre  Inc.,Services,3000,00:00.0
CDECI,Services,21656,00:00.0
CDECI,Materials,736.3,00:00.0
CDECI,Materials,581.14,00:00.0
CDECI,Services,27488,00:00.0
CDECI,Services,51826,00:00.0
CDECI,Materials,1636.86,00:00.0
CDECI,Services,12944,00:00.0
CDECI,Materials,49480.49,00:00.0
CDECI,Services,15584,00:00.0
CDECI,Materials,1021.43,00:00.0
CDECI,Services,27568,00:00.0
CDECI,Materials,207.32,00:00.0
CDECI,Materials,29.9,00:00.0
CDECI,Services,15248,00:00.0
CDECI,Services,14256,00:00.0
CDECI,Materials,2267.08,00:00.0
CDECI,Services,15048,00:00.0
CDECI,Services,15002,00:00.0
CDECI,Materials,2752.36,00:00.0
CDECI,Services,30890,00:00.0
CDECI,Materials,21052.84,00:00.0
Cdm Smith  Inc.,Services,989.6,00:00.0
Cdm Smith  Inc.,Services,17998.3,00:00.0
Cdm Smith  Inc.,Capital Purchases,12533.94,00:00.0
Cdm Smith  Inc.,Capital Purchases,167624.64,00:00.0
CDW Government  LLC,Capital Purchases,1088,00:00.0
CDW Government  LLC,Capital Purchases,7616,00:00.0
CDW Government  LLC,Services,33210.34,00:00.0
CDW Government  LLC,Capital Purchases,485,00:00.0
CDW Government  LLC,Materials,485,00:00.0
CDW Government  LLC,Capital Purchases,485,00:00.0
CDW Government  LLC,Capital Purchases,485,00:00.0
CDW Government  LLC,Capital Purchases,970,00:00.0
CDW Government  LLC,Capital Purchases,485,00:00.0
CDW Government  LLC,Capital Purchases,485,00:00.0
CDW Government  LLC,Capital Purchases,181650.45,00:00.0
CDW Government  LLC,Capital Purchases,485,00:00.0
CDW Government  LLC,Services,9790,00:00.0
CDW Government  LLC,Capital Purchases,57064.56,00:00.0
CDW Government  LLC,Materials,485,00:00.0
Cedric Hayes,Services,143.36,00:00.0
Cedric Hayes,Services,60.48,00:00.0
Cedric L Smith,Services,172.66,00:00.0
Celeste Industries Corp.,Materials,1694,00:00.0
Celeste Industries Corp.,Materials,2178,00:00.0
Celeste Industries Corp.,Materials,968,00:00.0
Celeste Industries Corp.,Materials,968,00:00.0
Celeste Industries Corp.,Materials,1210,00:00.0
Celeste Industries Corp.,Materials,1210,00:00.0
Celeste Industries Corp.,Materials,968,00:00.0
Celeste Industries Corp.,Materials,1452,00:00.0
Celeste Industries Corp.,Materials,1037.6,00:00.0
Central Sales & Service Inc.,Materials,193.53,00:00.0
Central Sales & Service Inc.,Materials,319.92,00:00.0
CenTrio Energy Chicago LLC,Utilities,15791.71,00:00.0
CenTrio Energy Chicago LLC,Utilities,14146.28,00:00.0
CenTrio Energy Chicago LLC,Utilities,22899.58,00:00.0
CenTrio Energy Chicago LLC,Utilities,19217.74,00:00.0
CenTrio Energy Chicago LLC,Utilities,18214.93,00:00.0
CenTrio Energy Chicago LLC,Utilities,8418.09,00:00.0
CenTrio Energy Chicago LLC,Utilities,49655.15,00:00.0
CenTrio Energy Chicago LLC,Utilities,38990.59,00:00.0
CenTrio Energy Chicago LLC,Utilities,40119.1,00:00.0
Certified Fleet Services  Inc.,Services,849.99,00:00.0
Certified Fleet Services  Inc.,Services,4354.28,00:00.0
Certified Fleet Services  Inc.,Services,435,00:00.0
Certified Fleet Services  Inc.,Services,219.89,00:00.0
Certified Fleet Services  Inc.,Services,14940.69,00:00.0
Certified Fleet Services  Inc.,Services,675,00:00.0
Certified Fleet Services  Inc.,Services,9140.04,00:00.0
Certified Fleet Services  Inc.,Services,339.5,00:00.0
Certified Fleet Services  Inc.,Services,73.15,00:00.0
Certified Fleet Services  Inc.,Services,435,00:00.0
Certified Fleet Services  Inc.,Services,4643.61,00:00.0
Certified Fleet Services  Inc.,Services,4139.48,00:00.0
Certified Languages International,Services,25.2,00:00.0
Certified Languages International,Services,105.3,00:00.0
Certified Languages International,Services,30.6,00:00.0
Certified Languages International,Services,44.1,00:00.0
Certified Languages International,Services,944.89,00:00.0
Certified Languages International,Services,52.2,00:00.0
Certified Languages International,Services,65.7,00:00.0
Certified Languages International,Services,94.5,00:00.0
Certified Languages International,Services,107.1,00:00.0
"Channahon Tractor, LLC",Services,2148.7,00:00.0
"Channahon Tractor, LLC",Services,1367.09,00:00.0
Charles A. Wilson,Services,36.8,00:00.0
Charles A. Wilson,Services,17.92,00:00.0
Charles A. Wilson,Services,268.8,00:00.0
Charles J. Harrison,Services,199,00:00.0
Charles J. Harrison,Services,53.98,00:00.0
Chas A Arce,Services,36.8,00:00.0
Chas A Arce,Services,44.8,00:00.0
Chas A Arce,Services,35.84,00:00.0
Chas A Arce,Services,35.84,00:00.0
"Checkfluid, Inc",Materials,450,00:00.0
"Checkfluid, Inc",Materials,600,00:00.0
"Checkfluid, Inc",Materials,450,00:00.0
"Checkfluid, Inc",Materials,600,00:00.0
"Checkfluid, Inc",Materials,750,00:00.0
"Checkfluid, Inc",Materials,900,00:00.0
"Checkfluid, Inc",Materials,600,00:00.0
Chem & Consult  Inc.,Materials,1969,00:00.0
Chem & Consult  Inc.,Materials,1969,00:00.0
Chem & Consult  Inc.,Materials,2222,00:00.0
Chi Lam Darren Tam,Services,8.5,00:00.0
Chicago Area Public Affairs Group,Services,500,00:00.0
Chicago Bar Assn.,Services,376,00:00.0
Chicago Car Seal Co.,Materials,299.9,00:00.0
Chicago Car Seal Co.,Materials,299.9,00:00.0
Chicago Car Seal Co.,Materials,299.9,00:00.0
Chicago Car Seal Co.,Materials,599.9,00:00.0
Chicago Faucet Shoppe,Materials,333.68,00:00.0
Chicago Faucet Shoppe,Materials,3349.13,00:00.0
Chicago Fire Department,Claims & Insurance,25,00:00.0
Chicago Fire Department,Claims & Insurance,25,00:00.0
Chicago Jack Service  Inc.,Materials,100.5,00:00.0
Chicago Locksmith Service  Inc.,Services,3700,00:00.0
Chicago Locksmith Service  Inc.,Materials,4985,00:00.0
Chicago Locksmith Service  Inc.,Materials,3962.1,00:00.0
Chicago Locksmith Service  Inc.,Services,4114,00:00.0
Chicago Metal Maintenance  Inc.,Services,615,00:00.0
Chicago Metal Maintenance  Inc.,Services,615,00:00.0
Chicago Metal Maintenance  Inc.,Services,615,00:00.0
Chicago Metal Maintenance  Inc.,Services,615,00:00.0
Chicago Metal Maintenance  Inc.,Services,615,00:00.0
Chicago Metal Maintenance  Inc.,Services,615,00:00.0
Chicago Metal Maintenance  Inc.,Services,615,00:00.0
Chicago Metal Maintenance  Inc.,Services,615,00:00.0
Chicago Metal Maintenance  Inc.,Services,615,00:00.0
Chicago Parts & Sound  Llc. Dba Police Department Systems,Services,9597,00:00.0
Chicago Parts & Sound  Llc. Dba Police Department Systems,Services,4195,00:00.0
Chicago Police Dept. Records Customer Service Section,Claims & Insurance,45.71,00:00.0
Chicago Railroad Supply Inc.,Capital Purchases,44872,00:00.0
Chicago Railroad Supply Inc.,Materials,11218,00:00.0
Chicago Railroad Supply Inc.,Materials,14058,00:00.0
Chicago Railroad Supply Inc.,Materials,12141,00:00.0
Chicago Railroad Supply Inc.,Services,11290,00:00.0
Chicago Railroad Supply Inc.,Services,13548,00:00.0
Chicago Railroad Supply Inc.,Services,13548,00:00.0
Chicago Spence Tool & Rubber Co.,Materials,568.2,00:00.0
Chicago Spence Tool & Rubber Co.,Materials,568.2,00:00.0
Chicago Spence Tool & Rubber Co.,Materials,852.3,00:00.0
Chicago Sun-Times,Services,624,00:00.0
Chicago Tire Inc.,Services,9958.15,00:00.0
Chicago Tire Inc.,Services,8274,00:00.0
Chicago Tire Inc.,Services,1392,00:00.0
Chicago Tire Inc.,Services,2604,00:00.0
Chicago Tire Inc.,Services,1327,00:00.0
Chicago Tire Inc.,Services,1034.42,00:00.0
Chicago Tire Inc.,Services,12080,00:00.0
Chicago Tire Inc.,Services,227.41,00:00.0
Chicago Tire Inc.,Services,7429,00:00.0
Chicago Tire Inc.,Services,934.72,00:00.0
Chicago Tire Inc.,Services,1217.76,00:00.0
Chicago Tire Inc.,Services,12080,00:00.0
Chicago Tire Inc.,Services,40,00:00.0
Chicago Tire Inc.,Services,1302,00:00.0
Chicago Tire Inc.,Services,7989,00:00.0
Chicago Tire Inc.,Services,5550,00:00.0
Chicago Tire Inc.,Services,5204,00:00.0
Chicago Tire Inc.,Services,7960,00:00.0
Chicago Tire Inc.,Services,2694,00:00.0
Chicago Tire Inc.,Services,484,00:00.0
Chicago Tire Inc.,Services,12090,00:00.0
Chicago Tire Inc.,Services,12080,00:00.0
Chicago Title & Trust Co.,Capital Purchases,15000,00:00.0
Chicago Transit Authority,Services,6545,00:00.0
Chicago Transit Authority,Services,6638.5,00:00.0
Chicago Transit Authority,Services,6171,00:00.0
Chicago Transit Authority,Services,8041,00:00.0
Chicago Transit Authority,Services,6732,00:00.0
Chicago Transit Authority,Services,7012.5,00:00.0
Chicago Transit Authority,Services,8882.5,00:00.0
Chicago Transit Authority,Services,8461.75,00:00.0
Chicago Transit Authority,Services,10378.5,00:00.0
Chicago Tribune,Services,179.37,00:00.0
Chicago United Industries  Ltd.,Materials,189,00:00.0
Chicago United Industries  Ltd.,Materials,269,00:00.0
Chicago United Industries  Ltd.,Materials,1199,00:00.0
Chicago United Industries  Ltd.,Materials,4888,00:00.0
Chicago United Industries  Ltd.,Materials,289,00:00.0
Chicago United Industries  Ltd.,Materials,815.85,00:00.0
Chicago United Industries  Ltd.,Materials,309,00:00.0
Chicago United Industries  Ltd.,Materials,5544.55,00:00.0
Chicago United Industries  Ltd.,Materials,2016,00:00.0
Chicago United Industries  Ltd.,Materials,1208,00:00.0
Chicago United Industries  Ltd.,Materials,2823,00:00.0
Chicago United Industries  Ltd.,Materials,260,00:00.0
Chicago United Industries  Ltd.,Materials,279,00:00.0
Chicago United Industries  Ltd.,Materials,3549.3,00:00.0
Chicago United Industries  Ltd.,Materials,260,00:00.0
Chicagoland Paving Contractors Inc.,Capital Purchases,15586.22,00:00.0
Chicagoland Paving Contractors Inc.,Capital Purchases,312003.45,00:00.0
Chicagoland Paving Contractors Inc.,Services,5280,00:00.0
Chicagoland Paving Contractors Inc.,Capital Purchases,154299.08,00:00.0
Chicagoland Paving Contractors Inc.,Capital Purchases,900,00:00.0
Chicagoland Paving Contractors Inc.,Capital Purchases,16388.16,00:00.0
Chicagoland Truck Parts LLC,Materials,1337.13,00:00.0
Chicagoland Truck Parts LLC,Materials,3987.87,00:00.0
Chicagoland Truck Parts LLC,Materials,112.55,00:00.0
Chicagoland Truck Parts LLC,Materials,2933.7,00:00.0
Chicagoland Truck Parts LLC,Materials,44.85,00:00.0
Chicagoland Truck Parts LLC,Materials,56.97,00:00.0
Chicagoland Truck Parts LLC,Materials,5151.11,00:00.0
Chicagoland Truck Parts LLC,Materials,778.52,00:00.0
Chicagoland Truck Parts LLC,Materials,1828.95,00:00.0
Chicagoland Truck Parts LLC,Materials,78,00:00.0
Chicagoland Truck Parts LLC,Materials,1092.95,00:00.0
Chicagoland Truck Parts LLC,Materials,3132.98,00:00.0
Chicagoland Truck Parts LLC,Materials,1748,00:00.0
Chicagoland Truck Parts LLC,Materials,660,00:00.0
Chicagoland Truck Parts LLC,Materials,1911.93,00:00.0
Chicagoland Truck Parts LLC,Materials,175.5,00:00.0
Chicagoland Truck Parts LLC,Materials,295.58,00:00.0
Chicagoland Truck Parts LLC,Materials,2930.16,00:00.0
Chicagoland Truck Parts LLC,Materials,172.8,00:00.0
Chicagoland Truck Parts LLC,Materials,101.94,00:00.0
Chicagoland Truck Parts LLC,Materials,10369.28,00:00.0
Chicagoland Truck Parts LLC,Materials,3437.54,00:00.0
Chicagoland Truck Parts LLC,Materials,999.98,00:00.0
Chicagoland Truck Parts LLC,Materials,874.75,00:00.0
Chicagoland Truck Parts LLC,Materials,78,00:00.0
Chicagoland Truck Parts LLC,Materials,3814.42,00:00.0
Chicagoland Truck Parts LLC,Materials,75.39,00:00.0
Chicagoland Truck Parts LLC,Materials,7710.1,00:00.0
Chicagoland Truck Parts LLC,Materials,1152.42,00:00.0
Chicagoland Truck Parts LLC,Materials,2234.09,00:00.0
Chicagoland Truck Parts LLC,Materials,245.35,00:00.0
Chicagoland Truck Parts LLC,Materials,120.49,00:00.0
Chicagoland Truck Parts LLC,Materials,118.5,00:00.0
Chicagoland Truck Parts LLC,Materials,1858.57,00:00.0
Chicagoland Truck Parts LLC,Materials,10897.48,00:00.0
Chicagoland Truck Parts LLC,Materials,276.3,00:00.0
Chicagoland Truck Parts LLC,Materials,240.19,00:00.0
Chicagoland Truck Parts LLC,Materials,3857.63,00:00.0
Chicagoland Truck Parts LLC,Materials,412.75,00:00.0
Chicagoland Truck Parts LLC,Materials,2771.55,00:00.0
Chicagoland Truck Parts LLC,Materials,146.48,00:00.0
Chicagoland Truck Parts LLC,Materials,1862.51,00:00.0
Chicagoland Truck Parts LLC,Materials,5980.59,00:00.0
Chicagoland Truck Parts LLC,Materials,998.6,00:00.0
Chris Rose,Services,42.55,00:00.0
Chris Rose,Services,41.44,00:00.0
Christopher A Prutsman,Services,64.96,00:00.0
Christopher P. Dorsey,Services,511.84,00:00.0
Christopher P. Dorsey,Services,294.56,00:00.0
Christopher P. Dorsey,Services,320.88,00:00.0
Christopher P. Dorsey,Services,320.88,00:00.0
Christopher P. Dorsey,Services,341.6,00:00.0
Christopher P. Dorsey,Services,273.84,00:00.0
Christopher P. Dorsey,Services,291.76,00:00.0
Christopher P. Dorsey,Services,338.8,00:00.0
Christopher P. Dorsey,Services,341.6,00:00.0
Christopher P. Dorsey,Services,318.08,00:00.0
Christopher P. Dorsey,Services,179.76,00:00.0
Christopher P. Dorsey,Services,135.52,00:00.0
Christopher P. Dorsey,Services,392,00:00.0
Christopher P. Dorsey,Services,318.08,00:00.0
Christopher P. Dorsey,Services,271.04,00:00.0
Christy Webber & Co.,Services,5987,00:00.0
Christy Webber & Co.,Services,3791,00:00.0
Christy Webber & Co.,Services,9778,00:00.0
Christy Webber & Co.,Services,3791,00:00.0
Christy Webber & Co.,Services,5987,00:00.0
Christy Webber & Co.,Services,5987,00:00.0
Christy Webber & Co.,Services,3791,00:00.0
Christy Webber & Co.,Services,3791,00:00.0
Christy Webber & Co.,Services,5987,00:00.0
Christy Webber & Co.,Services,5987,00:00.0
Christy Webber & Co.,Services,3791,00:00.0
Chrome Crankshaft Company LLC,Services,5700,00:00.0
Chrome Crankshaft Company LLC,Services,24585,00:00.0
Ciera Stipe,Services,35.84,00:00.0
Ciera Stipe,Services,44.8,00:00.0
"CIOX Health, LLC",Claims & Insurance,113.91,00:00.0
City Of Blue Island,Utilities,20.94,00:00.0
City Of Blue Island,Utilities,436,00:00.0
City Of Blue Island,Utilities,157.05,00:00.0
City Of Blue Island,Utilities,20.94,00:00.0
City Of Blue Island,Utilities,157.05,00:00.0
City Of Blue Island,Utilities,157.05,00:00.0
City Of Blue Island,Utilities,157.05,00:00.0
City Of Blue Island,Utilities,20.94,00:00.0
City Of Blue Island,Utilities,62.82,00:00.0
City Of Blue Island,Utilities,157.05,00:00.0
City Of Blue Island,Utilities,20.94,00:00.0
City Of Blue Island,Utilities,136.11,00:00.0
City Of Blue Island,Utilities,157.05,00:00.0
City Of Blue Island,Utilities,157.05,00:00.0
City Of Blue Island,Utilities,157.05,00:00.0
City Of Blue Island,Utilities,436,00:00.0
City Of Blue Island,Utilities,146.58,00:00.0
City Of Blue Island,Utilities,157.05,00:00.0
City Of Blue Island,Utilities,31.41,00:00.0
City Of Blue Island,Utilities,593.05,00:00.0
City Of Blue Island,Utilities,157.05,00:00.0
City Of Blue Island,Utilities,20.94,00:00.0
City Of Blue Island,Utilities,157.05,00:00.0
City Of Blue Island,Utilities,157.05,00:00.0
City Of Blue Island,Utilities,20.94,00:00.0
City Of Blue Island,Utilities,20.94,00:00.0
City Of Blue Island,Utilities,20.94,00:00.0
City Of Blue Island,Utilities,172.76,00:00.0
City Of Blue Island,Utilities,479.6,00:00.0
City Of Blue Island,Utilities,172.76,00:00.0
City Of Blue Island,Utilities,172.76,00:00.0
City Of Blue Island,Utilities,593.05,00:00.0
City Of Blue Island,Utilities,157.05,00:00.0
City Of Blue Island,Utilities,62.82,00:00.0
City Of Blue Island,Utilities,157.05,00:00.0
City Of Blue Island,Utilities,20.94,00:00.0
City Of Blue Island,Utilities,23.03,00:00.0
City Of Blue Island,Utilities,172.76,00:00.0
City Of Blue Island,Utilities,20.94,00:00.0
City Of Blue Island,Utilities,157.05,00:00.0
City Of Blue Island,Utilities,141.34,00:00.0
City Of Blue Island,Services,20.94,00:00.0
City Of Blue Island,Utilities,20.94,00:00.0
City Of Blue Island,Utilities,593.05,00:00.0
City Of Blue Island,Utilities,329.81,00:00.0
City Of Blue Island,Utilities,41.88,00:00.0
City Of Blue Island,Utilities,141.34,00:00.0
City Of Blue Island,Utilities,436,00:00.0
City Of Blue Island,Utilities,157.05,00:00.0
City Of Blue Island,Utilities,157.05,00:00.0
City Of Blue Island,Utilities,20.94,00:00.0
City Of Blue Island,Utilities,20.94,00:00.0
City Of Blue Island,Utilities,599.85,00:00.0
City Of Blue Island,Utilities,21.18,00:00.0
City Of Blue Island,Utilities,158.85,00:00.0
City Of Blue Island,Utilities,143.14,00:00.0
City Of Blue Island,Utilities,42.36,00:00.0
City Of Blue Island,Utilities,158.85,00:00.0
City Of Blue Island,Utilities,21.18,00:00.0
City Of Blue Island,Utilities,174.74,00:00.0
City Of Blue Island,Utilities,174.74,00:00.0
City Of Blue Island,Utilities,23.3,00:00.0
City Of Blue Island,Utilities,23.3,00:00.0
City Of Blue Island,Utilities,174.74,00:00.0
City Of Blue Island,Utilities,659.84,00:00.0
City Of Blue Island,Utilities,23.3,00:00.0
City of Chicago,Capital Purchases,375,00:00.0
City of Chicago,Services,1000,00:00.0
City of Chicago,Services,6228.36,00:00.0
City of Chicago,Services,7300.7,00:00.0
City of Chicago,Claims & Insurance,15000,00:00.0
City Of Elgin,Utilities,282.48,00:00.0
City Of Elgin,Utilities,1087.34,00:00.0
City Of Elgin,Utilities,215.15,00:00.0
City Of Elgin,Utilities,981.23,00:00.0
City Of Elgin,Utilities,502.75,00:00.0
City Of Elgin,Utilities,244.18,00:00.0
City Of Elgin,Utilities,392.74,00:00.0
City Of Elgin,Utilities,821.44,00:00.0
City Of Elgin,Utilities,317.18,00:00.0
City Of Elgin,Utilities,245.32,00:00.0
City Of Elgin,Utilities,779.07,00:00.0
City Of Elgin,Utilities,221.98,00:00.0
City Of Elgin,Utilities,863.8,00:00.0
City Of Elgin,Utilities,359.25,00:00.0
City Of Elgin,Utilities,207.18,00:00.0
City Of Elgin,Utilities,237.41,00:00.0
City Of Elgin,Utilities,966.23,00:00.0
City Of Elgin,Utilities,244.18,00:00.0
City Of Elgin,Utilities,254.34,00:00.0
City Of Elgin,Utilities,892.24,00:00.0
City Of Elgin,Utilities,207.18,00:00.0
City Of Elgin,Utilities,886,00:00.0
City Of Elgin,Utilities,255.45,00:00.0
City Of Elgin,Utilities,229.38,00:00.0
City Of Elgin,Utilities,782.11,00:00.0
City Of Elgin,Utilities,159.93,00:00.0
City Of Elgin,Utilities,248.53,00:00.0
City Of Elgin,Utilities,244.18,00:00.0
City Of Harvey Water Department,Utilities,37.03,00:00.0
City Of Harvey Water Department,Utilities,33.72,00:00.0
City Of Harvey Water Department,Utilities,43.79,00:00.0
City Of Harvey Water Department,Utilities,43.92,00:00.0
City Of Harvey Water Department,Utilities,37.36,00:00.0
City Of Harvey Water Department,Utilities,110.52,00:00.0
City Of Harvey Water Department,Utilities,33.58,00:00.0
City Of Harvey Water Department,Utilities,23.52,00:00.0
City Of Harvey Water Department,Utilities,40.29,00:00.0
City Of Harvey Water Department,Utilities,33.8,00:00.0
City Of Harvey Water Department,Utilities,34.02,00:00.0
City Of Harvey Water Department,Utilities,11.66,00:00.0
City Of Harvey Water Department,Utilities,33.83,00:00.0
City Of Harvey Water Department,Utilities,33.89,00:00.0
City Of Harvey Water Department,Utilities,33.87,00:00.0
City Of Highland Park,Services,150343.31,00:00.0
City Of Highland Park,Utilities,27.8,00:00.0
City Of Highland Park,Utilities,27.8,00:00.0
City Of Highland Park,Utilities,27.8,00:00.0
City Of Joliet,Utilities,20.01,00:00.0
City Of Joliet,Utilities,20.75,00:00.0
City Of Joliet,Utilities,20.52,00:00.0
City Of Joliet,Utilities,19.36,00:00.0
City Of Joliet,Utilities,20.58,00:00.0
City Of Joliet,Utilities,20.13,00:00.0
City Of Joliet,Utilities,20.58,00:00.0
City Of Joliet,Utilities,20.13,00:00.0
City Of Joliet,Utilities,20.58,00:00.0
City of North Chicago,Services,218608.57,00:00.0
City Of Oak Forest Ill.,Utilities,37.86,00:00.0
City Of Oak Forest Ill.,Utilities,26.43,00:00.0
City Of Oak Forest Ill.,Utilities,38.6,00:00.0
City of Woodstock,Services,249417.54,00:00.0
Claeven  Ltd.,Services,1820,00:00.0
Claeven  Ltd.,Services,1404,00:00.0
Claeven  Ltd.,Services,845,00:00.0
Claeven  Ltd.,Services,1300,00:00.0
Claeven  Ltd.,Services,1235,00:00.0
Claeven  Ltd.,Services,455,00:00.0
Claeven  Ltd.,Services,234,00:00.0
Claeven  Ltd.,Services,455,00:00.0
Claeven  Ltd.,Services,1105,00:00.0
Claeven  Ltd.,Services,845,00:00.0
Claeven  Ltd.,Services,325,00:00.0
Claeven  Ltd.,Services,325,00:00.0
Claeven  Ltd.,Services,715,00:00.0
Claeven  Ltd.,Services,845,00:00.0
Claeven  Ltd.,Services,2626,00:00.0
Claeven  Ltd.,Services,1235,00:00.0
Claeven  Ltd.,Services,715,00:00.0
Claeven  Ltd.,Services,234,00:00.0
Claeven  Ltd.,Services,715,00:00.0
Claeven  Ltd.,Services,675,00:00.0
Claeven  Ltd.,Services,455,00:00.0
Claeven  Ltd.,Services,455,00:00.0
Claeven  Ltd.,Services,1170,00:00.0
Claeven  Ltd.,Services,455,00:00.0
Claeven  Ltd.,Services,325,00:00.0
Claeven  Ltd.,Services,455,00:00.0
Claeven  Ltd.,Services,780,00:00.0
Claeven  Ltd.,Services,2990,00:00.0
Claeven  Ltd.,Services,455,00:00.0
Claeven  Ltd.,Services,325,00:00.0
Claeven  Ltd.,Services,455,00:00.0
Claeven  Ltd.,Services,845,00:00.0
Claeven  Ltd.,Services,715,00:00.0
Claeven  Ltd.,Services,455,00:00.0
Claeven  Ltd.,Services,455,00:00.0
Claeven  Ltd.,Services,845,00:00.0
Claeven  Ltd.,Services,1813.5,00:00.0
Claeven  Ltd.,Services,455,00:00.0
Claeven  Ltd.,Services,455,00:00.0
Claeven  Ltd.,Services,455,00:00.0
Claeven  Ltd.,Services,910,00:00.0
Claeven  Ltd.,Services,1235,00:00.0
Claeven  Ltd.,Services,455,00:00.0
Claeven  Ltd.,Services,780,00:00.0
Claeven  Ltd.,Services,1170,00:00.0
Claeven  Ltd.,Services,4995,00:00.0
Claeven  Ltd.,Services,845,00:00.0
Claeven  Ltd.,Services,455,00:00.0
Claeven  Ltd.,Services,1040,00:00.0
Claeven  Ltd.,Services,845,00:00.0
Claeven  Ltd.,Services,2535,00:00.0
Claeven  Ltd.,Services,455,00:00.0
Claeven  Ltd.,Services,455,00:00.0
Claeven  Ltd.,Services,715,00:00.0
Claeven  Ltd.,Services,546,00:00.0
Claeven  Ltd.,Services,2135,00:00.0
Claeven  Ltd.,Services,75,00:00.0
Claeven  Ltd.,Services,715,00:00.0
Claeven  Ltd.,Services,559,00:00.0
Claeven  Ltd.,Services,689,00:00.0
Claeven  Ltd.,Services,546,00:00.0
Claeven  Ltd.,Services,455,00:00.0
Claeven  Ltd.,Services,1755,00:00.0
Claeven  Ltd.,Services,455,00:00.0
Claeven  Ltd.,Services,1391,00:00.0
Claeven  Ltd.,Services,455,00:00.0
Claeven  Ltd.,Services,455,00:00.0
Claeven  Ltd.,Services,546,00:00.0
Claeven  Ltd.,Services,2340,00:00.0
Claeven  Ltd.,Services,715,00:00.0
Claeven  Ltd.,Services,2080,00:00.0
Claeven  Ltd.,Services,1365,00:00.0
Claeven  Ltd.,Services,455,00:00.0
Claeven  Ltd.,Services,455,00:00.0
Claeven  Ltd.,Services,1105,00:00.0
Claeven  Ltd.,Services,1690,00:00.0
Claeven  Ltd.,Services,1911,00:00.0
Claeven  Ltd.,Services,455,00:00.0
Claeven  Ltd.,Services,910,00:00.0
Claeven  Ltd.,Services,845,00:00.0
Claeven  Ltd.,Services,715,00:00.0
Claeven  Ltd.,Services,234,00:00.0
Clarity Partners  Llc,Services,1570.34,00:00.0
Clarity Partners  Llc,Services,76177.5,00:00.0
Clarity Partners  Llc,Services,72607.5,00:00.0
Clarity Partners  Llc,Services,29920.34,00:00.0
Clarity Partners  Llc,Services,65005,00:00.0
Clarity Partners  Llc,Services,1570.34,00:00.0
Clarity Partners  Llc,Services,2298.34,00:00.0
Clarity Partners  Llc,Services,59653.75,00:00.0
Clarity Partners  Llc,Services,1570.34,00:00.0
Clarity Partners  Llc,Services,47870,00:00.0
Clarity Partners  Llc,Services,1570.34,00:00.0
Clarity Partners  Llc,Services,22305,00:00.0
Clarity Partners  Llc,Services,1570.34,00:00.0
Clarity Partners  Llc,Services,45703.75,00:00.0
Clarity Partners  Llc,Services,1570.34,00:00.0
Clarity Partners  Llc,Services,32662.5,00:00.0
Clarity Partners  Llc,Services,55000,00:00.0
Clarity Partners  Llc,Services,1570.34,00:00.0
Clark Catering Inc,Services,34690.2,00:00.0
Clark Catering Inc,Services,447.2,00:00.0
Claybourne Miller,Services,241.5,00:00.0
Claybourne Miller,Services,462.3,00:00.0
Claybourne Miller,Services,235.2,00:00.0
Claybourne Miller,Services,271.04,00:00.0
Claybourne Miller,Services,271.04,00:00.0
Claybourne Miller,Services,199.36,00:00.0
Claybourne Miller,Services,271.04,00:00.0
Claybourne Miller,Services,235.2,00:00.0
Claybourne Miller,Services,281.12,00:00.0
Claybourne Miller,Services,235.2,00:00.0
Claybourne Miller,Services,199.36,00:00.0
Claybourne Miller,Services,306.88,00:00.0
Claybourne Miller,Services,235.2,00:00.0
Claybourne Miller,Services,235.2,00:00.0
Claybourne Miller,Services,281.12,00:00.0
Claybourne Miller,Services,235.2,00:00.0
Claybourne Miller,Services,189.28,00:00.0
Claybourne Miller,Services,235.2,00:00.0
Claybourne Miller,Services,235.2,00:00.0
Clayton Starks Iii,Services,113.12,00:00.0
Clayton Starks Iii,Services,223.55,00:00.0
Clayton Starks Iii,Services,8.96,00:00.0
Clayton Starks Iii,Services,224,00:00.0
Cleaning Specialist  Inc.,Services,4562,00:00.0
Cleaning Specialist  Inc.,Services,2295,00:00.0
Cleaning Specialist  Inc.,Services,3672,00:00.0
Cleaning Specialist  Inc.,Services,2078,00:00.0
Cleaning Specialist  Inc.,Services,400,00:00.0
Cleaning Specialist  Inc.,Services,6825,00:00.0
Cleaning Specialist  Inc.,Services,3300,00:00.0
Cleaning Specialist  Inc.,Capital Purchases,2800,00:00.0
Cleaning Specialist  Inc.,Services,14693,00:00.0
Cleaning Specialist  Inc.,Services,510,00:00.0
Cleaning Specialist  Inc.,Services,2242,00:00.0
Cleaning Specialist  Inc.,Services,2763,00:00.0
Cleaning Specialist  Inc.,Capital Purchases,3150,00:00.0
Cleaning Specialist  Inc.,Services,5491,00:00.0
Cleaning Specialist  Inc.,Services,1997,00:00.0
Cleaning Specialist  Inc.,Services,548,00:00.0
Cleaning Specialist  Inc.,Services,6340,00:00.0
Cleaning Specialist  Inc.,Services,657,00:00.0
Cleaning Specialist  Inc.,Services,3529,00:00.0
Cleaning Specialist  Inc.,Services,5566,00:00.0
Cleaning Specialist  Inc.,Services,610,00:00.0
Cleaning Specialist  Inc.,Services,3267,00:00.0
Cleaning Specialist  Inc.,Services,6845,00:00.0
Cleaning Specialist  Inc.,Services,3101,00:00.0
Clever Devices Ltd.,Capital Purchases,938371.57,00:00.0
Clever Devices Ltd.,Capital Purchases,292607.17,00:00.0
Clever Devices Ltd.,Capital Purchases,286755.6,00:00.0
Clever Devices Ltd.,Capital Purchases,110894.83,00:00.0
Clever Devices Ltd.,Capital Purchases,113157.77,00:00.0
Clever Devices Ltd.,Capital Purchases,232891.42,00:00.0
Clever Devices Ltd.,Capital Purchases,228234.05,00:00.0
Clever Devices Ltd.,Capital Purchases,591186.5,00:00.0
Clever Devices Ltd.,Services,185298.91,00:00.0
Clever Devices Ltd.,Capital Purchases,450615.31,00:00.0
Clever Devices Ltd.,Capital Purchases,459811.9,00:00.0
Clever Devices Ltd.,Capital Purchases,397946.55,00:00.0
Clever Devices Ltd.,Capital Purchases,406067.09,00:00.0
Clever Devices Ltd.,Capital Purchases,48999.95,00:00.0
Clever Devices Ltd.,Capital Purchases,50000.05,00:00.0
Clever Devices Ltd.,Capital Purchases,463638.89,00:00.0
Clever Devices Ltd.,Capital Purchases,473101.49,00:00.0
Clinical Neuroscience Services Of WNC,Claims & Insurance,7691.08,00:00.0
Cloudinary Inc,Services,48900,00:00.0
Cody Johnson,Services,72.45,00:00.0
Cody Johnson,Services,33.35,00:00.0
Cohnreznick Llp,Services,4960,00:00.0
Cohnreznick Llp,Services,13000,00:00.0
Cohnreznick Llp,Services,71355,00:00.0
Coldgon Products International  Inc,Services,188,00:00.0
Coldgon Products International  Inc,Services,1252.5,00:00.0
Coldgon Products International  Inc,Services,1252.5,00:00.0
Coldgon Products International  Inc,Services,188,00:00.0
Collins Bargione & Vukovich,Claims & Insurance,278.54,00:00.0
Collins Engineers  Inc.,Capital Purchases,64778.58,00:00.0
Columbia Pipe & Supply,Materials,3066,00:00.0
Columbia Pipe & Supply,Services,61.32,00:00.0
Com Ed-Real Estate Dept.  4Th Fl.,Rental Expense,573.26,00:00.0
Com Ed-Real Estate Dept.  4Th Fl.,Rental Expense,601.92,00:00.0
Com Ed-Real Estate Dept.  4Th Fl.,Rental Expense,601.92,00:00.0
Com Ed-Real Estate Dept.  4Th Fl.,Rental Expense,601.92,00:00.0
Com Ed-Real Estate Dept.  4Th Fl.,Rental Expense,601.92,00:00.0
Com Ed-Real Estate Dept.  4Th Fl.,Rental Expense,601.92,00:00.0
Com Ed-Real Estate Dept.  4Th Fl.,Rental Expense,601.92,00:00.0
Com Ed-Real Estate Dept.  4Th Fl.,Rental Expense,601.92,00:00.0
Com Ed-Real Estate Dept.  4Th Fl.,Rental Expense,601.92,00:00.0
Com Ed-Real Estate Dept.  4Th Fl.,Rental Expense,601.92,00:00.0
Comcast,Utilities,1300,00:00.0
Comcast,Utilities,4411.8,00:00.0
Comcast,Utilities,4453.68,00:00.0
Comcast,Utilities,1300,00:00.0
Comcast,Utilities,2531.62,00:00.0
Comcast,Utilities,8975.74,00:00.0
Comcast,Utilities,4490.28,00:00.0
Comcast,Utilities,1266.49,00:00.0
Comcast,Utilities,4490.36,00:00.0
Comcast,Utilities,1266.5,00:00.0
Comcast,Utilities,4485.68,00:00.0
Comcast,Utilities,1265.19,00:00.0
Comcast,Capital Purchases,49794.29,00:00.0
Comcast,Utilities,1270.96,00:00.0
Comcast,Utilities,4506.15,00:00.0
Comcast,Utilities,1271.04,00:00.0
Comcast,Utilities,4506.43,00:00.0
Comcast Business,Utilities,37301.42,00:00.0
Comcast Business,Utilities,24867,00:00.0
Comcast Business,Utilities,37301.02,00:00.0
Comcast Business,Utilities,24867.4,00:00.0
Comcast Business,Utilities,37301.05,00:00.0
Comcast Business,Utilities,24867.37,00:00.0
Comcast Business,Utilities,37438.73,00:00.0
Comcast Business,Utilities,24959.16,00:00.0
Comcast Business,Utilities,50291.32,00:00.0
Comcast Business,Utilities,75436.99,00:00.0
Comcast Business,Utilities,24920.65,00:00.0
Comcast Business,Utilities,37380.98,00:00.0
Comcast Business,Utilities,24814.68,00:00.0
Comcast Business,Utilities,37222.03,00:00.0
Comcast Business,Utilities,37222.03,00:00.0
Comcast Business,Utilities,24814.68,00:00.0
Commercial Group Lifting Products,Services,181.49,00:00.0
Commercial Group Lifting Products,Services,199.52,00:00.0
Commercial Group Lifting Products,Services,368.85,00:00.0
Commercial Group Lifting Products,Services,175,00:00.0
Commercial Group Lifting Products,Services,200.42,00:00.0
Commercial Group Lifting Products,Services,245,00:00.0
Commonwealth Edison,Utilities,56.25,00:00.0
Commonwealth Edison,Utilities,47.76,00:00.0
Commonwealth Edison,Utilities,91.65,00:00.0
Commonwealth Edison,Utilities,175.99,00:00.0
Commonwealth Edison,Utilities,40.55,00:00.0
Commonwealth Edison,Utilities,122.48,00:00.0
Commonwealth Edison,Utilities,236.42,00:00.0
Commonwealth Edison,Utilities,155.39,00:00.0
Commonwealth Edison,Utilities,223.5,00:00.0
Commonwealth Edison,Utilities,24.82,00:00.0
Commonwealth Edison,Utilities,214.88,00:00.0
Commonwealth Edison,Utilities,119.48,00:00.0
Commonwealth Edison,Utilities,45.07,00:00.0
Commonwealth Edison,Utilities,1048.24,00:00.0
Commonwealth Edison,Utilities,47.05,00:00.0
Commonwealth Edison,Utilities,67.21,00:00.0
Commonwealth Edison,Utilities,138.98,00:00.0
Commonwealth Edison,Utilities,259.41,00:00.0
Commonwealth Edison,Utilities,31.59,00:00.0
Commonwealth Edison,Utilities,97.19,00:00.0
Commonwealth Edison,Utilities,68.4,00:00.0
Commonwealth Edison,Capital Purchases,835.5,00:00.0
Commonwealth Edison,Utilities,50.36,00:00.0
Commonwealth Edison,Utilities,77326.08,00:00.0
Commonwealth Edison,Utilities,29.62,00:00.0
Commonwealth Edison,Utilities,106.3,00:00.0
Commonwealth Edison,Utilities,64.72,00:00.0
Commonwealth Edison,Utilities,95.51,00:00.0
Commonwealth Edison,Utilities,64.18,00:00.0
Commonwealth Edison,Utilities,46.63,00:00.0
Commonwealth Edison,Utilities,355.31,00:00.0
Commonwealth Edison,Utilities,60.93,00:00.0
Commonwealth Edison,Utilities,96.1,00:00.0
Commonwealth Edison,Utilities,176.17,00:00.0
Commonwealth Edison,Utilities,51.32,00:00.0
Commonwealth Edison,Utilities,43.37,00:00.0
Commonwealth Edison,Utilities,50.98,00:00.0
Commonwealth Edison,Utilities,253.59,00:00.0
Commonwealth Edison,Utilities,67.13,00:00.0
Commonwealth Edison,Utilities,1038.37,00:00.0
Commonwealth Edison,Utilities,63.4,00:00.0
Commonwealth Edison,Utilities,97.3,00:00.0
Commonwealth Edison,Utilities,43.05,00:00.0
Commonwealth Edison,Utilities,137.49,00:00.0
Commonwealth Edison,Utilities,54.96,00:00.0
Commonwealth Edison,Utilities,191.65,00:00.0
Commonwealth Edison,Utilities,611.99,00:00.0
Commonwealth Edison,Utilities,24.62,00:00.0
Commonwealth Edison,Utilities,29.32,00:00.0
Commonwealth Edison,Utilities,25.25,00:00.0
Commonwealth Edison,Utilities,82009.64,00:00.0
Commonwealth Edison,Utilities,108.73,00:00.0
Commonwealth Edison,Utilities,32.48,00:00.0
Commonwealth Edison,Utilities,1108.92,00:00.0
Commonwealth Edison,Utilities,189.53,00:00.0
Commonwealth Edison,Utilities,138.04,00:00.0
Commonwealth Edison,Utilities,274.44,00:00.0
Commonwealth Edison,Utilities,208.78,00:00.0
Commonwealth Edison,Utilities,70.32,00:00.0
Commonwealth Edison,Utilities,142265.13,00:00.0
Commonwealth Edison,Utilities,171746.87,00:00.0
Commonwealth Edison,Utilities,24.3,00:00.0
Commonwealth Edison,Utilities,428.49,00:00.0
Commonwealth Edison,Utilities,1166.49,00:00.0
Commonwealth Edison,Utilities,159.56,00:00.0
Commonwealth Edison,Utilities,340.87,00:00.0
Commonwealth Edison,Utilities,185.21,00:00.0
Commonwealth Edison,Utilities,155.54,00:00.0
Commonwealth Edison,Utilities,72.95,00:00.0
Commonwealth Edison,Utilities,140.18,00:00.0
Commonwealth Edison,Utilities,46.13,00:00.0
Commonwealth Edison,Utilities,160.33,00:00.0
Commonwealth Edison,Utilities,268.35,00:00.0
Commonwealth Edison,Utilities,30.01,00:00.0
Commonwealth Edison,Utilities,100.3,00:00.0
Commonwealth Edison,Utilities,96.77,00:00.0
Commonwealth Edison,Utilities,232.11,00:00.0
Commonwealth Edison,Utilities,197.22,00:00.0
Commonwealth Edison,Utilities,60.79,00:00.0
Commonwealth Edison,Utilities,67.7,00:00.0
Commonwealth Edison,Utilities,2827.7,00:00.0
Commonwealth Edison,Utilities,413.04,00:00.0
Commonwealth Edison,Utilities,2516.66,00:00.0
Commonwealth Edison,Utilities,274.1,00:00.0
Commonwealth Edison,Utilities,190.56,00:00.0
Commonwealth Edison,Utilities,883.01,00:00.0
Commonwealth Edison,Utilities,732.96,00:00.0
Commonwealth Edison,Utilities,136.3,00:00.0
Commonwealth Edison,Utilities,64.1,00:00.0
Commonwealth Edison,Utilities,1174.97,00:00.0
Commonwealth Edison,Utilities,33.17,00:00.0
Commonwealth Edison,Utilities,44.29,00:00.0
Commonwealth Edison,Utilities,24.3,00:00.0
Commonwealth Edison,Utilities,48.35,00:00.0
Commonwealth Edison,Utilities,554.7,00:00.0
Commonwealth Edison,Utilities,28.27,00:00.0
Commonwealth Edison,Utilities,176.7,00:00.0
Commonwealth Edison,Utilities,50.75,00:00.0
Commonwealth Edison,Utilities,91232.26,00:00.0
Commonwealth Edison,Utilities,25.02,00:00.0
Commonwealth Edison,Utilities,216546.1,00:00.0
Commonwealth Edison,Utilities,1096.26,00:00.0
Commonwealth Edison,Utilities,403.55,00:00.0
Commonwealth Edison,Utilities,24.62,00:00.0
Commonwealth Edison,Utilities,63.1,00:00.0
Commonwealth Edison,Utilities,94.75,00:00.0
Commonwealth Edison,Utilities,45.54,00:00.0
Commonwealth Edison,Utilities,205.24,00:00.0
Commonwealth Edison,Utilities,29.01,00:00.0
Commonwealth Edison,Utilities,189.73,00:00.0
Commonwealth Edison,Utilities,1174.02,00:00.0
Commonwealth Edison,Utilities,70.02,00:00.0
Commonwealth Edison,Utilities,105897.02,00:00.0
Commonwealth Edison,Utilities,107.97,00:00.0
Commonwealth Edison,Utilities,749.46,00:00.0
Commonwealth Edison,Utilities,232.83,00:00.0
Commonwealth Edison,Utilities,401.22,00:00.0
Commonwealth Edison,Utilities,2230.79,00:00.0
Commonwealth Edison,Utilities,24.3,00:00.0
Commonwealth Edison,Utilities,299.57,00:00.0
Commonwealth Edison,Utilities,40.06,00:00.0
Commonwealth Edison,Utilities,230955.72,00:00.0
Commonwealth Edison,Utilities,28.75,00:00.0
Commonwealth Edison,Utilities,116.48,00:00.0
Commonwealth Edison,Utilities,1747.9,00:00.0
Commonwealth Edison,Utilities,44.74,00:00.0
Commonwealth Edison,Utilities,146.29,00:00.0
Commonwealth Edison,Utilities,156.91,00:00.0
Commonwealth Edison,Utilities,113.75,00:00.0
Commonwealth Edison,Utilities,151.01,00:00.0
Commonwealth Edison,Utilities,24.62,00:00.0
Commonwealth Edison,Utilities,60.5,00:00.0
Commonwealth Edison,Utilities,142.03,00:00.0
Commonwealth Edison,Utilities,227.32,00:00.0
Commonwealth Edison,Utilities,733.84,00:00.0
Commonwealth Edison,Utilities,88.68,00:00.0
Commonwealth Edison,Utilities,41.4,00:00.0
Commonwealth Edison,Utilities,80.18,00:00.0
Commonwealth Edison,Utilities,43.08,00:00.0
Commonwealth Edison,Utilities,47.74,00:00.0
Commonwealth Edison,Utilities,337.25,00:00.0
Commonwealth Edison,Utilities,72.48,00:00.0
Commonwealth Edison,Utilities,32.53,00:00.0
Commonwealth Edison,Utilities,925.97,00:00.0
Commonwealth Edison,Utilities,24.72,00:00.0
Commonwealth Edison,Utilities,178.53,00:00.0
Commonwealth Edison,Utilities,105.58,00:00.0
Commonwealth Edison,Utilities,216391.29,00:00.0
Commonwealth Edison,Utilities,60.64,00:00.0
Commonwealth Edison,Utilities,109819.9,00:00.0
Commonwealth Edison,Utilities,84088.35,00:00.0
Commonwealth Edison,Utilities,179.06,00:00.0
Commonwealth Edison,Utilities,92.99,00:00.0
Commonwealth Edison,Utilities,174.16,00:00.0
Commonwealth Edison,Utilities,104.93,00:00.0
Commonwealth Edison,Utilities,1673.53,00:00.0
Commonwealth Edison,Utilities,857.3,00:00.0
Commonwealth Edison,Utilities,163.83,00:00.0
Commonwealth Edison,Utilities,88.17,00:00.0
Commonwealth Edison,Utilities,427.4,00:00.0
Commonwealth Edison,Utilities,24.3,00:00.0
Commonwealth Edison,Utilities,22.89,00:00.0
Commonwealth Edison,Utilities,62.4,00:00.0
Commonwealth Edison,Utilities,82.65,00:00.0
Commonwealth Edison,Utilities,40.1,00:00.0
Commonwealth Edison,Utilities,44.09,00:00.0
Commonwealth Edison,Utilities,26.92,00:00.0
Commonwealth Edison,Utilities,169.67,00:00.0
Commonwealth Edison,Utilities,143.65,00:00.0
Commonwealth Edison,Utilities,24.62,00:00.0
Commonwealth Edison,Utilities,529.4,00:00.0
Commonwealth Edison,Utilities,238.39,00:00.0
Commonwealth Edison,Utilities,28.81,00:00.0
Commonwealth Edison,Utilities,42.87,00:00.0
Commonwealth Edison,Utilities,48.21,00:00.0
Commonwealth Edison,Utilities,62.88,00:00.0
Commonwealth Edison,Utilities,74690.23,00:00.0
Commonwealth Edison,Utilities,84.37,00:00.0
Commonwealth Edison,Utilities,27.82,00:00.0
Commonwealth Edison,Utilities,164236.58,00:00.0
Commonwealth Edison,Utilities,162.47,00:00.0
Commonwealth Edison,Utilities,30.99,00:00.0
Commonwealth Edison,Utilities,1975.48,00:00.0
Commonwealth Edison,Utilities,539.81,00:00.0
Commonwealth Edison,Utilities,562.98,00:00.0
Commonwealth Edison,Utilities,39.13,00:00.0
Commonwealth Edison,Utilities,1017.74,00:00.0
Commonwealth Edison,Utilities,24.72,00:00.0
Commonwealth Edison,Utilities,148.11,00:00.0
Commonwealth Edison,Utilities,169.74,00:00.0
Commonwealth Edison,Utilities,141.34,00:00.0
Commonwealth Edison,Utilities,199.61,00:00.0
Commonwealth Edison,Utilities,41.64,00:00.0
Commonwealth Edison,Utilities,35.44,00:00.0
Commonwealth Edison,Utilities,24.38,00:00.0
Commonwealth Edison,Utilities,49.98,00:00.0
Commonwealth Edison,Utilities,87.9,00:00.0
Commonwealth Edison,Utilities,167.13,00:00.0
Commonwealth Edison,Utilities,24.72,00:00.0
Commonwealth Edison,Utilities,97.73,00:00.0
Commonwealth Edison,Utilities,32.41,00:00.0
Commonwealth Edison,Utilities,71.06,00:00.0
Commonwealth Edison,Utilities,501.8,00:00.0
Commonwealth Edison,Utilities,43.87,00:00.0
Commonwealth Edison,Utilities,74.8,00:00.0
Commonwealth Edison,Utilities,105.9,00:00.0
Commonwealth Edison,Utilities,117.39,00:00.0
Commonwealth Edison,Utilities,106.77,00:00.0
Commonwealth Edison,Utilities,50.63,00:00.0
Commonwealth Edison,Utilities,65.52,00:00.0
Commonwealth Edison,Utilities,26.85,00:00.0
Commonwealth Edison,Utilities,141409.74,00:00.0
Commonwealth Edison,Utilities,35.31,00:00.0
Commonwealth Edison,Utilities,134.61,00:00.0
Commonwealth Edison,Utilities,176.97,00:00.0
Commonwealth Edison,Utilities,60.82,00:00.0
Commonwealth Edison,Utilities,222.88,00:00.0
Commonwealth Edison,Utilities,547.69,00:00.0
Commonwealth Edison,Utilities,107.66,00:00.0
Commonwealth Edison,Utilities,33.97,00:00.0
Commonwealth Edison,Utilities,77249.72,00:00.0
Commonwealth Edison,Utilities,156834.95,00:00.0
Commonwealth Edison,Utilities,107.24,00:00.0
Commonwealth Edison,Utilities,147.11,00:00.0
Commonwealth Edison,Utilities,129.66,00:00.0
Commonwealth Edison,Utilities,24.38,00:00.0
Commonwealth Edison,Utilities,284.81,00:00.0
Commonwealth Edison,Utilities,75986.41,00:00.0
Commonwealth Edison,Utilities,210.27,00:00.0
Commonwealth Edison,Utilities,28.9,00:00.0
Commonwealth Edison,Utilities,1514.57,00:00.0
Commonwealth Edison,Utilities,104.25,00:00.0
Commonwealth Edison,Utilities,43.54,00:00.0
Commonwealth Edison,Utilities,114.56,00:00.0
Commonwealth Edison,Utilities,143.99,00:00.0
Commonwealth Edison,Utilities,114.34,00:00.0
Commonwealth Edison,Utilities,72.5,00:00.0
Commonwealth Edison,Utilities,216.18,00:00.0
Commonwealth Edison,Utilities,641.64,00:00.0
Commonwealth Edison,Utilities,49.25,00:00.0
Commonwealth Edison,Utilities,289.44,00:00.0
Commonwealth Edison,Utilities,31.65,00:00.0
Commonwealth Edison,Utilities,81.05,00:00.0
Commonwealth Edison,Utilities,130.01,00:00.0
Commonwealth Edison,Utilities,84.61,00:00.0
Commonwealth Edison,Utilities,27.31,00:00.0
Commonwealth Edison,Utilities,370.31,00:00.0
Commonwealth Edison,Utilities,1754.9,00:00.0
Commonwealth Edison,Utilities,309.25,00:00.0
Commonwealth Edison,Utilities,564.69,00:00.0
Commonwealth Edison,Utilities,116.81,00:00.0
Commonwealth Edison,Utilities,150559.41,00:00.0
Commonwealth Edison,Utilities,50.7,00:00.0
Commonwealth Edison,Utilities,55.3,00:00.0
Commonwealth Edison,Utilities,105.29,00:00.0
Commonwealth Edison,Utilities,54.18,00:00.0
Commuter Rail Coalition,Services,30000,00:00.0
Commuter Rail Construction Team Llc,Capital Purchases,100624.9,00:00.0
Commuter Rail Construction Team Llc,Capital Purchases,5873.42,00:00.0
Commuter Rail Construction Team Llc,Capital Purchases,2992.44,00:00.0
Commuter Rail Construction Team Llc,Capital Purchases,57987.15,00:00.0
Commuter Rail Construction Team Llc,Capital Purchases,59378.47,00:00.0
Commuter Rail Construction Team Llc,Capital Purchases,2191.25,00:00.0
Commuter Rail Construction Team Llc,Capital Purchases,6062.02,00:00.0
Commuter Rail Construction Team Llc,Capital Purchases,31418.45,00:00.0
Commuter Rail Construction Team Llc,Capital Purchases,8750.06,00:00.0
Commuter Rail Construction Team Llc,Capital Purchases,83034.36,00:00.0
Commuter Rail Construction Team Llc,Capital Purchases,69471.02,00:00.0
Commuter Rail Construction Team Llc,Capital Purchases,65459.07,00:00.0
Commuter Rail Construction Team Llc,Capital Purchases,36634.66,00:00.0
Commuter Rail Construction Team Llc,Capital Purchases,26965.07,00:00.0
Commuter Rail Construction Team Llc,Capital Purchases,62766.33,00:00.0
Commuter Rail Construction Team Llc,Capital Purchases,3270.21,00:00.0
Commuter Rail Construction Team Llc,Capital Purchases,6090.31,00:00.0
Commuter Rail Construction Team Llc,Capital Purchases,59331.07,00:00.0
Commuter Rail Construction Team Llc,Capital Purchases,2409.46,00:00.0
Commuter Rail Construction Team Llc,Capital Purchases,5033.41,00:00.0
Commuter Rail Construction Team Llc,Capital Purchases,53224.76,00:00.0
Commuter Rail Construction Team Llc,Capital Purchases,20796.3,00:00.0
Commuter Rail Construction Team Llc,Capital Purchases,25881.24,00:00.0
Commuter Rail Construction Team Llc,Capital Purchases,4517.74,00:00.0
Commuter Rail Construction Team Llc,Capital Purchases,63354.28,00:00.0
Commuter Rail Construction Team Llc,Capital Purchases,17817.48,00:00.0
Commuter Rail Construction Team Llc,Capital Purchases,109577.89,00:00.0
Commuter Rail Construction Team Llc,Capital Purchases,8604.78,00:00.0
Commuter Rail Construction Team Llc,Capital Purchases,13564.6,00:00.0
Compass Minerals America Inc.,Materials,1411.03,00:00.0
Compass Minerals America Inc.,Materials,3342.43,00:00.0
Compass Minerals America Inc.,Materials,3318.68,00:00.0
Compass Minerals America Inc.,Materials,3423.83,00:00.0
Compass Minerals America Inc.,Materials,1770.73,00:00.0
Compass Minerals America Inc.,Materials,1683.06,00:00.0
Compass Minerals America Inc.,Materials,1641.99,00:00.0
Compass Minerals America Inc.,Materials,1607.24,00:00.0
Compass Minerals America Inc.,Materials,1600.92,00:00.0
Compass Minerals America Inc.,Materials,1593.82,00:00.0
Compass Minerals America Inc.,Materials,6366.58,00:00.0
Compass Minerals America Inc.,Materials,6848.36,00:00.0
Compass Minerals America Inc.,Materials,5174.62,00:00.0
Compass Minerals America Inc.,Materials,1761.49,00:00.0
Compass Minerals America Inc.,Materials,1725.71,00:00.0
Compass Minerals America Inc.,Materials,1544.94,00:00.0
Compass Minerals America Inc.,Materials,6471.62,00:00.0
Compass Minerals America Inc.,Materials,3121.29,00:00.0
Compass Minerals America Inc.,Materials,4647.18,00:00.0
Compass Minerals America Inc.,Materials,3147.35,00:00.0
Compass Minerals America Inc.,Materials,1670.43,00:00.0
Compass Minerals America Inc.,Materials,1567.89,00:00.0
Compass Minerals America Inc.,Materials,1722.55,00:00.0
Compass Minerals America Inc.,Materials,1745.46,00:00.0
Computer Aid  Inc.,Services,129667.88,00:00.0
Computer Aid  Inc.,Services,179480.54,00:00.0
Computer Aid  Inc.,Services,228098.43,00:00.0
Computer Aid  Inc.,Services,228098.43,00:00.0
Computer Aid  Inc.,Services,231694.4,00:00.0
Computer Aid  Inc.,Services,95932.78,00:00.0
Computer Aid  Inc.,Services,231694.4,00:00.0
Computer Aid  Inc.,Services,206539.2,00:00.0
Computer Aid  Inc.,Services,25155.2,00:00.0
Computer Aid  Inc.,Services,25901.85,00:00.0
Computer Aid  Inc.,Services,231694.4,00:00.0
Computer Aid  Inc.,Services,231694.4,00:00.0
Computer Aid  Inc.,Services,172384.18,00:00.0
Computer Aid  Inc.,Services,48267.2,00:00.0
Computer Sciences Corp,Capital Purchases,2651.8,00:00.0
Computer Sciences Corp,Services,72365,00:00.0
Constance Valkan,Services,570,00:00.0
Constance Valkan,Services,29.25,00:00.0
Constance Valkan,Services,2589,00:00.0
Constance Valkan,Services,1165.5,00:00.0
Convergint Technologies  Llc,Services,492,00:00.0
Cook County Sheriffs Police Finance Dept. Rm 106,Services,237097.5,00:00.0
Cook County Sheriffs Police Finance Dept. Rm 106,Services,247047.75,00:00.0
Corys Inc.,Services,7375,00:00.0
Corys Inc.,Services,7375,00:00.0
Corys Inc.,Services,7375,00:00.0
Corys Inc.,Services,7375,00:00.0
Corys Inc.,Services,6600,00:00.0
Corys Inc.,Services,7375,00:00.0
Corys Inc.,Services,7375,00:00.0
Corys Inc.,Services,7375,00:00.0
Corys Inc.,Services,7375,00:00.0
Corys Inc.,Services,7375,00:00.0
Corys Inc.,Services,7375,00:00.0
"CPS Chicago Parking , LLC",Services,30000,00:00.0
"CPS Chicago Parking , LLC",Services,126141.57,00:00.0
"CPS Chicago Parking , LLC",Services,380422.21,00:00.0
"CPS Chicago Parking , LLC",Services,60000,00:00.0
"CPS Chicago Parking , LLC",Services,30000,00:00.0
"CPS Chicago Parking , LLC",Services,30000,00:00.0
"CPS Chicago Parking , LLC",Services,29011.76,00:00.0
"CPS Chicago Parking , LLC",Services,29662.63,00:00.0
"CPS Chicago Parking , LLC",Services,90995.62,00:00.0
"CPS Chicago Parking , LLC",Services,19318,00:00.0
"CPS Chicago Parking , LLC",Services,17541.19,00:00.0
"CR Quality Services, Inc.",Services,619.76,00:00.0
"CR Quality Services, Inc.",Services,645.89,00:00.0
"CR Quality Services, Inc.",Capital Purchases,3098.36,00:00.0
"CR Quality Services, Inc.",Capital Purchases,643.44,00:00.0
"CR Quality Services, Inc.",Services,534.35,00:00.0
Crains Chicago Business,Services,169,00:00.0
Cranemasters Inc.,Services,85.08,00:00.0
Cranemasters Inc.,Services,5861.25,00:00.0
Cranemasters Inc.,Services,6744.15,00:00.0
Critical Reach,Services,1128,00:00.0
Crowe LLP,Capital Purchases,628000,00:00.0
Crowe LLP,Capital Purchases,280000,00:00.0
Crowe LLP,Capital Purchases,192983.79,00:00.0
Crowe LLP,Capital Purchases,296000,00:00.0
Crowe LLP,Capital Purchases,14916.21,00:00.0
Crowe LLP,Services,196571.25,00:00.0
Crowe LLP,Services,4140,00:00.0
Crowe LLP,Services,23445,00:00.0
Crowe LLP,Services,57500,00:00.0
Crowe LLP,Capital Purchases,91000,00:00.0
Crowe LLP,Capital Purchases,42699.64,00:00.0
Crowe LLP,Capital Purchases,3300.36,00:00.0
Crowe LLP,Services,36990,00:00.0
Crowe LLP,Services,28875,00:00.0
Crowe LLP,Capital Purchases,214000,00:00.0
Crowe LLP,Services,23905.01,00:00.0
Crowe LLP,Capital Purchases,285000,00:00.0
Crowe LLP,Capital Purchases,90000,00:00.0
Crowe LLP,Services,31668.64,00:00.0
Crowe LLP,Capital Purchases,255000,00:00.0
Crowe LLP,Capital Purchases,240000,00:00.0
Crowe LLP,Services,17369.66,00:00.0
Crowe LLP,Capital Purchases,96000,00:00.0
Crowe LLP,Capital Purchases,240000,00:00.0
Crown Battery Mfg. Co.,Materials,53300,00:00.0
Crown Battery Mfg. Co.,Materials,333,00:00.0
Crown Battery Mfg. Co.,Materials,510,00:00.0
Crown Battery Mfg. Co.,Materials,1470,00:00.0
Crown Battery Mfg. Co.,Materials,31980,00:00.0
Crown Battery Mfg. Co.,Materials,63960,00:00.0
Crown Battery Mfg. Co.,Materials,2450,00:00.0
Crown Battery Mfg. Co.,Materials,31980,00:00.0
Crown Battery Mfg. Co.,Materials,1225,00:00.0
Crown Battery Mfg. Co.,Materials,300,00:00.0
Crown Battery Mfg. Co.,Materials,666,00:00.0
Csx Transportation Inc.,Rental Expense,8010.3,00:00.0
Cubic-Transportation Systems  Inc.,Services,24404.51,00:00.0
Cubic-Transportation Systems  Inc.,Services,26851.5,00:00.0
Cubic-Transportation Systems  Inc.,Services,27015.05,00:00.0
Cubic-Transportation Systems  Inc.,Services,23775.2,00:00.0
Cubic-Transportation Systems  Inc.,Services,26573.04,00:00.0
Cubic-Transportation Systems  Inc.,Services,28522.43,00:00.0
Cubic-Transportation Systems  Inc.,Services,26905.7,00:00.0
Cubic-Transportation Systems  Inc.,Services,28091.55,00:00.0
Cubic-Transportation Systems  Inc.,Services,37392.38,00:00.0
Cubic-Transportation Systems  Inc.,Services,34520.43,00:00.0
Cubic-Transportation Systems  Inc.,Services,44540.1,00:00.0
Cubic-Transportation Systems  Inc.,Services,41974.37,00:00.0
Cubic-Transportation Systems  Inc.,Services,63151.25,00:00.0
Cubic-Transportation Systems  Inc.,Services,54423.05,00:00.0
Cubic-Transportation Systems  Inc.,Services,98821.83,00:00.0
Cubic-Transportation Systems  Inc.,Services,86524.31,00:00.0
Cubic-Transportation Systems  Inc.,Services,137695.83,00:00.0
Cubic-Transportation Systems  Inc.,Services,108035.92,00:00.0
Cubic-Transportation Systems  Inc.,Services,141802.56,00:00.0
Cubic-Transportation Systems  Inc.,Services,106348.01,00:00.0
Curt A. Otero,Services,41.24,00:00.0
Cynthia Leonard,Services,34.5,00:00.0
Cynthia Leonard,Services,52.9,00:00.0
Cynthia Leonard,Services,33.6,00:00.0
Cynthia Leonard,Services,67.2,00:00.0
Cynthia Leonard,Services,136.64,00:00.0
Cynthia Leonard,Services,33.6,00:00.0
Cynthia Leonard,Services,33.6,00:00.0
Cynthia Leonard,Services,33.6,00:00.0
Cynthia Leonard,Services,33.6,00:00.0
Cynthia Leonard,Services,91.84,00:00.0
Cynthia Leonard,Services,196,00:00.0
Cynthia Leonard,Services,114.46,00:00.0
Cynthia Leonard,Services,67.2,00:00.0
Cynthia Leonard,Services,224,00:00.0
Dache Mann,Claims & Insurance,350,00:00.0
Dacra Adjudication Systems LLC dba Dacra Tech LLC,Capital Purchases,1500,00:00.0
Dacra Adjudication Systems LLC dba Dacra Tech LLC,Capital Purchases,1500,00:00.0
Dacra Adjudication Systems LLC dba Dacra Tech LLC,Capital Purchases,1500,00:00.0
Dacra Adjudication Systems LLC dba Dacra Tech LLC,Capital Purchases,1500,00:00.0
Dacra Adjudication Systems LLC dba Dacra Tech LLC,Capital Purchases,1500,00:00.0
Dacra Adjudication Systems LLC dba Dacra Tech LLC,Services,1750,00:00.0
Dacra Adjudication Systems LLC dba Dacra Tech LLC,Services,1750,00:00.0
Dacra Adjudication Systems LLC dba Dacra Tech LLC,Services,1750,00:00.0
Dan Paull,Claims & Insurance,626.86,00:00.0
Danella Rental Systems Inc.,Rental Expense,6780,00:00.0
Danella Rental Systems Inc.,Rental Expense,11980,00:00.0
Danella Rental Systems Inc.,Rental Expense,1170,00:00.0
Danella Rental Systems Inc.,Rental Expense,7565,00:00.0
Danella Rental Systems Inc.,Rental Expense,22695,00:00.0
Danella Rental Systems Inc.,Rental Expense,7565,00:00.0
Danella Rental Systems Inc.,Rental Expense,1175,00:00.0
Danella Rental Systems Inc.,Rental Expense,30260,00:00.0
Danella Rental Systems Inc.,Rental Expense,6390,00:00.0
Danella Rental Systems Inc.,Rental Expense,398.92,00:00.0
Danella Rental Systems Inc.,Rental Expense,3390,00:00.0
Danella Rental Systems Inc.,Rental Expense,7160,00:00.0
Danella Rental Systems Inc.,Rental Expense,45390,00:00.0
Danella Rental Systems Inc.,Rental Expense,10550,00:00.0
Danella Rental Systems Inc.,Rental Expense,1170,00:00.0
Danella Rental Systems Inc.,Rental Expense,9380,00:00.0
Danella Rental Systems Inc.,Rental Expense,22695,00:00.0
Danella Rental Systems Inc.,Rental Expense,10550,00:00.0
Danella Rental Systems Inc.,Rental Expense,4725,00:00.0
Danella Rental Systems Inc.,Rental Expense,22695,00:00.0
Danella Rental Systems Inc.,Rental Expense,1170,00:00.0
Danella Rental Systems Inc.,Rental Expense,22695,00:00.0
Danella Rental Systems Inc.,Rental Expense,10550,00:00.0
Danella Rental Systems Inc.,Rental Expense,6750,00:00.0
Danella Rental Systems Inc.,Rental Expense,22695,00:00.0
Danella Rental Systems Inc.,Rental Expense,6750,00:00.0
Danella Rental Systems Inc.,Rental Expense,10550,00:00.0
Danella Rental Systems Inc.,Rental Expense,6750,00:00.0
Danella Rental Systems Inc.,Rental Expense,10550,00:00.0
Danella Rental Systems Inc.,Rental Expense,15130,00:00.0
Daniel Acevedo,Services,259.39,00:00.0
Daniel Acevedo,Services,366.71,00:00.0
Daniel Acevedo,Services,388.28,00:00.0
Daniel Acevedo,Services,409.85,00:00.0
Daniel Acevedo,Services,388.28,00:00.0
Daniel Acevedo,Services,453,00:00.0
Daniel Acevedo,Services,453,00:00.0
Daniel Acevedo,Services,474.57,00:00.0
Daniel D Jenkins,Services,520.17,00:00.0
Daniel D Jenkins,Services,391.46,00:00.0
Daniel D Jenkins,Services,197.12,00:00.0
Daniel Gamboa,Services,42.55,00:00.0
Daniel Gamboa,Services,41.44,00:00.0
Daniel Gamboa,Services,64.96,00:00.0
Daniel Gamboa,Services,25.31,00:00.0
Daniel Gamboa,Services,3.14,00:00.0
Daniel Gamboa,Services,22.4,00:00.0
Daniel Gamboa,Services,88.48,00:00.0
Daniel Gamboa,Services,106.4,00:00.0
Daniel Gonzalez,Services,24.15,00:00.0
Daniel Gonzalez,Services,24.15,00:00.0
Daniel Gonzalez,Services,23.52,00:00.0
Daniel Gonzalez,Services,82.88,00:00.0
Daniel Gonzalez,Services,41.44,00:00.0
Daniel Gonzalez,Services,47.04,00:00.0
Daniel Gonzalez,Services,70.56,00:00.0
Daniel Gonzalez,Services,81.76,00:00.0
Daniel Gonzalez,Services,141.12,00:00.0
Daniel Gonzalez,Services,11.2,00:00.0
Daniel Gonzalez,Services,94.08,00:00.0
Daniel Gonzalez,Services,141.12,00:00.0
Daniel Gonzalez,Services,23.52,00:00.0
Daniel Gonzalez,Services,117.6,00:00.0
Daniel Gonzalez,Services,34.72,00:00.0
Daniel Gonzalez,Services,11.2,00:00.0
Daniel Gonzalez,Services,117.6,00:00.0
Daniel Gonzalez,Services,141.12,00:00.0
Daniel Heer,Services,22.35,00:00.0
Daniel Hernandez,Services,117.6,00:00.0
Daniel Hernandez,Services,94.08,00:00.0
Daniel Hernandez,Services,124.32,00:00.0
Daniel Hernandez,Services,67.76,00:00.0
Daniel Hernandez,Services,106.4,00:00.0
Daniel Judge,Services,85.12,00:00.0
"Daniel R. Klosowski, ESQ",Claims & Insurance,20,00:00.0
Daniel Santiago,Services,85.12,00:00.0
Daniel Santiago,Services,210.67,00:00.0
Daniel Santiago,Services,80.53,00:00.0
Daniel Santiago,Services,326.48,00:00.0
Daniel Santiago,Services,364.56,00:00.0
Daniel Santiago,Services,308.22,00:00.0
Daniel Santiago,Services,385.73,00:00.0
Daniel Santiago,Services,374.08,00:00.0
Daniel Santiago,Services,321.55,00:00.0
Daniel Santiago,Services,276.98,00:00.0
Daniel Santiago,Services,398.61,00:00.0
Daniel Santiago,Services,407.34,00:00.0
Daniel Santiago,Services,373.52,00:00.0
Daniel Santiago,Services,449.34,00:00.0
Daniel Santiago,Services,481.71,00:00.0
Daniel W. Williams,Services,1068.12,00:00.0
Daniel W. Williams,Services,1176.12,00:00.0
Darius Gipson,Claims & Insurance,750,00:00.0
Darlynn Ball,Services,175.95,00:00.0
Darlynn Ball,Services,168,00:00.0
Darlynn Ball,Services,188.72,00:00.0
Darlynn Ball,Services,205.07,00:00.0
Darlynn Ball,Services,183.46,00:00.0
Darlynn Ball,Services,182.56,00:00.0
Darlynn Ball,Services,200.48,00:00.0
Darlynn Ball,Services,187.15,00:00.0
Darlynn Ball,Services,218.4,00:00.0
Darlynn Ball,Services,192.75,00:00.0
Darlynn Ball,Services,189.22,00:00.0
Darlynn Ball,Services,173.82,00:00.0
Darlynn Ball,Services,195.38,00:00.0
Darlynn Ball,Services,199.08,00:00.0
Darlynn Ball,Services,215.66,00:00.0
Darlynn Ball,Services,221.76,00:00.0
Darlynn Ball,Services,141.68,00:00.0
Darlynn Ball,Services,213.64,00:00.0
"DataBank IMX, LLC",Services,35176.32,00:00.0
Dataskill  Inc.,Services,1322.07,00:00.0
Dave Zitkus,Claims & Insurance,20,00:00.0
David B. Roberts,Services,33.6,00:00.0
David Booth,Services,42.55,00:00.0
David Booth,Services,32.48,00:00.0
David Booth,Services,207.2,00:00.0
David Booth,Services,64.96,00:00.0
David Booth,Services,41.44,00:00.0
David Booth,Services,32.48,00:00.0
David Booth,Services,16.8,00:00.0
David Booth,Services,41.44,00:00.0
David Booth,Services,99.68,00:00.0
David Booth,Services,147.84,00:00.0
David Booth,Services,32.48,00:00.0
David Booth,Services,32.48,00:00.0
David Booth,Services,212.8,00:00.0
David Booth,Services,272.16,00:00.0
David Booth,Services,207.2,00:00.0
David Booth,Services,32.48,00:00.0
David Booth,Services,82.88,00:00.0
David Booth,Services,32.48,00:00.0
David Booth,Services,82.88,00:00.0
David Booth,Services,207.2,00:00.0
"David H. Garelick, MD",Claims & Insurance,1000,00:00.0
David Kinkade,Services,35.84,00:00.0
David Kinkade,Services,35.84,00:00.0
David Kinkade,Services,80.64,00:00.0
David L. McQueen,Services,42.55,00:00.0
David L. McQueen,Services,60.95,00:00.0
David L. McQueen,Services,41.44,00:00.0
David L. McQueen,Services,64.96,00:00.0
David L. McQueen,Services,141.12,00:00.0
David L. McQueen,Services,50.29,00:00.0
David L. McQueen,Services,206.08,00:00.0
David L. McQueen,Services,235.2,00:00.0
David L. McQueen,Services,124.32,00:00.0
David Lorentz,Services,73.6,00:00.0
David Lorentz,Services,61.6,00:00.0
David Lorentz,Services,35.84,00:00.0
David M. Pedroza,Services,67.2,00:00.0
David Urbaniak,Services,337.5,00:00.0
Davis Bancorp,Services,2592,00:00.0
Davis Bancorp,Services,5430,00:00.0
Davis Bancorp,Services,972,00:00.0
Davis Bancorp,Services,1404,00:00.0
Davis Bancorp,Services,108,00:00.0
Davis Bancorp,Services,2592,00:00.0
Davis Bancorp,Services,1404,00:00.0
Davis Bancorp,Services,108,00:00.0
Davis Bancorp,Services,5430,00:00.0
Davis Bancorp,Services,972,00:00.0
Davis Bancorp,Services,2592,00:00.0
Davis Bancorp,Services,1404,00:00.0
Davis Bancorp,Services,5430,00:00.0
Davis Bancorp,Services,972,00:00.0
Davis Bancorp,Services,108,00:00.0
Davis Bancorp,Services,972,00:00.0
Davis Bancorp,Services,1404,00:00.0
Davis Bancorp,Services,108,00:00.0
Davis Bancorp,Services,5430,00:00.0
Davis Bancorp,Services,2592,00:00.0
Davis Bancorp,Services,5430,00:00.0
Davis Bancorp,Services,2592,00:00.0
Davis Bancorp,Services,972,00:00.0
Davis Bancorp,Services,1404,00:00.0
Davis Bancorp,Services,108,00:00.0
Davis Bancorp,Services,2592,00:00.0
Davis Bancorp,Services,108,00:00.0
Davis Bancorp,Services,5430,00:00.0
Davis Bancorp,Services,972,00:00.0
Davis Bancorp,Services,1404,00:00.0
Davis Bancorp,Services,2592,00:00.0
Davis Bancorp,Services,108,00:00.0
Davis Bancorp,Services,6270,00:00.0
Davis Bancorp,Services,972,00:00.0
Davis Bancorp,Services,1404,00:00.0
Davis Bancorp,Services,6270,00:00.0
Davis Bancorp,Services,972,00:00.0
Davis Bancorp,Services,2592,00:00.0
Davis Bancorp,Services,1404,00:00.0
Davis Bancorp,Services,108,00:00.0
Davis Bancorp,Services,2872,00:00.0
Davis Bancorp,Services,1404,00:00.0
Davis Bancorp,Services,5710,00:00.0
Davis Bancorp,Services,108,00:00.0
Davis Bancorp,Services,972,00:00.0
Day-N-Nite  Inc.,Services,189.05,00:00.0
Day-N-Nite  Inc.,Services,745.15,00:00.0
Day-N-Nite  Inc.,Services,247.5,00:00.0
Day-N-Nite  Inc.,Services,66.25,00:00.0
Day-N-Nite  Inc.,Services,199.35,00:00.0
Day-N-Nite  Inc.,Services,6.75,00:00.0
Day-N-Nite  Inc.,Services,79.13,00:00.0
Day-N-Nite  Inc.,Services,24.75,00:00.0
Day-N-Nite  Inc.,Services,20.25,00:00.0
Day-N-Nite  Inc.,Services,70.15,00:00.0
Day-N-Nite  Inc.,Services,113.63,00:00.0
Day-N-Nite  Inc.,Services,111.3,00:00.0
Day-N-Nite  Inc.,Services,214.9,00:00.0
Day-N-Nite  Inc.,Services,693.25,00:00.0
Day-N-Nite  Inc.,Services,206.65,00:00.0
Day-N-Nite  Inc.,Services,192.25,00:00.0
Day-N-Nite  Inc.,Services,90.38,00:00.0
Day-N-Nite  Inc.,Services,11.25,00:00.0
Day-N-Nite  Inc.,Services,272.85,00:00.0
Day-N-Nite  Inc.,Services,618.05,00:00.0
Day-N-Nite  Inc.,Services,101.85,00:00.0
Day-N-Nite  Inc.,Services,13.5,00:00.0
Day-N-Nite  Inc.,Services,4.5,00:00.0
Day-N-Nite  Inc.,Services,52.25,00:00.0
Dayton-Phoenix Group  Inc.,Materials,221.54,00:00.0
Dayton-Phoenix Group  Inc.,Materials,1110,00:00.0
"DB Engineering & Consulting USA, Inc.",Services,53356.62,00:00.0
"DB Engineering & Consulting USA, Inc.",Services,30270.55,00:00.0
"DB Engineering & Consulting USA, Inc.",Services,28003.52,00:00.0
"DB Engineering & Consulting USA, Inc.",Services,38192.97,00:00.0
"DB Engineering & Consulting USA, Inc.",Services,35752.82,00:00.0
"DB Engineering & Consulting USA, Inc.",Services,36588.83,00:00.0
"DB Engineering & Consulting USA, Inc.",Services,7850.79,00:00.0
Deborah G. Brown,Services,114.58,00:00.0
Deborah G. Brown,Services,208.32,00:00.0
Deborah G. Brown,Services,78.85,00:00.0
Delford Industries  Inc.,Capital Purchases,1788.4,00:00.0
Delford Industries  Inc.,Capital Purchases,1472.8,00:00.0
Delford Industries  Inc.,Capital Purchases,1578,00:00.0
Delford Industries  Inc.,Capital Purchases,631.2,00:00.0
Delford Industries  Inc.,Capital Purchases,841.6,00:00.0
Delford Industries  Inc.,Capital Purchases,1578,00:00.0
Delford Industries  Inc.,Capital Purchases,2051.4,00:00.0
Delford Industries  Inc.,Capital Purchases,1683.2,00:00.0
Delford Industries  Inc.,Capital Purchases,1315,00:00.0
Delford Industries  Inc.,Capital Purchases,1209.8,00:00.0
Delford Industries  Inc.,Materials,2556,00:00.0
Delford Industries  Inc.,Capital Purchases,4050.2,00:00.0
Delford Industries  Inc.,Capital Purchases,1315,00:00.0
Delford Industries  Inc.,Capital Purchases,1788.4,00:00.0
Delford Industries  Inc.,Capital Purchases,689.7,00:00.0
Delford Industries  Inc.,Capital Purchases,841.6,00:00.0
Delford Industries  Inc.,Capital Purchases,2630,00:00.0
Delford Industries  Inc.,Materials,100,00:00.0
Delford Industries  Inc.,Capital Purchases,2006.4,00:00.0
Delford Industries  Inc.,Capital Purchases,1683.2,00:00.0
Delford Industries  Inc.,Capital Purchases,841.6,00:00.0
Delford Industries  Inc.,Capital Purchases,479,00:00.0
Delia Sanchez,Claims & Insurance,547.03,00:00.0
Dell Marketing  L.P.,Services,41049.82,00:00.0
Deloitte & Touche  Llp,Services,54600,00:00.0
Deloitte & Touche  Llp,Services,90000,00:00.0
Deloitte & Touche  Llp,Services,90000,00:00.0
Deloitte & Touche  Llp,Services,19715,00:00.0
Delsita Johnson,Claims & Insurance,3323,00:00.0
Delta Dental Plan Of Illinois,Services,54967.89,00:00.0
Delta Dental Plan Of Illinois,Services,4457.12,00:00.0
Delta Dental Plan Of Illinois,Services,1092.16,00:00.0
Delta Dental Plan Of Illinois,Services,75798.29,00:00.0
Delta Dental Plan Of Illinois,Services,1018.06,00:00.0
Delta Dental Plan Of Illinois,Services,74.1,00:00.0
Delta Dental Plan Of Illinois,Services,153656.28,00:00.0
Delta Dental Plan Of Illinois,Services,83792.36,00:00.0
Delta Dental Plan Of Illinois,Services,1092.16,00:00.0
Delta Dental Plan Of Illinois,Services,1092.16,00:00.0
Delta Dental Plan Of Illinois,Services,51127.8,00:00.0
Delta Dental Plan Of Illinois,Services,142129.84,00:00.0
Delta Dental Plan Of Illinois,Services,1287.1,00:00.0
Delta Industries Inc.,Services,492.76,00:00.0
Delta Industries Inc.,Services,273.36,00:00.0
Delta Industries Inc.,Capital Purchases,60254,00:00.0
Delta Industries Inc.,Materials,1243.18,00:00.0
Delta Industries Inc.,Services,1044,00:00.0
Delta Industries Inc.,Services,1308.32,00:00.0
Delta Industries Inc.,Materials,2817.76,00:00.0
Delta Industries Inc.,Services,0,00:00.0
Delta Industries Inc.,Services,7641.74,00:00.0
Delta Industries Inc.,Services,4523.96,00:00.0
Delta Industries Inc.,Services,3540.07,00:00.0
Delta Industries Inc.,Services,3330.49,00:00.0
Delta Sonic Car Wash System Inc,Services,354,00:00.0
Delta Sonic Car Wash System Inc,Services,474,00:00.0
Delta Sonic Car Wash System Inc,Services,426,00:00.0
Delta Sonic Car Wash System Inc,Services,454,00:00.0
Delta Sonic Car Wash System Inc,Services,488,00:00.0
Delta Sonic Car Wash System Inc,Services,360,00:00.0
Delta Sonic Car Wash System Inc,Services,480,00:00.0
Delta Sonic Car Wash System Inc,Services,517,00:00.0
Delta Sonic Car Wash System Inc,Services,69.99,00:00.0
Delta Sonic Car Wash System Inc,Services,671,00:00.0
Delta Sonic Car Wash System Inc,Services,541,00:00.0
Delta Sonic Car Wash System Inc,Services,512,00:00.0
Demoulin Brothers & Co.,Services,6166.22,00:00.0
Demoulin Brothers & Co.,Services,6335.51,00:00.0
Demoulin Brothers & Co.,Services,4164.07,00:00.0
Demoulin Brothers & Co.,Services,7699.63,00:00.0
Demoulin Brothers & Co.,Services,4599.13,00:00.0
Demoulin Brothers & Co.,Services,1562.73,00:00.0
Demoulin Brothers & Co.,Services,1369.29,00:00.0
Demoulin Brothers & Co.,Services,734.94,00:00.0
Demoulin Brothers & Co.,Services,2751.56,00:00.0
Demoulin Brothers & Co.,Services,24985.54,00:00.0
Demoulin Brothers & Co.,Services,3204.88,00:00.0
Demoulin Brothers & Co.,Services,2159.37,00:00.0
Demoulin Brothers & Co.,Services,1329.78,00:00.0
Demoulin Brothers & Co.,Services,434.04,00:00.0
Demoulin Brothers & Co.,Services,975.2,00:00.0
Demoulin Brothers & Co.,Services,7463,00:00.0
Demoulin Brothers & Co.,Services,11515.65,00:00.0
Demoulin Brothers & Co.,Services,40.5,00:00.0
Demoulin Brothers & Co.,Services,6290.1,00:00.0
Demoulin Brothers & Co.,Services,1879.45,00:00.0
Demoulin Brothers & Co.,Services,1284.66,00:00.0
Demoulin Brothers & Co.,Services,2077.42,00:00.0
Demoulin Brothers & Co.,Services,8155.59,00:00.0
Demoulin Brothers & Co.,Services,8591.44,00:00.0
Demoulin Brothers & Co.,Services,4826.6,00:00.0
Demoulin Brothers & Co.,Services,2729.7,00:00.0
Demoulin Brothers & Co.,Services,6981.62,00:00.0
Demoulin Brothers & Co.,Services,3437.53,00:00.0
Demoulin Brothers & Co.,Services,17758.66,00:00.0
Demoulin Brothers & Co.,Services,14000.14,00:00.0
Demoulin Brothers & Co.,Services,1979.52,00:00.0
Demoulin Brothers & Co.,Services,11932.6,00:00.0
Demoulin Brothers & Co.,Services,4363.86,00:00.0
Demoulin Brothers & Co.,Services,938.9,00:00.0
Demoulin Brothers & Co.,Services,2210.99,00:00.0
Demoulin Brothers & Co.,Services,1307.9,00:00.0
Demoulin Brothers & Co.,Services,6527.32,00:00.0
Demoulin Brothers & Co.,Services,3309.34,00:00.0
Demoulin Brothers & Co.,Services,1124.87,00:00.0
Demoulin Brothers & Co.,Services,9071.56,00:00.0
Demoulin Brothers & Co.,Services,4799.97,00:00.0
Demoulin Brothers & Co.,Services,513.24,00:00.0
Demoulin Brothers & Co.,Services,3336.95,00:00.0
Demoulin Brothers & Co.,Services,1179.48,00:00.0
Demoulin Brothers & Co.,Services,239.22,00:00.0
Demoulin Brothers & Co.,Services,1951.89,00:00.0
Demoulin Brothers & Co.,Services,3134.4,00:00.0
Demoulin Brothers & Co.,Services,2949.37,00:00.0
Demoulin Brothers & Co.,Services,4672.62,00:00.0
Demoulin Brothers & Co.,Services,4171.62,00:00.0
Demoulin Brothers & Co.,Services,2345.56,00:00.0
Demoulin Brothers & Co.,Services,1247.43,00:00.0
Demoulin Brothers & Co.,Services,3962.88,00:00.0
Demoulin Brothers & Co.,Services,4260.67,00:00.0
Demoulin Brothers & Co.,Services,3273.49,00:00.0
Demoulin Brothers & Co.,Services,7190.89,00:00.0
Demoulin Brothers & Co.,Services,4345.74,00:00.0
Demoulin Brothers & Co.,Services,4324.21,00:00.0
Demoulin Brothers & Co.,Services,18669.17,00:00.0
Demoulin Brothers & Co.,Services,2583.57,00:00.0
Demoulin Brothers & Co.,Services,2322.87,00:00.0
Demoulin Brothers & Co.,Services,3577.66,00:00.0
Demoulin Brothers & Co.,Services,1225.05,00:00.0
Demoulin Brothers & Co.,Services,7257.17,00:00.0
Demoulin Brothers & Co.,Services,1037.16,00:00.0
Demoulin Brothers & Co.,Services,212.97,00:00.0
Demoulin Brothers & Co.,Services,395.55,00:00.0
Demoulin Brothers & Co.,Services,219.93,00:00.0
Demoulin Brothers & Co.,Services,20265.17,00:00.0
Demoulin Brothers & Co.,Services,1194.25,00:00.0
Demoulin Brothers & Co.,Services,1482.03,00:00.0
Demoulin Brothers & Co.,Services,2668.85,00:00.0
Demoulin Brothers & Co.,Services,1884.91,00:00.0
Demoulin Brothers & Co.,Services,4564.84,00:00.0
Demoulin Brothers & Co.,Services,95.3,00:00.0
Demoulin Brothers & Co.,Services,6122.53,00:00.0
Dept Of Water Super Of Water Collections,Utilities,1392.58,00:00.0
Dept Of Water Super Of Water Collections,Utilities,21.28,00:00.0
Dept Of Water Super Of Water Collections,Utilities,10.68,00:00.0
Dept Of Water Super Of Water Collections,Utilities,1425.16,00:00.0
Dept Of Water Super Of Water Collections,Utilities,10.68,00:00.0
Dept Of Water Super Of Water Collections,Utilities,16.26,00:00.0
Dept Of Water Super Of Water Collections,Utilities,244.28,00:00.0
Dept Of Water Super Of Water Collections,Utilities,1992.4,00:00.0
Dept Of Water Super Of Water Collections,Utilities,8.16,00:00.0
Dept Of Water Super Of Water Collections,Utilities,1457.76,00:00.0
Dept Of Water Super Of Water Collections,Utilities,21.28,00:00.0
Dept Of Water Super Of Water Collections,Utilities,10121.4,00:00.0
Dept Of Water Super Of Water Collections,Utilities,53311.9,00:00.0
Dept Of Water Super Of Water Collections,Utilities,1767.24,00:00.0
Dept Of Water Super Of Water Collections,Utilities,11824.88,00:00.0
Dept Of Water Super Of Water Collections,Utilities,8.16,00:00.0
Dept Of Water Super Of Water Collections,Utilities,757.36,00:00.0
Dept Of Water Super Of Water Collections,Utilities,191.76,00:00.0
Dept Of Water Super Of Water Collections,Utilities,31.94,00:00.0
Dept Of Water Super Of Water Collections,Utilities,5252.76,00:00.0
Dept Of Water Super Of Water Collections,Utilities,32.6,00:00.0
Dept Of Water Super Of Water Collections,Utilities,31.94,00:00.0
Dept Of Water Super Of Water Collections,Utilities,10.68,00:00.0
Dept Of Water Super Of Water Collections,Utilities,32.6,00:00.0
Dept Of Water Super Of Water Collections,Utilities,317.3,00:00.0
Dept Of Water Super Of Water Collections,Utilities,97024.66,00:00.0
Dept Of Water Super Of Water Collections,Utilities,10.68,00:00.0
Dept Of Water Super Of Water Collections,Utilities,502.94,00:00.0
Dept Of Water Super Of Water Collections,Utilities,255.68,00:00.0
Dept Of Water Super Of Water Collections,Utilities,53.24,00:00.0
Dept Of Water Super Of Water Collections,Utilities,426.44,00:00.0
Dept Of Water Super Of Water Collections,Utilities,10.68,00:00.0
Dept Of Water Super Of Water Collections,Utilities,63.92,00:00.0
Dept Of Water Super Of Water Collections,Utilities,63.92,00:00.0
Dept Of Water Super Of Water Collections,Utilities,40.7,00:00.0
Dept Of Water Super Of Water Collections,Utilities,6612.74,00:00.0
Dept Of Water Super Of Water Collections,Utilities,8.16,00:00.0
Dept Of Water Super Of Water Collections,Utilities,203.6,00:00.0
Dept Of Water Super Of Water Collections,Utilities,1752.46,00:00.0
Dept Of Water Super Of Water Collections,Utilities,1303.02,00:00.0
Dept Of Water Super Of Water Collections,Utilities,8.16,00:00.0
Dept Of Water Super Of Water Collections,Utilities,732.92,00:00.0
Dept Of Water Super Of Water Collections,Utilities,31.94,00:00.0
Dept Of Water Super Of Water Collections,Utilities,2390.88,00:00.0
Dept Of Water Super Of Water Collections,Utilities,521.24,00:00.0
Dept Of Water Super Of Water Collections,Utilities,6455.38,00:00.0
Dept Of Water Super Of Water Collections,Utilities,53.24,00:00.0
Dept Of Water Super Of Water Collections,Utilities,42.64,00:00.0
Dept Of Water Super Of Water Collections,Utilities,78305.82,00:00.0
Dept Of Water Super Of Water Collections,Utilities,308.98,00:00.0
Dept Of Water Super Of Water Collections,Utilities,24.42,00:00.0
Dept Of Water Super Of Water Collections,Utilities,6136.6,00:00.0
Dept Of Water Super Of Water Collections,Utilities,2231.5,00:00.0
Dept Of Water Super Of Water Collections,Utilities,472.32,00:00.0
Dept Of Water Super Of Water Collections,Utilities,1148.28,00:00.0
Dept Of Water Super Of Water Collections,Utilities,5562.24,00:00.0
Dept Of Water Super Of Water Collections,Utilities,2996.9,00:00.0
Dept Of Water Super Of Water Collections,Utilities,2198.84,00:00.0
Dept Of Water Super Of Water Collections,Utilities,21.28,00:00.0
Dept Of Water Super Of Water Collections,Utilities,8.16,00:00.0
Dept Of Water Super Of Water Collections,Utilities,24.42,00:00.0
Dept Of Water Super Of Water Collections,Utilities,2010.36,00:00.0
Dept Of Water Super Of Water Collections,Utilities,329.46,00:00.0
Dept Of Water Super Of Water Collections,Utilities,31.94,00:00.0
Dept Of Water Super Of Water Collections,Utilities,19,00:00.0
Dept Of Water Super Of Water Collections,Utilities,31.94,00:00.0
Dept Of Water Super Of Water Collections,Utilities,5259.94,00:00.0
Dept Of Water Super Of Water Collections,Utilities,266.36,00:00.0
Dept Of Water Super Of Water Collections,Utilities,24.42,00:00.0
Dept Of Water Super Of Water Collections,Utilities,182.76,00:00.0
Dept Of Water Super Of Water Collections,Utilities,2709.66,00:00.0
Dept Of Water Super Of Water Collections,Utilities,521.24,00:00.0
Dept Of Water Super Of Water Collections,Utilities,42.64,00:00.0
Dept Of Water Super Of Water Collections,Utilities,79275.3,00:00.0
Dept Of Water Super Of Water Collections,Utilities,585.92,00:00.0
Dept Of Water Super Of Water Collections,Utilities,57.02,00:00.0
Dept Of Water Super Of Water Collections,Utilities,1384.46,00:00.0
Dept Of Water Super Of Water Collections,Utilities,203.6,00:00.0
Dept Of Water Super Of Water Collections,Utilities,2980.7,00:00.0
Dept Of Water Super Of Water Collections,Utilities,1417,00:00.0
Dept Of Water Super Of Water Collections,Utilities,1905.64,00:00.0
Dept Of Water Super Of Water Collections,Utilities,63.92,00:00.0
Dept Of Water Super Of Water Collections,Utilities,97.72,00:00.0
Dept Of Water Super Of Water Collections,Utilities,63.92,00:00.0
Dept Of Water Super Of Water Collections,Utilities,16.26,00:00.0
Dept Of Water Super Of Water Collections,Utilities,42.64,00:00.0
Dept Of Water Super Of Water Collections,Utilities,88725.28,00:00.0
Dept Of Water Super Of Water Collections,Utilities,607.3,00:00.0
Dept Of Water Super Of Water Collections,Utilities,42.64,00:00.0
Dept Of Water Super Of Water Collections,Utilities,472.32,00:00.0
Dept Of Water Super Of Water Collections,Utilities,2072.1,00:00.0
Dept Of Water Super Of Water Collections,Utilities,10.68,00:00.0
Dept Of Water Super Of Water Collections,Utilities,32.6,00:00.0
Dept Of Water Super Of Water Collections,Utilities,60.92,00:00.0
Dept Of Water Super Of Water Collections,Utilities,5100.56,00:00.0
Dept Of Water Super Of Water Collections,Utilities,2044.12,00:00.0
Dept Of Water Super Of Water Collections,Utilities,2711.92,00:00.0
Dept Of Water Super Of Water Collections,Utilities,211.76,00:00.0
Dept Of Water Super Of Water Collections,Utilities,1197.14,00:00.0
Dept Of Water Super Of Water Collections,Utilities,322.76,00:00.0
Dept Of Water Super Of Water Collections,Utilities,8.16,00:00.0
Dept Of Water Super Of Water Collections,Utilities,904,00:00.0
Dept Of Water Super Of Water Collections,Utilities,21.28,00:00.0
Dept Of Water Super Of Water Collections,Utilities,29.68,00:00.0
Dept Of Water Super Of Water Collections,Utilities,10.68,00:00.0
Dept Of Water Super Of Water Collections,Utilities,32.6,00:00.0
Dept Of Water Super Of Water Collections,Utilities,21.28,00:00.0
Dept Of Water Super Of Water Collections,Utilities,53.32,00:00.0
Dept Of Water Super Of Water Collections,Utilities,745.78,00:00.0
Dept Of Water Super Of Water Collections,Utilities,735.6,00:00.0
Dept Of Water Super Of Water Collections,Utilities,31.94,00:00.0
Dept Of Water Super Of Water Collections,Utilities,16.26,00:00.0
Dept Of Water Super Of Water Collections,Utilities,51060.98,00:00.0
Dept Of Water Super Of Water Collections,Utilities,496.8,00:00.0
Dept Of Water Super Of Water Collections,Utilities,5100.56,00:00.0
Dept Of Water Super Of Water Collections,Utilities,21.28,00:00.0
Dept Of Water Super Of Water Collections,Utilities,8.16,00:00.0
Dept Of Water Super Of Water Collections,Utilities,2242.88,00:00.0
Dept Of Water Super Of Water Collections,Utilities,69.32,00:00.0
Dept Of Water Super Of Water Collections,Utilities,228.58,00:00.0
Dept Of Water Super Of Water Collections,Utilities,163.08,00:00.0
Dept Of Water Super Of Water Collections,Utilities,97.86,00:00.0
Dept Of Water Super Of Water Collections,Utilities,8.18,00:00.0
Dept Of Water Super Of Water Collections,Utilities,1303.02,00:00.0
Dept Of Water Super Of Water Collections,Utilities,69.32,00:00.0
Dept Of Water Super Of Water Collections,Utilities,4404.26,00:00.0
Dept Of Water Super Of Water Collections,Utilities,32.46,00:00.0
Dept Of Water Super Of Water Collections,Utilities,10.72,00:00.0
Dept Of Water Super Of Water Collections,Utilities,42.9,00:00.0
Dept Of Water Super Of Water Collections,Utilities,10.76,00:00.0
Dept Of Water Super Of Water Collections,Utilities,97867.36,00:00.0
Dept Of Water Super Of Water Collections,Utilities,24.64,00:00.0
Dept Of Water Super Of Water Collections,Utilities,2390.88,00:00.0
Dept Of Water Super Of Water Collections,Utilities,191.76,00:00.0
Dept Of Water Super Of Water Collections,Utilities,42.64,00:00.0
Dept Of Water Super Of Water Collections,Utilities,4173.64,00:00.0
Dept Of Water Super Of Water Collections,Utilities,7911.06,00:00.0
Dept Of Water Super Of Water Collections,Utilities,2561.92,00:00.0
Dept Of Water Super Of Water Collections,Utilities,230.18,00:00.0
Dept Of Water Super Of Water Collections,Utilities,4242.02,00:00.0
Dept Of Water Super Of Water Collections,Utilities,197.54,00:00.0
Dept Of Water Super Of Water Collections,Utilities,1553.92,00:00.0
Dept Of Water Super Of Water Collections,Utilities,21.4,00:00.0
Dept Of Water Super Of Water Collections,Utilities,8.26,00:00.0
Dept Of Water Super Of Water Collections,Utilities,935.68,00:00.0
Dept Of Water Super Of Water Collections,Utilities,32.18,00:00.0
Dept Of Water Super Of Water Collections,Utilities,53.58,00:00.0
Dept Of Water Super Of Water Collections,Utilities,61.92,00:00.0
Dept Of Water Super Of Water Collections,Utilities,24.62,00:00.0
Dept Of Water Super Of Water Collections,Utilities,80.14,00:00.0
Dept Of Water Super Of Water Collections,Utilities,24.7,00:00.0
Dept Of Water Super Of Water Collections,Utilities,579.42,00:00.0
Dept Of Water Super Of Water Collections,Utilities,2.4,00:00.0
Dept Of Water Super Of Water Collections,Utilities,75463.16,00:00.0
Dept Of Water Super Of Water Collections,Utilities,43.5,00:00.0
Dept Of Water Super Of Water Collections,Utilities,10.76,00:00.0
Dept Of Water Super Of Water Collections,Utilities,373.42,00:00.0
Dept Of Water Super Of Water Collections,Utilities,2601.28,00:00.0
Dept Of Water Super Of Water Collections,Utilities,230.5,00:00.0
Dept Of Water Super Of Water Collections,Utilities,5303.5,00:00.0
Dept Of Water Super Of Water Collections,Utilities,16036.1,00:00.0
Dept Of Water Super Of Water Collections,Utilities,757.38,00:00.0
Dept Of Water Super Of Water Collections,Utilities,230.5,00:00.0
Dept Of Water Super Of Water Collections,Utilities,8.26,00:00.0
Dept Of Water Super Of Water Collections,Utilities,32.24,00:00.0
Dept Of Water Super Of Water Collections,Utilities,1366.52,00:00.0
Dept Of Water Super Of Water Collections,Utilities,139.66,00:00.0
Dept Of Water Super Of Water Collections,Utilities,8.26,00:00.0
Dept Of Water Super Of Water Collections,Utilities,8.26,00:00.0
Dept Of Water Super Of Water Collections,Utilities,4239.54,00:00.0
Dept Of Water Super Of Water Collections,Utilities,53.68,00:00.0
Dept Of Water Super Of Water Collections,Utilities,32.24,00:00.0
Dept Of Water Super Of Water Collections,Utilities,69716.16,00:00.0
Dept Of Water Super Of Water Collections,Utilities,1415.9,00:00.0
Dept Of Water Super Of Water Collections,Utilities,42.98,00:00.0
Dept Of Water Super Of Water Collections,Utilities,296.38,00:00.0
Dept Of Water Super Of Water Collections,Utilities,2973.18,00:00.0
Dept Of Water Super Of Water Collections,Utilities,765.56,00:00.0
Dept Of Water Super Of Water Collections,Utilities,5303.5,00:00.0
Dept Of Water Super Of Water Collections,Utilities,24.7,00:00.0
Dept Of Water Super Of Water Collections,Utilities,4074.88,00:00.0
Dept Of Water Super Of Water Collections,Utilities,10627.6,00:00.0
Dept Of Water Super Of Water Collections,Utilities,8.26,00:00.0
Dept Of Water Super Of Water Collections,Utilities,21.46,00:00.0
Dept Of Water Super Of Water Collections,Utilities,296.38,00:00.0
Derek Stipati,Services,35.84,00:00.0
Derek Stipati,Services,80.64,00:00.0
Derek Stipati,Services,71.68,00:00.0
Design Group Signage Corp.,Claims & Insurance,111024.92,00:00.0
Design Group Signage Corp.,Capital Purchases,2375,00:00.0
Design Group Signage Corp.,Capital Purchases,7650,00:00.0
Design Group Signage Corp.,Capital Purchases,95965.9,00:00.0
Design Group Signage Corp.,Services,48980,00:00.0
Design Group Signage Corp.,Capital Purchases,37354.1,00:00.0
Design Group Signage Corp.,Capital Purchases,98250.12,00:00.0
Design Group Signage Corp.,Capital Purchases,20375,00:00.0
Design Group Signage Corp.,Capital Purchases,18480,00:00.0
Design Group Signage Corp.,Capital Purchases,16536,00:00.0
Design Group Signage Corp.,Capital Purchases,88217.88,00:00.0
Design Group Signage Corp.,Capital Purchases,885,00:00.0
Deutz Power Center Great Lakes,Materials,1489.1,00:00.0
Deutz Power Center Great Lakes,Materials,825.17,00:00.0
Deutz Power Center Great Lakes,Services,44323.9,00:00.0
Deutz Power Center Great Lakes,Materials,677.75,00:00.0
Deutz Power Center Great Lakes,Services,820,00:00.0
Devin L. Burks,Services,42.55,00:00.0
Devin L. Burks,Services,17.25,00:00.0
Devin L. Burks,Services,47.04,00:00.0
Devin L. Burks,Services,41.44,00:00.0
DH Wireless Solutions,Services,157127.97,00:00.0
Diane Haywood,Services,60.48,00:00.0
Diane Haywood,Services,21.28,00:00.0
Diebold Nixdorf Inc.,Services,175.66,00:00.0
Diebold Nixdorf Inc.,Services,135,00:00.0
Diesel Electrical Equipment  Inc.,Capital Purchases,9765,00:00.0
Diesel Electrical Equipment  Inc.,Capital Purchases,6975,00:00.0
Diesel Electrical Equipment  Inc.,Services,13740,00:00.0
Diesel Electrical Equipment  Inc.,Services,6750,00:00.0
Diesel Electrical Equipment  Inc.,Services,7350,00:00.0
Diesel Electrical Equipment  Inc.,Materials,7350,00:00.0
Diesel Electrical Equipment  Inc.,Services,7350,00:00.0
Diesel Electrical Equipment  Inc.,Services,7350,00:00.0
Diesel Electrical Equipment  Inc.,Capital Purchases,6975,00:00.0
Diesel Electrical Equipment  Inc.,Services,7350,00:00.0
Diesel Electrical Equipment  Inc.,Services,7350,00:00.0
"Digital Legal Medical Records, LLC dba Advita, LLC",Claims & Insurance,71.62,00:00.0
"Digital Legal Medical Records, LLC dba Advita, LLC",Claims & Insurance,156.29,00:00.0
"Digital Legal Medical Records, LLC dba Advita, LLC",Claims & Insurance,131.08,00:00.0
"Digital Legal Medical Records, LLC dba Advita, LLC",Claims & Insurance,51.6,00:00.0
"Digital Legal Medical Records, LLC dba Advita, LLC",Claims & Insurance,227.95,00:00.0
"Digital Legal Medical Records, LLC dba Advita, LLC",Claims & Insurance,45,00:00.0
"Digital Legal Medical Records, LLC dba Advita, LLC",Claims & Insurance,51.6,00:00.0
"Digital Legal Medical Records, LLC dba Advita, LLC",Claims & Insurance,171.95,00:00.0
"Digital Legal Medical Records, LLC dba Advita, LLC",Claims & Insurance,234.9,00:00.0
"Digital Legal Medical Records, LLC dba Advita, LLC",Claims & Insurance,207.7,00:00.0
"Digital Legal Medical Records, LLC dba Advita, LLC",Claims & Insurance,102.05,00:00.0
"Digital Legal Medical Records, LLC dba Advita, LLC",Claims & Insurance,45.7,00:00.0
"Digital Legal Medical Records, LLC dba Advita, LLC",Claims & Insurance,1.05,00:00.0
"Digital Legal Medical Records, LLC dba Advita, LLC",Claims & Insurance,87.96,00:00.0
"Digital Legal Medical Records, LLC dba Advita, LLC",Claims & Insurance,77.01,00:00.0
"Digital Legal Medical Records, LLC dba Advita, LLC",Claims & Insurance,4.9,00:00.0
"Digital Legal Medical Records, LLC dba Advita, LLC",Claims & Insurance,25.75,00:00.0
"Digital Legal Medical Records, LLC dba Advita, LLC",Claims & Insurance,1.75,00:00.0
"Digital Legal Medical Records, LLC dba Advita, LLC",Claims & Insurance,901.61,00:00.0
"Digital Legal Medical Records, LLC dba Advita, LLC",Claims & Insurance,201.65,00:00.0
"Digital Legal Medical Records, LLC dba Advita, LLC",Claims & Insurance,51.6,00:00.0
"Digital Legal Medical Records, LLC dba Advita, LLC",Claims & Insurance,64.9,00:00.0
"Digital Legal Medical Records, LLC dba Advita, LLC",Claims & Insurance,120.57,00:00.0
"Digital Legal Medical Records, LLC dba Advita, LLC",Claims & Insurance,167.9,00:00.0
"Digital Legal Medical Records, LLC dba Advita, LLC",Claims & Insurance,91.1,00:00.0
"Digital Legal Medical Records, LLC dba Advita, LLC",Claims & Insurance,284.55,00:00.0
"Digital Legal Medical Records, LLC dba Advita, LLC",Claims & Insurance,194.31,00:00.0
"Digital Legal Medical Records, LLC dba Advita, LLC",Claims & Insurance,689.55,00:00.0
"Digital Legal Medical Records, LLC dba Advita, LLC",Claims & Insurance,137.45,00:00.0
"Digital Legal Medical Records, LLC dba Advita, LLC",Claims & Insurance,10,00:00.0
"Digital Legal Medical Records, LLC dba Advita, LLC",Claims & Insurance,123.06,00:00.0
"Digital Legal Medical Records, LLC dba Advita, LLC",Claims & Insurance,146.7,00:00.0
"Digital Legal Medical Records, LLC dba Advita, LLC",Claims & Insurance,76.71,00:00.0
"Digital Legal Medical Records, LLC dba Advita, LLC",Claims & Insurance,68.1,00:00.0
"Digital Legal Medical Records, LLC dba Advita, LLC",Claims & Insurance,166.5,00:00.0
"Digital Legal Medical Records, LLC dba Advita, LLC",Claims & Insurance,40.36,00:00.0
"Digital Legal Medical Records, LLC dba Advita, LLC",Claims & Insurance,150,00:00.0
"Digital Legal Medical Records, LLC dba Advita, LLC",Claims & Insurance,135.29,00:00.0
"Digital Legal Medical Records, LLC dba Advita, LLC",Claims & Insurance,51.6,00:00.0
"Digital Legal Medical Records, LLC dba Advita, LLC",Claims & Insurance,338.65,00:00.0
"Digital Legal Medical Records, LLC dba Advita, LLC",Claims & Insurance,7.35,00:00.0
"Digital Legal Medical Records, LLC dba Advita, LLC",Claims & Insurance,35.46,00:00.0
"Digital Legal Medical Records, LLC dba Advita, LLC",Claims & Insurance,719.6,00:00.0
"Digital Legal Medical Records, LLC dba Advita, LLC",Claims & Insurance,93.69,00:00.0
"Digital Legal Medical Records, LLC dba Advita, LLC",Claims & Insurance,54.45,00:00.0
"Digital Legal Medical Records, LLC dba Advita, LLC",Claims & Insurance,96.75,00:00.0
"Digital Legal Medical Records, LLC dba Advita, LLC",Claims & Insurance,230.47,00:00.0
"Digital Legal Medical Records, LLC dba Advita, LLC",Claims & Insurance,45.7,00:00.0
"Digital Legal Medical Records, LLC dba Advita, LLC",Claims & Insurance,91.7,00:00.0
"Digital Legal Medical Records, LLC dba Advita, LLC",Claims & Insurance,207.35,00:00.0
"Digital Legal Medical Records, LLC dba Advita, LLC",Claims & Insurance,58.6,00:00.0
"Digital Legal Medical Records, LLC dba Advita, LLC",Claims & Insurance,61.4,00:00.0
"Digital Legal Medical Records, LLC dba Advita, LLC",Claims & Insurance,116.48,00:00.0
"Digital Legal Medical Records, LLC dba Advita, LLC",Claims & Insurance,312.72,00:00.0
"Digital Legal Medical Records, LLC dba Advita, LLC",Claims & Insurance,51.6,00:00.0
"Digital Legal Medical Records, LLC dba Advita, LLC",Claims & Insurance,99.1,00:00.0
"Digital Legal Medical Records, LLC dba Advita, LLC",Claims & Insurance,0.7,00:00.0
"Digital Legal Medical Records, LLC dba Advita, LLC",Claims & Insurance,219.27,00:00.0
"Digital Legal Medical Records, LLC dba Advita, LLC",Claims & Insurance,95.04,00:00.0
"Digital Legal Medical Records, LLC dba Advita, LLC",Claims & Insurance,97.79,00:00.0
"Digital Legal Medical Records, LLC dba Advita, LLC",Claims & Insurance,1818.52,00:00.0
"Digital Legal Medical Records, LLC dba Advita, LLC",Claims & Insurance,158.71,00:00.0
"Digital Legal Medical Records, LLC dba Advita, LLC",Claims & Insurance,103.5,00:00.0
"Digital Legal Medical Records, LLC dba Advita, LLC",Claims & Insurance,1.4,00:00.0
"Digital Legal Medical Records, LLC dba Advita, LLC",Claims & Insurance,770.34,00:00.0
"Digital Legal Medical Records, LLC dba Advita, LLC",Claims & Insurance,197.85,00:00.0
"Digital Legal Medical Records, LLC dba Advita, LLC",Claims & Insurance,122.03,00:00.0
"Digital Legal Medical Records, LLC dba Advita, LLC",Claims & Insurance,69.1,00:00.0
"Digital Legal Medical Records, LLC dba Advita, LLC",Claims & Insurance,104.85,00:00.0
"Digital Legal Medical Records, LLC dba Advita, LLC",Claims & Insurance,163.87,00:00.0
"Digital Legal Medical Records, LLC dba Advita, LLC",Claims & Insurance,51.6,00:00.0
"Digital Legal Medical Records, LLC dba Advita, LLC",Claims & Insurance,1.05,00:00.0
"Digital Legal Medical Records, LLC dba Advita, LLC",Claims & Insurance,0.7,00:00.0
"Digital Legal Medical Records, LLC dba Advita, LLC",Claims & Insurance,53,00:00.0
"Digital Legal Medical Records, LLC dba Advita, LLC",Claims & Insurance,1916.13,00:00.0
"Digital Legal Medical Records, LLC dba Advita, LLC",Claims & Insurance,61.05,00:00.0
"Digital Legal Medical Records, LLC dba Advita, LLC",Claims & Insurance,199.38,00:00.0
"Digital Legal Medical Records, LLC dba Advita, LLC",Claims & Insurance,81.35,00:00.0
"Digital Legal Medical Records, LLC dba Advita, LLC",Claims & Insurance,146.65,00:00.0
"Digital Legal Medical Records, LLC dba Advita, LLC",Claims & Insurance,215.71,00:00.0
"Digital Legal Medical Records, LLC dba Advita, LLC",Claims & Insurance,1.05,00:00.0
"Digital Legal Medical Records, LLC dba Advita, LLC",Claims & Insurance,325.45,00:00.0
"Digital Legal Medical Records, LLC dba Advita, LLC",Claims & Insurance,3.5,00:00.0
"Digital Legal Medical Records, LLC dba Advita, LLC",Claims & Insurance,45,00:00.0
"Digital Legal Medical Records, LLC dba Advita, LLC",Claims & Insurance,137.5,00:00.0
"Digital Legal Medical Records, LLC dba Advita, LLC",Claims & Insurance,130.75,00:00.0
"Digital Legal Medical Records, LLC dba Advita, LLC",Claims & Insurance,126.95,00:00.0
"Digital Legal Medical Records, LLC dba Advita, LLC",Claims & Insurance,28,00:00.0
"Digital Legal Medical Records, LLC dba Advita, LLC",Claims & Insurance,48.15,00:00.0
"Digital Legal Medical Records, LLC dba Advita, LLC",Claims & Insurance,456.09,00:00.0
"Digital Legal Medical Records, LLC dba Advita, LLC",Claims & Insurance,0.7,00:00.0
"Digital Legal Medical Records, LLC dba Advita, LLC",Claims & Insurance,105.65,00:00.0
"Digital Legal Medical Records, LLC dba Advita, LLC",Claims & Insurance,56.2,00:00.0
"Digital Legal Medical Records, LLC dba Advita, LLC",Claims & Insurance,51.6,00:00.0
"Digital Legal Medical Records, LLC dba Advita, LLC",Claims & Insurance,10,00:00.0
"Digital Legal Medical Records, LLC dba Advita, LLC",Claims & Insurance,134.6,00:00.0
"Digital Legal Medical Records, LLC dba Advita, LLC",Claims & Insurance,38.14,00:00.0
"Digital Legal Medical Records, LLC dba Advita, LLC",Claims & Insurance,134.05,00:00.0
"Digital Legal Medical Records, LLC dba Advita, LLC",Claims & Insurance,36.05,00:00.0
"Digital Legal Medical Records, LLC dba Advita, LLC",Claims & Insurance,91.1,00:00.0
"Digital Legal Medical Records, LLC dba Advita, LLC",Claims & Insurance,93.35,00:00.0
"Digital Legal Medical Records, LLC dba Advita, LLC",Claims & Insurance,184.75,00:00.0
"Digital Legal Medical Records, LLC dba Advita, LLC",Claims & Insurance,153.5,00:00.0
"Digital Legal Medical Records, LLC dba Advita, LLC",Claims & Insurance,334.48,00:00.0
"Digital Legal Medical Records, LLC dba Advita, LLC",Claims & Insurance,435.64,00:00.0
"Digital Legal Medical Records, LLC dba Advita, LLC",Claims & Insurance,157.5,00:00.0
"Digital Legal Medical Records, LLC dba Advita, LLC",Claims & Insurance,337.01,00:00.0
"Digital Legal Medical Records, LLC dba Advita, LLC",Claims & Insurance,136.98,00:00.0
"Digital Legal Medical Records, LLC dba Advita, LLC",Claims & Insurance,78.1,00:00.0
"Digital Legal Medical Records, LLC dba Advita, LLC",Claims & Insurance,338.94,00:00.0
"Digital Legal Medical Records, LLC dba Advita, LLC",Claims & Insurance,292.4,00:00.0
"Digital Legal Medical Records, LLC dba Advita, LLC",Claims & Insurance,206.4,00:00.0
"Digital Legal Medical Records, LLC dba Advita, LLC",Claims & Insurance,0.7,00:00.0
"Digital Legal Medical Records, LLC dba Advita, LLC",Claims & Insurance,519.5,00:00.0
"Digital Legal Medical Records, LLC dba Advita, LLC",Claims & Insurance,187.55,00:00.0
"Digital Legal Medical Records, LLC dba Advita, LLC",Claims & Insurance,75.6,00:00.0
"Digital Legal Medical Records, LLC dba Advita, LLC",Claims & Insurance,155.6,00:00.0
"Digital Legal Medical Records, LLC dba Advita, LLC",Claims & Insurance,50.9,00:00.0
"Digital Legal Medical Records, LLC dba Advita, LLC",Claims & Insurance,1.2,00:00.0
"Digital Legal Medical Records, LLC dba Advita, LLC",Claims & Insurance,47.8,00:00.0
"Digital Legal Medical Records, LLC dba Advita, LLC",Claims & Insurance,337.85,00:00.0
"Digital Legal Medical Records, LLC dba Advita, LLC",Claims & Insurance,212.47,00:00.0
"Digital Legal Medical Records, LLC dba Advita, LLC",Claims & Insurance,466.1,00:00.0
"Digital Legal Medical Records, LLC dba Advita, LLC",Claims & Insurance,141.49,00:00.0
"Digital Legal Medical Records, LLC dba Advita, LLC",Claims & Insurance,163.2,00:00.0
"Digital Legal Medical Records, LLC dba Advita, LLC",Claims & Insurance,106.7,00:00.0
"Digital Legal Medical Records, LLC dba Advita, LLC",Claims & Insurance,45.7,00:00.0
"Digital Legal Medical Records, LLC dba Advita, LLC",Claims & Insurance,56.15,00:00.0
"Digital Legal Medical Records, LLC dba Advita, LLC",Claims & Insurance,407.83,00:00.0
"Digital Legal Medical Records, LLC dba Advita, LLC",Claims & Insurance,1.2,00:00.0
"Digital Legal Medical Records, LLC dba Advita, LLC",Claims & Insurance,51.6,00:00.0
"Digital Legal Medical Records, LLC dba Advita, LLC",Claims & Insurance,76.52,00:00.0
"Digital Legal Medical Records, LLC dba Advita, LLC",Claims & Insurance,79.85,00:00.0
"Digital Legal Medical Records, LLC dba Advita, LLC",Claims & Insurance,242.08,00:00.0
"Digital Legal Medical Records, LLC dba Advita, LLC",Claims & Insurance,3.15,00:00.0
"Digital Legal Medical Records, LLC dba Advita, LLC",Claims & Insurance,4358.07,00:00.0
"Digital Legal Medical Records, LLC dba Advita, LLC",Claims & Insurance,327,00:00.0
"Digital Legal Medical Records, LLC dba Advita, LLC",Claims & Insurance,180.6,00:00.0
"Digital Legal Medical Records, LLC dba Advita, LLC",Claims & Insurance,175.13,00:00.0
"Digital Legal Medical Records, LLC dba Advita, LLC",Claims & Insurance,45,00:00.0
"Digital Legal Medical Records, LLC dba Advita, LLC",Claims & Insurance,1032.97,00:00.0
"Digital Legal Medical Records, LLC dba Advita, LLC",Claims & Insurance,730.08,00:00.0
"Digital Legal Medical Records, LLC dba Advita, LLC",Claims & Insurance,51.6,00:00.0
"Digital Legal Medical Records, LLC dba Advita, LLC",Claims & Insurance,84.05,00:00.0
"Digital Legal Medical Records, LLC dba Advita, LLC",Claims & Insurance,31.7,00:00.0
"Digital Legal Medical Records, LLC dba Advita, LLC",Claims & Insurance,101.8,00:00.0
"Digital Legal Medical Records, LLC dba Advita, LLC",Claims & Insurance,336.5,00:00.0
"Digital Legal Medical Records, LLC dba Advita, LLC",Claims & Insurance,50.9,00:00.0
"Digital Legal Medical Records, LLC dba Advita, LLC",Claims & Insurance,200.33,00:00.0
"Digital Legal Medical Records, LLC dba Advita, LLC",Claims & Insurance,206.94,00:00.0
"Digital Legal Medical Records, LLC dba Advita, LLC",Claims & Insurance,230.63,00:00.0
"Digital Legal Medical Records, LLC dba Advita, LLC",Claims & Insurance,79.23,00:00.0
"Digital Legal Medical Records, LLC dba Advita, LLC",Claims & Insurance,54.75,00:00.0
"Digital Legal Medical Records, LLC dba Advita, LLC",Claims & Insurance,71.15,00:00.0
"Digital Legal Medical Records, LLC dba Advita, LLC",Claims & Insurance,35,00:00.0
"Digital Legal Medical Records, LLC dba Advita, LLC",Claims & Insurance,49.55,00:00.0
"Digital Legal Medical Records, LLC dba Advita, LLC",Claims & Insurance,55.9,00:00.0
"Digital Legal Medical Records, LLC dba Advita, LLC",Claims & Insurance,88.4,00:00.0
"Digital Legal Medical Records, LLC dba Advita, LLC",Claims & Insurance,225.9,00:00.0
"Digital Legal Medical Records, LLC dba Advita, LLC",Claims & Insurance,528.4,00:00.0
"Digital Legal Medical Records, LLC dba Advita, LLC",Claims & Insurance,168.7,00:00.0
"Digital Legal Medical Records, LLC dba Advita, LLC",Claims & Insurance,74.6,00:00.0
"Digital Legal Medical Records, LLC dba Advita, LLC",Claims & Insurance,657.07,00:00.0
"Digital Legal Medical Records, LLC dba Advita, LLC",Claims & Insurance,959.32,00:00.0
"Digital Legal Medical Records, LLC dba Advita, LLC",Claims & Insurance,237.79,00:00.0
"Digital Legal Medical Records, LLC dba Advita, LLC",Claims & Insurance,231.48,00:00.0
"Digital Legal Medical Records, LLC dba Advita, LLC",Claims & Insurance,182.5,00:00.0
"Digital Legal Medical Records, LLC dba Advita, LLC",Claims & Insurance,119.3,00:00.0
"Digital Legal Medical Records, LLC dba Advita, LLC",Claims & Insurance,116.31,00:00.0
"Digital Legal Medical Records, LLC dba Advita, LLC",Claims & Insurance,51.95,00:00.0
"Digital Legal Medical Records, LLC dba Advita, LLC",Claims & Insurance,521.15,00:00.0
"Digital Legal Medical Records, LLC dba Advita, LLC",Claims & Insurance,313.59,00:00.0
"Digital Legal Medical Records, LLC dba Advita, LLC",Claims & Insurance,55.85,00:00.0
"Digital Legal Medical Records, LLC dba Advita, LLC",Claims & Insurance,1162.17,00:00.0
"Digital Legal Medical Records, LLC dba Advita, LLC",Claims & Insurance,50.9,00:00.0
"Digital Legal Medical Records, LLC dba Advita, LLC",Claims & Insurance,45,00:00.0
"Digital Legal Medical Records, LLC dba Advita, LLC",Claims & Insurance,353.6,00:00.0
"Digital Legal Medical Records, LLC dba Advita, LLC",Claims & Insurance,62.8,00:00.0
"Digital Legal Medical Records, LLC dba Advita, LLC",Claims & Insurance,74.2,00:00.0
"Digital Legal Medical Records, LLC dba Advita, LLC",Claims & Insurance,305.12,00:00.0
"Digital Legal Medical Records, LLC dba Advita, LLC",Claims & Insurance,92.95,00:00.0
"Digital Legal Medical Records, LLC dba Advita, LLC",Claims & Insurance,226.15,00:00.0
"Digital Legal Medical Records, LLC dba Advita, LLC",Claims & Insurance,170,00:00.0
"Digital Legal Medical Records, LLC dba Advita, LLC",Claims & Insurance,182.86,00:00.0
"Digital Legal Medical Records, LLC dba Advita, LLC",Claims & Insurance,1.4,00:00.0
"Digital Legal Medical Records, LLC dba Advita, LLC",Claims & Insurance,6.3,00:00.0
"Digital Legal Medical Records, LLC dba Advita, LLC",Claims & Insurance,80.35,00:00.0
"Digital Legal Medical Records, LLC dba Advita, LLC",Claims & Insurance,171.43,00:00.0
"Digital Legal Medical Records, LLC dba Advita, LLC",Claims & Insurance,156.43,00:00.0
"Digital Legal Medical Records, LLC dba Advita, LLC",Claims & Insurance,137.6,00:00.0
"Digital Legal Medical Records, LLC dba Advita, LLC",Claims & Insurance,11.75,00:00.0
"Digital Legal Medical Records, LLC dba Advita, LLC",Claims & Insurance,187.12,00:00.0
"Digital Legal Medical Records, LLC dba Advita, LLC",Claims & Insurance,44.19,00:00.0
"Digital Legal Medical Records, LLC dba Advita, LLC",Claims & Insurance,235.58,00:00.0
"Digital Legal Medical Records, LLC dba Advita, LLC",Claims & Insurance,215.13,00:00.0
"Digital Legal Medical Records, LLC dba Advita, LLC",Claims & Insurance,85.2,00:00.0
"Digital Legal Medical Records, LLC dba Advita, LLC",Claims & Insurance,100.15,00:00.0
"Digital Legal Medical Records, LLC dba Advita, LLC",Claims & Insurance,194.92,00:00.0
"Digital Legal Medical Records, LLC dba Advita, LLC",Claims & Insurance,789.56,00:00.0
"Digital Legal Medical Records, LLC dba Advita, LLC",Claims & Insurance,218.75,00:00.0
"Digital Legal Medical Records, LLC dba Advita, LLC",Claims & Insurance,85.2,00:00.0
"Digital Legal Medical Records, LLC dba Advita, LLC",Claims & Insurance,122.79,00:00.0
"Digital Legal Medical Records, LLC dba Advita, LLC",Claims & Insurance,4.2,00:00.0
"Digital Legal Medical Records, LLC dba Advita, LLC",Claims & Insurance,79.1,00:00.0
"Digital Legal Medical Records, LLC dba Advita, LLC",Claims & Insurance,51.6,00:00.0
"Digital Legal Medical Records, LLC dba Advita, LLC",Claims & Insurance,92.13,00:00.0
"Digital Legal Medical Records, LLC dba Advita, LLC",Claims & Insurance,1.05,00:00.0
"Digital Legal Medical Records, LLC dba Advita, LLC",Claims & Insurance,51.6,00:00.0
"Digital Legal Medical Records, LLC dba Advita, LLC",Claims & Insurance,50.95,00:00.0
"Digital Legal Medical Records, LLC dba Advita, LLC",Claims & Insurance,51.6,00:00.0
"Digital Legal Medical Records, LLC dba Advita, LLC",Claims & Insurance,248.49,00:00.0
"Digital Legal Medical Records, LLC dba Advita, LLC",Claims & Insurance,80.65,00:00.0
"Digital Legal Medical Records, LLC dba Advita, LLC",Claims & Insurance,2.45,00:00.0
"Digital Legal Medical Records, LLC dba Advita, LLC",Claims & Insurance,46.05,00:00.0
"Digital Legal Medical Records, LLC dba Advita, LLC",Claims & Insurance,146.86,00:00.0
"Digital Legal Medical Records, LLC dba Advita, LLC",Claims & Insurance,50.6,00:00.0
"Digital Legal Medical Records, LLC dba Advita, LLC",Claims & Insurance,95.9,00:00.0
"Digital Legal Medical Records, LLC dba Advita, LLC",Claims & Insurance,106.58,00:00.0
"Digital Legal Medical Records, LLC dba Advita, LLC",Claims & Insurance,246.16,00:00.0
"Digital Legal Medical Records, LLC dba Advita, LLC",Claims & Insurance,51.6,00:00.0
"Digital Legal Medical Records, LLC dba Advita, LLC",Claims & Insurance,129.85,00:00.0
"Digital Legal Medical Records, LLC dba Advita, LLC",Claims & Insurance,173.47,00:00.0
"Digital Legal Medical Records, LLC dba Advita, LLC",Claims & Insurance,0.7,00:00.0
"Digital Legal Medical Records, LLC dba Advita, LLC",Claims & Insurance,70.51,00:00.0
"Digital Legal Medical Records, LLC dba Advita, LLC",Claims & Insurance,48.68,00:00.0
"Digital Legal Medical Records, LLC dba Advita, LLC",Claims & Insurance,305.45,00:00.0
"Digital Legal Medical Records, LLC dba Advita, LLC",Claims & Insurance,85.24,00:00.0
"Digital Legal Medical Records, LLC dba Advita, LLC",Claims & Insurance,90.75,00:00.0
"Digital Legal Medical Records, LLC dba Advita, LLC",Claims & Insurance,1.75,00:00.0
